SERVICE_CODE,ORGANISATION_UNIT,EXPENDITURE_CATEGORY,EXPENDITURE_DESCRIPTION,EXPENDITURE_CODE,NARRATIVE,DATE,TRANSATION_CODE,NET_AMOUNT,SUPPLIER_CODE,SUPPLIER_NAME,FROM_DATE,TO_DATE,FINANCIAL_PERIOD_YEAR
CEO,LEGAL SERVICES,EMPLOYEES,TRAINING EXPENSES,1305,P112889-SERVICE-Monitoring Officers Conference on 16/07/21 fo,07/12/2021 00:00,250007,215,LL0312,LLG LEGAL TRAINING,28/6/2021 00:00:00,25/7/2021 00:00:00,P04-2022
R&B,NON DISTRIBUTED COSTS,EMPLOYEES,SUPERANNUATION ADDED YEARS,1310,LONDON PENSIONS FUND AUTHORITY,07/12/2021 00:00,249853,5668.87,LO0031,LONDON PENSIONS FUND AUTHORITY,28/6/2021 00:00:00,25/7/2021 00:00:00,P04-2022
,LEE VALLEY CARAVAN PARK,EMPLOYEES,CRB CHECKS,1330,DBS CHECKS,07/06/2021 00:00,249892,18,DD0119,DUE DILIGENCE CHECKING LIMITED,28/6/2021 00:00:00,25/7/2021 00:00:00,P04-2022
P&V,NORTH AREA RANGERS,EMPLOYEES,CRB CHECKS,1330,DBS CHECKS,07/06/2021 00:00,249892,30,DD0119,DUE DILIGENCE CHECKING LIMITED,28/6/2021 00:00:00,25/7/2021 00:00:00,P04-2022
P&V,NORTH AREA RANGERS,EMPLOYEES,CRB CHECKS,1330,ADMIN FEE,07/06/2021 00:00,249892,36,DD0119,DUE DILIGENCE CHECKING LIMITED,28/6/2021 00:00:00,25/7/2021 00:00:00,P04-2022
P&V,SOUTH AREA RANGERS,EMPLOYEES,CRB CHECKS,1330,ADMIN FEE,07/06/2021 00:00,249892,18,DD0119,DUE DILIGENCE CHECKING LIMITED,28/6/2021 00:00:00,25/7/2021 00:00:00,P04-2022
P&V,SOUTH AREA RANGERS,EMPLOYEES,CRB CHECKS,1330,DBS CHECKS,07/06/2021 00:00,249892,40,DD0119,DUE DILIGENCE CHECKING LIMITED,28/6/2021 00:00:00,25/7/2021 00:00:00,P04-2022
P&V,OPERATIONAL MANAGEMENT (L&E),EMPLOYEES,CRB CHECKS,1330,DBS CHECKS,07/06/2021 00:00,249892,23,DD0119,DUE DILIGENCE CHECKING LIMITED,28/6/2021 00:00:00,25/7/2021 00:00:00,P04-2022
P&V,OPERATIONAL MANAGEMENT (L&E),EMPLOYEES,CRB CHECKS,1330,ADMIN FEE,07/06/2021 00:00,249892,18,DD0119,DUE DILIGENCE CHECKING LIMITED,28/6/2021 00:00:00,25/7/2021 00:00:00,P04-2022
,LEE VALLEY VELOPARK,EMPLOYEES,CRB CHECKS,1330,DBS CHECKS,07/06/2021 00:00,249892,36,DD0119,DUE DILIGENCE CHECKING LIMITED,28/6/2021 00:00:00,25/7/2021 00:00:00,P04-2022
,LV LEISURE CENTRE GOLF COURSE,EMPLOYEES,CRB CHECKS,1330,DBS CHECKS,07/06/2021 00:00,249892,18,DD0119,DUE DILIGENCE CHECKING LIMITED,28/6/2021 00:00:00,25/7/2021 00:00:00,P04-2022
,LEE VALLEY WHITE WATER CENTRE,EMPLOYEES,CRB CHECKS,1330,DBS CHECKS,07/06/2021 00:00,249892,36,DD0119,DUE DILIGENCE CHECKING LIMITED,28/6/2021 00:00:00,25/7/2021 00:00:00,P04-2022
R&B,CORPORATE TRAINING,EMPLOYEES,APPRENTICE LEVY,1390,PAYE,20/7/2021 00:00:00,250450,2256,HM0368,HMRC,28/6/2021 00:00:00,25/7/2021 00:00:00,P04-2022
CEO,LVLC SERVICE CHARGE,PREMISES RELATED EXPENDITURE,SCHEDULED GROUND MAINTENANCE,2111,GLENDALE GROUNDS MANAGEMENT LI,07/08/2021 00:00,249758,2299.79,GL0214,GLENDALE GROUNDS MANAGEMENT LIMITED,28/6/2021 00:00:00,25/7/2021 00:00:00,P04-2022
CEO,LVLC SERVICE CHARGE,PREMISES RELATED EXPENDITURE,SCHEDULED GROUND MAINTENANCE,2111,GLENDALE GROUNDS MANAGEMENT LI,07/08/2021 00:00,249758,101.36,GL0214,GLENDALE GROUNDS MANAGEMENT LIMITED,28/6/2021 00:00:00,25/7/2021 00:00:00,P04-2022
CEO,LVLC SERVICE CHARGE,PREMISES RELATED EXPENDITURE,SCHEDULED GROUND MAINTENANCE,2111,GLENDALE GROUNDS MANAGEMENT LI,25/7/2021 00:00:00,250770,300.49,GL0214,GLENDALE GROUNDS MANAGEMENT LIMITED,28/6/2021 00:00:00,25/7/2021 00:00:00,P04-2022
P&V,MYDDELTON HOUSE,PREMISES RELATED EXPENDITURE,CONTRACT CLEANING,2120,P112094-SERVICE-Myddelton House Cleaning Contract,07/05/2021 00:00,249847,1659.97,BR0632,BRITANNIA SERVICES GROUP LTD,28/6/2021 00:00:00,25/7/2021 00:00:00,P04-2022
,LEE VALLEY CAMPSITE,PREMISES RELATED EXPENDITURE,CONTRACT CLEANING,2120,P112897-SERVICE-Cleaning JUNE 21,13/7/2021 00:00:00,249994,2216.5,LI0305,LIMPIAR CLEANING,28/6/2021 00:00:00,25/7/2021 00:00:00,P04-2022
,LEE VALLEY CARAVAN PARK,PREMISES RELATED EXPENDITURE,CONTRACT CLEANING,2120,P112964-SERVICE-June Cleaning/washing,07/12/2021 00:00,249864,603.7,JO0168,JOHNSON STALBRIDGE LINEN SERVICES,28/6/2021 00:00:00,25/7/2021 00:00:00,P04-2022
,LEE VALLEY CARAVAN PARK,PREMISES RELATED EXPENDITURE,CONTRACT CLEANING,2120,P112914-SERVICE-Contract Cleaning,25/7/2021 00:00:00,249995,3246,LI0305,LIMPIAR CLEANING,28/6/2021 00:00:00,25/7/2021 00:00:00,P04-2022
P&V,NORTH AREA RANGERS,PREMISES RELATED EXPENDITURE,CONTRACT CLEANING,2120,GLENDALE GROUNDS MANAGEMENT LI,07/08/2021 00:00,249758,509.09,GL0214,GLENDALE GROUNDS MANAGEMENT LIMITED,28/6/2021 00:00:00,25/7/2021 00:00:00,P04-2022
P&V,GUNPOWDER PARK,PREMISES RELATED EXPENDITURE,CONTRACT CLEANING,2120,GLENDALE GROUNDS MANAGEMENT LI,07/08/2021 00:00,249758,509.09,GL0214,GLENDALE GROUNDS MANAGEMENT LIMITED,28/6/2021 00:00:00,25/7/2021 00:00:00,P04-2022
P&V,RIVER LEE COUNTRY PARK,PREMISES RELATED EXPENDITURE,CONTRACT CLEANING,2120,GLENDALE GROUNDS MANAGEMENT LI,07/08/2021 00:00,249758,1018.19,GL0214,GLENDALE GROUNDS MANAGEMENT LIMITED,28/6/2021 00:00:00,25/7/2021 00:00:00,P04-2022
P&V,ALMOST WILD CAMPSITE,PREMISES RELATED EXPENDITURE,CONTRACT CLEANING,2120,P112759-SERVICE-Empty 2 toilets,25/7/2021 00:00:00,249903,250,CO0550,CONVERT WATER LTD,28/6/2021 00:00:00,25/7/2021 00:00:00,P04-2022
P&V,ALMOST WILD CAMPSITE,PREMISES RELATED EXPENDITURE,CONTRACT CLEANING,2120,P112715-SERVICE-Empty 2 toilets,25/7/2021 00:00:00,250603,220,CO0550,CONVERT WATER LTD,28/6/2021 00:00:00,25/7/2021 00:00:00,P04-2022
,LEE VALLEY VELOPARK,PREMISES RELATED EXPENDITURE,CONTRACT CLEANING,2120,"P113024-SERVICE-WE 6, 13 & 20 June Cleaning",13/7/2021 00:00:00,249473,637.2,CA0498,CASNA GROUP,28/6/2021 00:00:00,25/7/2021 00:00:00,P04-2022
,LEE VALLEY VELOPARK,PREMISES RELATED EXPENDITURE,CONTRACT CLEANING,2120,"P113024-SERVICE-WE 6, 13 & 20 June Cleaning",13/7/2021 00:00:00,249474,637.2,CA0498,CASNA GROUP,28/6/2021 00:00:00,25/7/2021 00:00:00,P04-2022
,LEE VALLEY VELOPARK,PREMISES RELATED EXPENDITURE,CONTRACT CLEANING,2120,"P113024-SERVICE-WE 6, 13 & 20 June Cleaning",13/7/2021 00:00:00,249696,637.2,CA0498,CASNA GROUP,28/6/2021 00:00:00,25/7/2021 00:00:00,P04-2022
,LEE VALLEY VELOPARK,PREMISES RELATED EXPENDITURE,CONTRACT CLEANING,2120,P113113-SERVICE-Cleaning WE 27 Jun & 4 Jul,20/7/2021 00:00:00,249877,637.2,CA0498,CASNA GROUP,28/6/2021 00:00:00,25/7/2021 00:00:00,P04-2022
,LEE VALLEY VELOPARK,PREMISES RELATED EXPENDITURE,CONTRACT CLEANING,2120,P113113-SERVICE-Cleaning WE 27 Jun & 4 Jul,20/7/2021 00:00:00,250291,637.2,CA0498,CASNA GROUP,28/6/2021 00:00:00,25/7/2021 00:00:00,P04-2022
,LV HOCKEY AND TENNIS CENTRE,PREMISES RELATED EXPENDITURE,CONTRACT CLEANING,2120,P113121-SERVICE-Window Cleaning,25/7/2021 00:00:00,250207,1180,ELI0362,ELITE SUPPORT SERVICES (LONDON) LIMITED,28/6/2021 00:00:00,25/7/2021 00:00:00,P04-2022
,LEE VALLEY ICE CENTRE,PREMISES RELATED EXPENDITURE,CONTRACT CLEANING,2120,P112957-SERVICE-Cleaning May-June 2020,07/12/2021 00:00,248550,1375.1,MA0015,MAYFAIR CLEANING COMPANY LIMITED,28/6/2021 00:00:00,25/7/2021 00:00:00,P04-2022
,LEE VALLEY ICE CENTRE,PREMISES RELATED EXPENDITURE,CONTRACT CLEANING,2120,P112957-SERVICE-Cleaning May-June 2020,07/12/2021 00:00,249727,1375.1,MA0015,MAYFAIR CLEANING COMPANY LIMITED,28/6/2021 00:00:00,25/7/2021 00:00:00,P04-2022
,LV LEISURE CENTRE CAMPSITE,PREMISES RELATED EXPENDITURE,CONTRACT CLEANING,2120,P113108-SERVICE-Contract cleaning,25/7/2021 00:00:00,249993,2288,LI0305,LIMPIAR CLEANING,28/6/2021 00:00:00,25/7/2021 00:00:00,P04-2022
,LEE VALLEY RIDING CENTRE,PREMISES RELATED EXPENDITURE,CLEANING CONTRACT,2121,P112904-SERVICE-reduced cleaning fee June,07/06/2021 00:00,249729,540.24,MA0015,MAYFAIR CLEANING COMPANY LIMITED,28/6/2021 00:00:00,25/7/2021 00:00:00,P04-2022
,LEE VALLEY WHITE WATER CENTRE,PREMISES RELATED EXPENDITURE,CLEANING CONTRACT,2121,P112742-SERVICE-Blanket order from Jun 2021 to Nov 21,07/05/2021 00:00,249671,780.57,CA0498,CASNA GROUP,28/6/2021 00:00:00,25/7/2021 00:00:00,P04-2022
,LEE VALLEY WHITE WATER CENTRE,PREMISES RELATED EXPENDITURE,CLEANING CONTRACT,2121,P112742-SERVICE-Blanket order from Jun 2021 to Nov 21,07/05/2021 00:00,249878,767.34,CA0498,CASNA GROUP,28/6/2021 00:00:00,25/7/2021 00:00:00,P04-2022
,LEE VALLEY WHITE WATER CENTRE,PREMISES RELATED EXPENDITURE,CLEANING CONTRACT,2121,P112740-SERVICE-Cleaning office chairs,07/08/2021 00:00,249947,75,CA0630,CAS CARPET CARE,28/6/2021 00:00:00,25/7/2021 00:00:00,P04-2022
,LEE VALLEY WHITE WATER CENTRE,PREMISES RELATED EXPENDITURE,CLEANING CONTRACT,2121,P112742-SERVICE-Blanket order from Jun 2021 to Nov 21,20/7/2021 00:00:00,250292,800.42,CA0498,CASNA GROUP,28/6/2021 00:00:00,25/7/2021 00:00:00,P04-2022
,LEE VALLEY WHITE WATER CENTRE,PREMISES RELATED EXPENDITURE,CLEANING CONTRACT,2121,P112742-SERVICE-Blanket order from Jun 2021 to Nov 21,20/7/2021 00:00:00,250480,873.18,CA0498,CASNA GROUP,28/6/2021 00:00:00,25/7/2021 00:00:00,P04-2022
,LV WHITE WATER CATERING,PREMISES RELATED EXPENDITURE,CLEANING CONTRACT,2121,P112740-SERVICE-Cleaning cafe chairs,07/08/2021 00:00,249947,337.5,CA0630,CAS CARPET CARE,28/6/2021 00:00:00,25/7/2021 00:00:00,P04-2022
,LEE VALLEY MARINA STANSTEAD,PREMISES RELATED EXPENDITURE,GM MAIN CONTRACT SCHEDULED,2141,GLENDALE GROUNDS MANAGEMENT LI,07/08/2021 00:00,249758,353.97,GL0214,GLENDALE GROUNDS MANAGEMENT LIMITED,28/6/2021 00:00:00,25/7/2021 00:00:00,P04-2022
,LEE VALLEY MARINA STANSTEAD,PREMISES RELATED EXPENDITURE,GM MAIN CONTRACT SCHEDULED,2141,GLENDALE GROUNDS MANAGEMENT LI,25/7/2021 00:00:00,250770,251.13,GL0214,GLENDALE GROUNDS MANAGEMENT LIMITED,28/6/2021 00:00:00,25/7/2021 00:00:00,P04-2022
,LEE VALLEY WATERWORKS CENTRE,PREMISES RELATED EXPENDITURE,GM MAIN CONTRACT SCHEDULED,2141,GLENDALE GROUNDS MANAGEMENT LI,07/08/2021 00:00,249758,403.45,GL0214,GLENDALE GROUNDS MANAGEMENT LIMITED,28/6/2021 00:00:00,25/7/2021 00:00:00,P04-2022
,LEE VALLEY WATERWORKS CENTRE,PREMISES RELATED EXPENDITURE,GM MAIN CONTRACT SCHEDULED,2141,GLENDALE GROUNDS MANAGEMENT LI,07/08/2021 00:00,249758,174.98,GL0214,GLENDALE GROUNDS MANAGEMENT LIMITED,28/6/2021 00:00:00,25/7/2021 00:00:00,P04-2022
,LEE VALLEY WATERWORKS CENTRE,PREMISES RELATED EXPENDITURE,GM MAIN CONTRACT SCHEDULED,2141,GLENDALE GROUNDS MANAGEMENT LI,25/7/2021 00:00:00,250770,252.7,GL0214,GLENDALE GROUNDS MANAGEMENT LIMITED,28/6/2021 00:00:00,25/7/2021 00:00:00,P04-2022
,LEE VALLEY FARM HAYES HILL,PREMISES RELATED EXPENDITURE,GM MAIN CONTRACT SCHEDULED,2141,GLENDALE GROUNDS MANAGEMENT LI,07/08/2021 00:00,249758,188.49,GL0214,GLENDALE GROUNDS MANAGEMENT LIMITED,28/6/2021 00:00:00,25/7/2021 00:00:00,P04-2022
,LEE VALLEY FARM HAYES HILL,PREMISES RELATED EXPENDITURE,GM MAIN CONTRACT SCHEDULED,2141,GLENDALE GROUNDS MANAGEMENT LI,25/7/2021 00:00:00,250770,218.61,GL0214,GLENDALE GROUNDS MANAGEMENT LIMITED,28/6/2021 00:00:00,25/7/2021 00:00:00,P04-2022
P&V,EAST INDIA DOCK AND BOW CREEK,PREMISES RELATED EXPENDITURE,GM MAIN CONTRACT SCHEDULED,2141,GLENDALE GROUNDS MANAGEMENT LI,07/08/2021 00:00,249758,874.91,GL0214,GLENDALE GROUNDS MANAGEMENT LIMITED,28/6/2021 00:00:00,25/7/2021 00:00:00,P04-2022
P&V,EAST INDIA DOCK AND BOW CREEK,PREMISES RELATED EXPENDITURE,GM MAIN CONTRACT SCHEDULED,2141,GLENDALE GROUNDS MANAGEMENT LI,07/08/2021 00:00,249758,716.43,GL0214,GLENDALE GROUNDS MANAGEMENT LIMITED,28/6/2021 00:00:00,25/7/2021 00:00:00,P04-2022
P&V,EAST INDIA DOCK AND BOW CREEK,PREMISES RELATED EXPENDITURE,GM MAIN CONTRACT SCHEDULED,2141,GLENDALE GROUNDS MANAGEMENT LI,25/7/2021 00:00:00,250770,733.3,GL0214,GLENDALE GROUNDS MANAGEMENT LIMITED,28/6/2021 00:00:00,25/7/2021 00:00:00,P04-2022
P&V,NORTH AREA RANGERS,PREMISES RELATED EXPENDITURE,GM MAIN CONTRACT SCHEDULED,2141,GLENDALE GROUNDS MANAGEMENT LI,07/08/2021 00:00,249758,5126.83,GL0214,GLENDALE GROUNDS MANAGEMENT LIMITED,28/6/2021 00:00:00,25/7/2021 00:00:00,P04-2022
P&V,NORTH AREA RANGERS,PREMISES RELATED EXPENDITURE,GM MAIN CONTRACT SCHEDULED,2141,GLENDALE GROUNDS MANAGEMENT LI,25/7/2021 00:00:00,250770,1907.1,GL0214,GLENDALE GROUNDS MANAGEMENT LIMITED,28/6/2021 00:00:00,25/7/2021 00:00:00,P04-2022
P&V,SOUTH AREA RANGERS,PREMISES RELATED EXPENDITURE,GM MAIN CONTRACT SCHEDULED,2141,GLENDALE GROUNDS MANAGEMENT LI,07/08/2021 00:00,249758,349.96,GL0214,GLENDALE GROUNDS MANAGEMENT LIMITED,28/6/2021 00:00:00,25/7/2021 00:00:00,P04-2022
P&V,SOUTH AREA RANGERS,PREMISES RELATED EXPENDITURE,GM MAIN CONTRACT SCHEDULED,2141,GLENDALE GROUNDS MANAGEMENT LI,07/08/2021 00:00,249758,10016.33,GL0214,GLENDALE GROUNDS MANAGEMENT LIMITED,28/6/2021 00:00:00,25/7/2021 00:00:00,P04-2022
P&V,SOUTH AREA RANGERS,PREMISES RELATED EXPENDITURE,GM MAIN CONTRACT SCHEDULED,2141,GLENDALE GROUNDS MANAGEMENT LI,25/7/2021 00:00:00,250770,2835,GL0214,GLENDALE GROUNDS MANAGEMENT LIMITED,28/6/2021 00:00:00,25/7/2021 00:00:00,P04-2022
P&V,ABBEY GARDENS,PREMISES RELATED EXPENDITURE,GM MAIN CONTRACT SCHEDULED,2141,GLENDALE GROUNDS MANAGEMENT LI,07/08/2021 00:00,249758,2663.45,GL0214,GLENDALE GROUNDS MANAGEMENT LIMITED,28/6/2021 00:00:00,25/7/2021 00:00:00,P04-2022
P&V,ABBEY GARDENS,PREMISES RELATED EXPENDITURE,GM MAIN CONTRACT SCHEDULED,2141,GLENDALE GROUNDS MANAGEMENT LI,25/7/2021 00:00:00,250770,549.93,GL0214,GLENDALE GROUNDS MANAGEMENT LIMITED,28/6/2021 00:00:00,25/7/2021 00:00:00,P04-2022
P&V,GUNPOWDER PARK,PREMISES RELATED EXPENDITURE,GM MAIN CONTRACT SCHEDULED,2141,GLENDALE GROUNDS MANAGEMENT LI,07/08/2021 00:00,249758,3028.85,GL0214,GLENDALE GROUNDS MANAGEMENT LIMITED,28/6/2021 00:00:00,25/7/2021 00:00:00,P04-2022
P&V,GUNPOWDER PARK,PREMISES RELATED EXPENDITURE,GM MAIN CONTRACT SCHEDULED,2141,GLENDALE GROUNDS MANAGEMENT LI,25/7/2021 00:00:00,250770,1159.48,GL0214,GLENDALE GROUNDS MANAGEMENT LIMITED,28/6/2021 00:00:00,25/7/2021 00:00:00,P04-2022
P&V,RIVER LEE COUNTRY PARK,PREMISES RELATED EXPENDITURE,GM MAIN CONTRACT SCHEDULED,2141,GLENDALE GROUNDS MANAGEMENT LI,07/08/2021 00:00,249758,2099.79,GL0214,GLENDALE GROUNDS MANAGEMENT LIMITED,28/6/2021 00:00:00,25/7/2021 00:00:00,P04-2022
P&V,RIVER LEE COUNTRY PARK,PREMISES RELATED EXPENDITURE,GM MAIN CONTRACT SCHEDULED,2141,GLENDALE GROUNDS MANAGEMENT LI,07/08/2021 00:00,249758,18151.82,GL0214,GLENDALE GROUNDS MANAGEMENT LIMITED,28/6/2021 00:00:00,25/7/2021 00:00:00,P04-2022
P&V,RIVER LEE COUNTRY PARK,PREMISES RELATED EXPENDITURE,GM MAIN CONTRACT SCHEDULED,2141,GLENDALE GROUNDS MANAGEMENT LI,25/7/2021 00:00:00,250770,8185.34,GL0214,GLENDALE GROUNDS MANAGEMENT LIMITED,28/6/2021 00:00:00,25/7/2021 00:00:00,P04-2022
,LEE VALLEY VELOPARK,PREMISES RELATED EXPENDITURE,GM MAIN CONTRACT SCHEDULED,2141,GLENDALE GROUNDS MANAGEMENT LI,07/08/2021 00:00,249758,1692.19,GL0214,GLENDALE GROUNDS MANAGEMENT LIMITED,28/6/2021 00:00:00,25/7/2021 00:00:00,P04-2022
,LEE VALLEY VELOPARK,PREMISES RELATED EXPENDITURE,GM MAIN CONTRACT SCHEDULED,2141,GLENDALE GROUNDS MANAGEMENT LI,25/7/2021 00:00:00,250770,274.48,GL0214,GLENDALE GROUNDS MANAGEMENT LIMITED,28/6/2021 00:00:00,25/7/2021 00:00:00,P04-2022
,LV HOCKEY AND TENNIS CENTRE,PREMISES RELATED EXPENDITURE,GM MAIN CONTRACT SCHEDULED,2141,GLENDALE GROUNDS MANAGEMENT LI,07/08/2021 00:00,249758,2067.88,GL0214,GLENDALE GROUNDS MANAGEMENT LIMITED,28/6/2021 00:00:00,25/7/2021 00:00:00,P04-2022
,LV HOCKEY AND TENNIS CENTRE,PREMISES RELATED EXPENDITURE,GM MAIN CONTRACT SCHEDULED,2141,GLENDALE GROUNDS MANAGEMENT LI,25/7/2021 00:00:00,250770,239.78,GL0214,GLENDALE GROUNDS MANAGEMENT LIMITED,28/6/2021 00:00:00,25/7/2021 00:00:00,P04-2022
P&V,THREE MILLS,PREMISES RELATED EXPENDITURE,GM MAIN CONTRACT SCHEDULED,2141,GLENDALE GROUNDS MANAGEMENT LI,07/08/2021 00:00,249758,1201.75,GL0214,GLENDALE GROUNDS MANAGEMENT LIMITED,28/6/2021 00:00:00,25/7/2021 00:00:00,P04-2022
P&V,THREE MILLS,PREMISES RELATED EXPENDITURE,GM MAIN CONTRACT SCHEDULED,2141,GLENDALE GROUNDS MANAGEMENT LI,25/7/2021 00:00:00,250770,213.25,GL0214,GLENDALE GROUNDS MANAGEMENT LIMITED,28/6/2021 00:00:00,25/7/2021 00:00:00,P04-2022
,LEE VALLEY RIDING CENTRE,PREMISES RELATED EXPENDITURE,GM MAIN CONTRACT SCHEDULED,2141,GLENDALE GROUNDS MANAGEMENT LI,07/08/2021 00:00,249758,394.45,GL0214,GLENDALE GROUNDS MANAGEMENT LIMITED,28/6/2021 00:00:00,25/7/2021 00:00:00,P04-2022
,LEE VALLEY RIDING CENTRE,PREMISES RELATED EXPENDITURE,GM MAIN CONTRACT SCHEDULED,2141,GLENDALE GROUNDS MANAGEMENT LI,25/7/2021 00:00:00,250770,161.41,GL0214,GLENDALE GROUNDS MANAGEMENT LIMITED,28/6/2021 00:00:00,25/7/2021 00:00:00,P04-2022
,LEE VALLEY ICE CENTRE,PREMISES RELATED EXPENDITURE,GM MAIN CONTRACT SCHEDULED,2141,GLENDALE GROUNDS MANAGEMENT LI,07/08/2021 00:00,249758,288.71,GL0214,GLENDALE GROUNDS MANAGEMENT LIMITED,28/6/2021 00:00:00,25/7/2021 00:00:00,P04-2022
,LEE VALLEY ICE CENTRE,PREMISES RELATED EXPENDITURE,GM MAIN CONTRACT SCHEDULED,2141,GLENDALE GROUNDS MANAGEMENT LI,25/7/2021 00:00:00,250770,164.34,GL0214,GLENDALE GROUNDS MANAGEMENT LIMITED,28/6/2021 00:00:00,25/7/2021 00:00:00,P04-2022
P&V,FORMER LV LIDO SITE,PREMISES RELATED EXPENDITURE,GM MAIN CONTRACT SCHEDULED,2141,GLENDALE GROUNDS MANAGEMENT LI,07/08/2021 00:00,249758,954.78,GL0214,GLENDALE GROUNDS MANAGEMENT LIMITED,28/6/2021 00:00:00,25/7/2021 00:00:00,P04-2022
P&V,FORMER LV LIDO SITE,PREMISES RELATED EXPENDITURE,GM MAIN CONTRACT SCHEDULED,2141,GLENDALE GROUNDS MANAGEMENT LI,25/7/2021 00:00:00,250770,322.03,GL0214,GLENDALE GROUNDS MANAGEMENT LIMITED,28/6/2021 00:00:00,25/7/2021 00:00:00,P04-2022
,LEE VALLEY ATHLETICS CENTRE,PREMISES RELATED EXPENDITURE,GM MAIN CONTRACT SCHEDULED,2141,GLENDALE GROUNDS MANAGEMENT LI,07/08/2021 00:00,249758,467.68,GL0214,GLENDALE GROUNDS MANAGEMENT LIMITED,28/6/2021 00:00:00,25/7/2021 00:00:00,P04-2022
,LEE VALLEY ATHLETICS CENTRE,PREMISES RELATED EXPENDITURE,GM MAIN CONTRACT SCHEDULED,2141,GLENDALE GROUNDS MANAGEMENT LI,25/7/2021 00:00:00,250770,311.78,GL0214,GLENDALE GROUNDS MANAGEMENT LIMITED,28/6/2021 00:00:00,25/7/2021 00:00:00,P04-2022
,LEE VALLEY WHITE WATER CENTRE,PREMISES RELATED EXPENDITURE,GM MAIN CONTRACT SCHEDULED,2141,GLENDALE GROUNDS MANAGEMENT LI,07/08/2021 00:00,249758,1658.49,GL0214,GLENDALE GROUNDS MANAGEMENT LIMITED,28/6/2021 00:00:00,25/7/2021 00:00:00,P04-2022
,LEE VALLEY WHITE WATER CENTRE,PREMISES RELATED EXPENDITURE,GM MAIN CONTRACT SCHEDULED,2141,GLENDALE GROUNDS MANAGEMENT LI,25/7/2021 00:00:00,250770,960.87,GL0214,GLENDALE GROUNDS MANAGEMENT LIMITED,28/6/2021 00:00:00,25/7/2021 00:00:00,P04-2022
,LEE VALLEY WATERWORKS CENTRE,PREMISES RELATED EXPENDITURE,GM HORTICULTURE SCHEDULED,2143,GLENDALE GROUNDS MANAGEMENT LI,07/08/2021 00:00,249758,155.61,GL0214,GLENDALE GROUNDS MANAGEMENT LIMITED,28/6/2021 00:00:00,25/7/2021 00:00:00,P04-2022
P&V,NORTH AREA RANGERS,PREMISES RELATED EXPENDITURE,GM HORTICULTURE SCHEDULED,2143,GLENDALE GROUNDS MANAGEMENT LI,07/08/2021 00:00,249758,218.65,GL0214,GLENDALE GROUNDS MANAGEMENT LIMITED,28/6/2021 00:00:00,25/7/2021 00:00:00,P04-2022
P&V,SOUTH AREA RANGERS,PREMISES RELATED EXPENDITURE,GM HORTICULTURE SCHEDULED,2143,GLENDALE GROUNDS MANAGEMENT LI,07/08/2021 00:00,249758,126.51,GL0214,GLENDALE GROUNDS MANAGEMENT LIMITED,28/6/2021 00:00:00,25/7/2021 00:00:00,P04-2022
P&V,ABBEY GARDENS,PREMISES RELATED EXPENDITURE,GM HORTICULTURE SCHEDULED,2143,GLENDALE GROUNDS MANAGEMENT LI,07/08/2021 00:00,249758,1819.81,GL0214,GLENDALE GROUNDS MANAGEMENT LIMITED,28/6/2021 00:00:00,25/7/2021 00:00:00,P04-2022
P&V,GUNPOWDER PARK,PREMISES RELATED EXPENDITURE,GM HORTICULTURE SCHEDULED,2143,GLENDALE GROUNDS MANAGEMENT LI,07/08/2021 00:00,249758,238.2,GL0214,GLENDALE GROUNDS MANAGEMENT LIMITED,28/6/2021 00:00:00,25/7/2021 00:00:00,P04-2022
P&V,RIVER LEE COUNTRY PARK,PREMISES RELATED EXPENDITURE,GM HORTICULTURE SCHEDULED,2143,GLENDALE GROUNDS MANAGEMENT LI,07/08/2021 00:00,249758,122.16,GL0214,GLENDALE GROUNDS MANAGEMENT LIMITED,28/6/2021 00:00:00,25/7/2021 00:00:00,P04-2022
,LEE VALLEY VELOPARK,PREMISES RELATED EXPENDITURE,GM HORTICULTURE SCHEDULED,2143,GLENDALE GROUNDS MANAGEMENT LI,07/08/2021 00:00,249758,24.9,GL0214,GLENDALE GROUNDS MANAGEMENT LIMITED,28/6/2021 00:00:00,25/7/2021 00:00:00,P04-2022
,LV HOCKEY AND TENNIS CENTRE,PREMISES RELATED EXPENDITURE,GM HORTICULTURE SCHEDULED,2143,GLENDALE GROUNDS MANAGEMENT LI,07/08/2021 00:00,249758,1056.86,GL0214,GLENDALE GROUNDS MANAGEMENT LIMITED,28/6/2021 00:00:00,25/7/2021 00:00:00,P04-2022
P&V,THREE MILLS,PREMISES RELATED EXPENDITURE,GM HORTICULTURE SCHEDULED,2143,GLENDALE GROUNDS MANAGEMENT LI,07/08/2021 00:00,249758,40,GL0214,GLENDALE GROUNDS MANAGEMENT LIMITED,28/6/2021 00:00:00,25/7/2021 00:00:00,P04-2022
,LEE VALLEY RIDING CENTRE,PREMISES RELATED EXPENDITURE,GM HORTICULTURE SCHEDULED,2143,GLENDALE GROUNDS MANAGEMENT LI,07/08/2021 00:00,249758,12.38,GL0214,GLENDALE GROUNDS MANAGEMENT LIMITED,28/6/2021 00:00:00,25/7/2021 00:00:00,P04-2022
,LEE VALLEY WHITE WATER CENTRE,PREMISES RELATED EXPENDITURE,GM HORTICULTURE SCHEDULED,2143,GLENDALE GROUNDS MANAGEMENT LI,07/08/2021 00:00,249758,5.73,GL0214,GLENDALE GROUNDS MANAGEMENT LIMITED,28/6/2021 00:00:00,25/7/2021 00:00:00,P04-2022
P&V,FORMER LV LIDO SITE,PREMISES RELATED EXPENDITURE,GM ARBORICULTURE UNSCHEDULED,2146,P112706-SERVICE-Emergency Tree Works at Broxbourne Riverside,07/05/2021 00:00,249732,125,MU0030,P J MUSK TREES,28/6/2021 00:00:00,25/7/2021 00:00:00,P04-2022
P&V,SOUTH AREA RANGERS,PREMISES RELATED EXPENDITURE,GM NON MAIN CONT UNSCHEDULED,2147,P112670-SERVICE-Repair Pipe Leak at WaterWorks Field,07/05/2021 00:00,249743,220,KE0023,KENDALL & SONS LIMITED,28/6/2021 00:00:00,25/7/2021 00:00:00,P04-2022
P&V,THREE MILLS,PREMISES RELATED EXPENDITURE,GM NON MAIN CONT UNSCHEDULED,2147,P112622-SERVICE-Resistograph Testing at Three Mills,25/7/2021 00:00:00,250345,940,AR0291,ARD PLAYGROUNDS,28/6/2021 00:00:00,25/7/2021 00:00:00,P04-2022
P&V,SOUTH AREA RANGERS,PREMISES RELATED EXPENDITURE,HABITAT MANAGEMENT WORKS,2149,P112317-SERVICE-Hogweed at Middlesex Filter Beds,07/12/2021 00:00,249705,960,GO0044,S.H.GOSS & CO LTD,28/6/2021 00:00:00,25/7/2021 00:00:00,P04-2022
P&V,RIVER LEE COUNTRY PARK,PREMISES RELATED EXPENDITURE,HABITAT MANAGEMENT WORKS,2149,P112583-SERVICE-Crassula Treatment at Hall Marsh Scrape,20/7/2021 00:00:00,250263,425,GO0044,S.H.GOSS & CO LTD,28/6/2021 00:00:00,25/7/2021 00:00:00,P04-2022
,LEE VALLEY MARINA SPRINGFIELD,PREMISES RELATED EXPENDITURE,GENERAL WASTE,2211,P112460-SERVICE-May & June 2021 General waste & Recycling,07/05/2021 00:00,249933,1119.66,CL0037,VEOLIA ES (UK) LTD,28/6/2021 00:00:00,25/7/2021 00:00:00,P04-2022
,LEE VALLEY MARINA STANSTEAD,PREMISES RELATED EXPENDITURE,GENERAL WASTE,2211,P112012-SERVICE-Annual waste removal RH &SA moorings,07/05/2021 00:00,249935,196.8,CL0037,VEOLIA ES (UK) LTD,28/6/2021 00:00:00,25/7/2021 00:00:00,P04-2022
,LEE VALLEY MARINA STANSTEAD,PREMISES RELATED EXPENDITURE,GENERAL WASTE,2211,P112012-SERVICE-Annual waste removal RH &SA moorings,07/05/2021 00:00,249938,597.75,CL0037,VEOLIA ES (UK) LTD,28/6/2021 00:00:00,25/7/2021 00:00:00,P04-2022
P&V,LEE VALLEY FARM HOLYFIELDHALL,PREMISES RELATED EXPENDITURE,GENERAL WASTE,2211,P112926-SERVICE-Waste for Incineration,07/12/2021 00:00,250197,380.74,BY0049,BYWATERS (LEYTON) LTD,28/6/2021 00:00:00,25/7/2021 00:00:00,P04-2022
,LEE VALLEY FARM HAYES HILL,PREMISES RELATED EXPENDITURE,GENERAL WASTE,2211,GBN SERVICES LTD,19/7/2021 00:00:00,250474,777.6,GB0239,GBN SERVICES LTD,28/6/2021 00:00:00,25/7/2021 00:00:00,P04-2022
,LEE VALLEY FARM HAYES HILL,PREMISES RELATED EXPENDITURE,GENERAL WASTE,2211,GBN SERVICES LTD,19/7/2021 00:00:00,250475,648.4,GB0239,GBN SERVICES LTD,28/6/2021 00:00:00,25/7/2021 00:00:00,P04-2022
,LEE VALLEY FARM HAYES HILL,PREMISES RELATED EXPENDITURE,GENERAL WASTE,2211,GBN SERVICES LTD,19/7/2021 00:00:00,250476,155,GB0239,GBN SERVICES LTD,28/6/2021 00:00:00,25/7/2021 00:00:00,P04-2022
,LEE VALLEY FARM HAYES HILL,PREMISES RELATED EXPENDITURE,GENERAL WASTE,2211,GBN SERVICES LTD,19/7/2021 00:00:00,250477,745.6,GB0239,GBN SERVICES LTD,28/6/2021 00:00:00,25/7/2021 00:00:00,P04-2022
,LEE VALLEY CAMPSITE,PREMISES RELATED EXPENDITURE,GENERAL WASTE,2211,P112916-SERVICE-Skip Collections June 21,20/7/2021 00:00:00,249939,1095.6,CL0037,VEOLIA ES (UK) LTD,28/6/2021 00:00:00,25/7/2021 00:00:00,P04-2022
,LEE VALLEY CAMPSITE,PREMISES RELATED EXPENDITURE,GENERAL WASTE,2211,P112916-SERVICE-Skip Collections June 21,20/7/2021 00:00:00,250279,-280.4,CL0037,VEOLIA ES (UK) LTD,28/6/2021 00:00:00,25/7/2021 00:00:00,P04-2022
,LEE VALLEY CARAVAN PARK,PREMISES RELATED EXPENDITURE,GENERAL WASTE,2211,P112882-SERVICE-Monthly skip hire,07/05/2021 00:00,249936,2050.34,CL0037,VEOLIA ES (UK) LTD,28/6/2021 00:00:00,25/7/2021 00:00:00,P04-2022
P&V,SOUTH AREA RANGERS,PREMISES RELATED EXPENDITURE,GENERAL WASTE,2211,P112775-SERVICE-Skip at WaterWorks Centre,07/01/2021 00:00,249104,270,GB0239,GBN SERVICES LTD,28/6/2021 00:00:00,25/7/2021 00:00:00,P04-2022
P&V,RIVER LEE COUNTRY PARK,PREMISES RELATED EXPENDITURE,GENERAL WASTE,2211,P112864-SERVICE-12yd General Rubbish Skip at Holyfield Hall F,07/12/2021 00:00,249913,270,GB0239,GBN SERVICES LTD,28/6/2021 00:00:00,25/7/2021 00:00:00,P04-2022
,LEE VALLEY VELOPARK,PREMISES RELATED EXPENDITURE,GENERAL WASTE,2211,P113048-SERVICE-Waste Removal June,13/7/2021 00:00:00,249930,652.97,CL0037,VEOLIA ES (UK) LTD,28/6/2021 00:00:00,25/7/2021 00:00:00,P04-2022
,LV HOCKEY AND TENNIS CENTRE,PREMISES RELATED EXPENDITURE,GENERAL WASTE,2211,P113116-SERVICE-Skip Hire,20/7/2021 00:00:00,249034,376.72,BR0453,BREWSTERS WASTE MANAGEMENT LIMITED,28/6/2021 00:00:00,25/7/2021 00:00:00,P04-2022
,LV HOCKEY AND TENNIS CENTRE,PREMISES RELATED EXPENDITURE,GENERAL WASTE,2211,P113049-SERVICE-Waste Removal June,13/7/2021 00:00:00,249931,229.92,CL0037,VEOLIA ES (UK) LTD,28/6/2021 00:00:00,25/7/2021 00:00:00,P04-2022
,LV HOCKEY AND TENNIS CENTRE,PREMISES RELATED EXPENDITURE,GENERAL WASTE,2211,P113049-SERVICE-Waste Removal June,13/7/2021 00:00:00,249932,5,CL0037,VEOLIA ES (UK) LTD,28/6/2021 00:00:00,25/7/2021 00:00:00,P04-2022
,LEE VALLEY RIDING CENTRE,PREMISES RELATED EXPENDITURE,GENERAL WASTE,2211,P112045-SERVICE-RECYCLING WASTE AND COMPACTOR RENTAL,07/12/2021 00:00,249973,2260.57,BY0049,BYWATERS (LEYTON) LTD,28/6/2021 00:00:00,25/7/2021 00:00:00,P04-2022
,LEE VALLEY ICE CENTRE,PREMISES RELATED EXPENDITURE,GENERAL WASTE,2211,P112823-SERVICE-Portable Compactor May,07/01/2021 00:00,248844,432.19,BY0049,BYWATERS (LEYTON) LTD,28/6/2021 00:00:00,25/7/2021 00:00:00,P04-2022
,LEE VALLEY ICE CENTRE,PREMISES RELATED EXPENDITURE,GENERAL WASTE,2211,P112824-SERVICE-Rental Skip Portapacker,07/01/2021 00:00,249011,150,CA0341,F & R CAWLEY LTD,28/6/2021 00:00:00,25/7/2021 00:00:00,P04-2022
,LEE VALLEY ICE CENTRE,PREMISES RELATED EXPENDITURE,GENERAL WASTE,2211,P113222-SERVICE-Portable Compactor,25/7/2021 00:00:00,249972,232.8,BY0049,BYWATERS (LEYTON) LTD,28/6/2021 00:00:00,25/7/2021 00:00:00,P04-2022
,LEE VALLEY ICE CENTRE,PREMISES RELATED EXPENDITURE,GENERAL WASTE,2211,P113218-SERVICE-Rental Skip Portapacker 30/06/21,25/7/2021 00:00:00,250592,150,CA0341,F & R CAWLEY LTD,28/6/2021 00:00:00,25/7/2021 00:00:00,P04-2022
,LV LEISURE CENTRE CAMPSITE,PREMISES RELATED EXPENDITURE,GENERAL WASTE,2211,P113103-SERVICE-Skip empty,25/7/2021 00:00:00,249937,716.58,CL0037,VEOLIA ES (UK) LTD,28/6/2021 00:00:00,25/7/2021 00:00:00,P04-2022
,LV LEISURE CENTRE CAMPSITE,PREMISES RELATED EXPENDITURE,GENERAL WASTE,2211,P113105-SERVICE-General waste,25/7/2021 00:00:00,249975,267.98,BY0049,BYWATERS (LEYTON) LTD,28/6/2021 00:00:00,25/7/2021 00:00:00,P04-2022
,LEE VALLEY WHITE WATER CENTRE,PREMISES RELATED EXPENDITURE,GENERAL WASTE,2211,P112021-SERVICE-Refuse Collections April 21 to March 22,13/7/2021 00:00:00,249974,887.97,BY0049,BYWATERS (LEYTON) LTD,28/6/2021 00:00:00,25/7/2021 00:00:00,P04-2022
,LEE VALLEY ICE CENTRE,PREMISES RELATED EXPENDITURE,HAZARDOUS WASTE DISPOSAL,2212,P112955-SERVICE-Clinical Waste 7/4/20-6/7/20,07/12/2021 00:00,249710,136.98,RE0013,INITIAL MEDICAL SERVICES  LIMITED,28/6/2021 00:00:00,25/7/2021 00:00:00,P04-2022
,LEE VALLEY ICE CENTRE,PREMISES RELATED EXPENDITURE,HAZARDOUS WASTE DISPOSAL,2212,P112954-SERVICE-Clinical Waste 7/7/20-6/10/20,07/12/2021 00:00,249711,146.16,RE0013,INITIAL MEDICAL SERVICES  LIMITED,28/6/2021 00:00:00,25/7/2021 00:00:00,P04-2022
,LEE VALLEY ICE CENTRE,PREMISES RELATED EXPENDITURE,HAZARDOUS WASTE DISPOSAL,2212,P112954-SERVICE-Clinical Waste 7/7/20-6/10/20,07/12/2021 00:00,249712,-11.37,RE0013,INITIAL MEDICAL SERVICES  LIMITED,28/6/2021 00:00:00,25/7/2021 00:00:00,P04-2022
,LEE VALLEY ICE CENTRE,PREMISES RELATED EXPENDITURE,HAZARDOUS WASTE DISPOSAL,2212,P112953-SERVICE-Clinical Waste Unit 7/10/20 - 6/1/21,07/12/2021 00:00,249713,146.16,RE0013,INITIAL MEDICAL SERVICES  LIMITED,28/6/2021 00:00:00,25/7/2021 00:00:00,P04-2022
,LEE VALLEY ICE CENTRE,PREMISES RELATED EXPENDITURE,HAZARDOUS WASTE DISPOSAL,2212,P112953-SERVICE-Clinical Waste Unit 7/10/20 - 6/1/21,07/12/2021 00:00,249714,-146.16,RE0013,INITIAL MEDICAL SERVICES  LIMITED,28/6/2021 00:00:00,25/7/2021 00:00:00,P04-2022
,LEE VALLEY ICE CENTRE,PREMISES RELATED EXPENDITURE,HAZARDOUS WASTE DISPOSAL,2212,P112958-SERVICE-Sanitary 25/4/21-24/5/21,07/12/2021 00:00,249901,32.17,PE0015,PHS GROUP PLC,28/6/2021 00:00:00,25/7/2021 00:00:00,P04-2022
P&V,NORTH AREA RANGERS,PREMISES RELATED EXPENDITURE,FLYTIPPING/WHITE GOOD DISPOSAL,2213,P112320-SERVICE-Large Fly Tip Removal at Meadgate Road and Na,07/05/2021 00:00,249755,225,GL0214,GLENDALE GROUNDS MANAGEMENT LIMITED,28/6/2021 00:00:00,25/7/2021 00:00:00,P04-2022
P&V,MYDDELTON HOUSE,PREMISES RELATED EXPENDITURE,RECYCLING,2214,P111711-SERVICE-Recycling,25/7/2021 00:00:00,250593,114.92,CA0341,F & R CAWLEY LTD,28/6/2021 00:00:00,25/7/2021 00:00:00,P04-2022
P&V,MYDDELTON HOUSE,PREMISES RELATED EXPENDITURE,BUILDING SERVICE AGREEMENTS,2220,P112762-SERVICE-Sanitary Services,07/05/2021 00:00,249684,22.52,PE0015,PHS GROUP PLC,28/6/2021 00:00:00,25/7/2021 00:00:00,P04-2022
P&V,MYDDELTON HOUSE,PREMISES RELATED EXPENDITURE,BUILDING SERVICE AGREEMENTS,2220,P112762-SERVICE-Sanitary Services,07/05/2021 00:00,249685,162.89,PE0015,PHS GROUP PLC,28/6/2021 00:00:00,25/7/2021 00:00:00,P04-2022
P&V,MYDDELTON HOUSE,PREMISES RELATED EXPENDITURE,BUILDING SERVICE AGREEMENTS,2220,P112762-SERVICE-Sanitary Services,25/7/2021 00:00:00,250719,53.44,PE0015,PHS GROUP PLC,28/6/2021 00:00:00,25/7/2021 00:00:00,P04-2022
,LEE VALLEY WATERWORKS CENTRE,PREMISES RELATED EXPENDITURE,BUILDING SERVICE AGREEMENTS,2220,P112778-SERVICE-Water Sampling - WaterWorks,07/01/2021 00:00,249478,142,CO0199,ENGIE FM LIMITED,28/6/2021 00:00:00,25/7/2021 00:00:00,P04-2022
,LEE VALLEY WATERWORKS CENTRE,PREMISES RELATED EXPENDITURE,BUILDING SERVICE AGREEMENTS,2220,P112710-SERVICE-Annual Fire Exstinguisher Service,07/01/2021 00:00,249479,137.25,CO0199,ENGIE FM LIMITED,28/6/2021 00:00:00,25/7/2021 00:00:00,P04-2022
,LEE VALLEY WATERWORKS CENTRE,PREMISES RELATED EXPENDITURE,BUILDING SERVICE AGREEMENTS,2220,P112674-SERVICE-Monthly MPG Checks WaterWorks - May,07/01/2021 00:00,249479,64.5,CO0199,ENGIE FM LIMITED,28/6/2021 00:00:00,25/7/2021 00:00:00,P04-2022
,LEE VALLEY CAMPSITE,PREMISES RELATED EXPENDITURE,BUILDING SERVICE AGREEMENTS,2220,P112893-SERVICE-Unblock drain by tent field,07/12/2021 00:00,250026,225,SO0400,SOUTHERN GREEN SERVICES LIMITED,28/6/2021 00:00:00,25/7/2021 00:00:00,P04-2022
,LEE VALLEY CAMPSITE,PREMISES RELATED EXPENDITURE,BUILDING SERVICE AGREEMENTS,2220,P112989-SERVICE-July 2021 Pest control,13/7/2021 00:00:00,250069,70,VE0006,VERMINATE CITY & RURAL PEST CONTROL LTD,28/6/2021 00:00:00,25/7/2021 00:00:00,P04-2022
P&V,GUNPOWDER PARK,PREMISES RELATED EXPENDITURE,BUILDING SERVICE AGREEMENTS,2220,P111199-SERVICE-Sanitary Disposal - Gunpowder Park Office Toi,07/05/2021 00:00,249683,2.7,PE0015,PHS GROUP PLC,28/6/2021 00:00:00,25/7/2021 00:00:00,P04-2022
P&V,GUNPOWDER PARK,PREMISES RELATED EXPENDITURE,BUILDING SERVICE AGREEMENTS,2220,P111200-SERVICE-Sanitary Disposal - Gunpowder Park - Public T,25/7/2021 00:00:00,250314,14.3,PE0015,PHS GROUP PLC,28/6/2021 00:00:00,25/7/2021 00:00:00,P04-2022
P&V,RIVER LEE COUNTRY PARK,PREMISES RELATED EXPENDITURE,BUILDING SERVICE AGREEMENTS,2220,P112774-SERVICE-Sanitary Disposal - Ranger Base Office Holyfi,07/05/2021 00:00,249420,5.72,PE0015,PHS GROUP PLC,28/6/2021 00:00:00,25/7/2021 00:00:00,P04-2022
P&V,RIVER LEE COUNTRY PARK,PREMISES RELATED EXPENDITURE,BUILDING SERVICE AGREEMENTS,2220,P112774-SERVICE-Sanitary Disposal - Ranger Base Office Holyfi,07/01/2021 00:00,249421,5.72,PE0015,PHS GROUP PLC,28/6/2021 00:00:00,25/7/2021 00:00:00,P04-2022
P&V,RIVER LEE COUNTRY PARK,PREMISES RELATED EXPENDITURE,BUILDING SERVICE AGREEMENTS,2220,P112774-SERVICE-Sanitary Disposal - Ranger Base Office Holyfi,07/01/2021 00:00,249456,5.72,PE0015,PHS GROUP PLC,28/6/2021 00:00:00,25/7/2021 00:00:00,P04-2022
P&V,RIVER LEE COUNTRY PARK,PREMISES RELATED EXPENDITURE,BUILDING SERVICE AGREEMENTS,2220,P112774-SERVICE-Sanitary Disposal - Ranger Base Office Holyfi,07/05/2021 00:00,249686,5.72,PE0015,PHS GROUP PLC,28/6/2021 00:00:00,25/7/2021 00:00:00,P04-2022
P&V,RIVER LEE COUNTRY PARK,PREMISES RELATED EXPENDITURE,BUILDING SERVICE AGREEMENTS,2220,P111202-SERVICE-Sanitary Disposal - Fishers Green Toilets,25/7/2021 00:00:00,250313,11.59,PE0015,PHS GROUP PLC,28/6/2021 00:00:00,25/7/2021 00:00:00,P04-2022
,LEE VALLEY VELOPARK,PREMISES RELATED EXPENDITURE,BUILDING SERVICE AGREEMENTS,2220,P111429-SERVICE-BMS Contract VP,07/08/2021 00:00,249726,590,IN0197,INTEGRATED BUILDING MANAGEMENT SYSTEMS LTD,28/6/2021 00:00:00,25/7/2021 00:00:00,P04-2022
,LEE VALLEY VELOPARK,PREMISES RELATED EXPENDITURE,BUILDING SERVICE AGREEMENTS,2220,P109794-SERVICE-Annual Service,13/7/2021 00:00:00,249900,4800,SC0470,SCS GROUP,28/6/2021 00:00:00,25/7/2021 00:00:00,P04-2022
,LEE VALLEY VELOPARK,PREMISES RELATED EXPENDITURE,BUILDING SERVICE AGREEMENTS,2220,P112679-SERVICE-Roller Shutter Maintenace,07/08/2021 00:00,249920,350,GU0198,GUARDIAN INDUSTRIAL DOORS LIMITED,28/6/2021 00:00:00,25/7/2021 00:00:00,P04-2022
,LEE VALLEY VELOPARK,PREMISES RELATED EXPENDITURE,BUILDING SERVICE AGREEMENTS,2220,P111429-SERVICE-BMS Contract VP,13/7/2021 00:00:00,250048,590,IN0197,INTEGRATED BUILDING MANAGEMENT SYSTEMS LTD,28/6/2021 00:00:00,25/7/2021 00:00:00,P04-2022
,LEE VALLEY VELOPARK,PREMISES RELATED EXPENDITURE,BUILDING SERVICE AGREEMENTS,2220,P111427-SERVICE-Lift maintenance contract VP,13/7/2021 00:00:00,250278,656.51,GU0210,GUIDELINE LIFT SERVICES LTD,28/6/2021 00:00:00,25/7/2021 00:00:00,P04-2022
,LEE VALLEY VELOPARK,PREMISES RELATED EXPENDITURE,BUILDING SERVICE AGREEMENTS,2220,P112756-SERVICE-MPLC Licence 20 Aug 2021 - 20 Feb 2023,25/7/2021 00:00:00,250785,106.29,MP0457,MPLC HOUSE,28/6/2021 00:00:00,25/7/2021 00:00:00,P04-2022
,LV HOCKEY AND TENNIS CENTRE,PREMISES RELATED EXPENDITURE,BUILDING SERVICE AGREEMENTS,2220,P112754-SERVICE-Service Contract 2021-2022,07/01/2021 00:00,249140,140,IN0012,INITIAL WASHROOM HYGIENE,28/6/2021 00:00:00,25/7/2021 00:00:00,P04-2022
,LV HOCKEY AND TENNIS CENTRE,PREMISES RELATED EXPENDITURE,BUILDING SERVICE AGREEMENTS,2220,P112274-SERVICE-Lightning Protection System annual inspection,07/08/2021 00:00,249703,423.5,OM0097,OMEGA RED GROUP LTD,28/6/2021 00:00:00,25/7/2021 00:00:00,P04-2022
,LV HOCKEY AND TENNIS CENTRE,PREMISES RELATED EXPENDITURE,BUILDING SERVICE AGREEMENTS,2220,P112680-SERVICE-Roller Shutter & Sliding Door Maintenance,07/08/2021 00:00,249919,645,GU0198,GUARDIAN INDUSTRIAL DOORS LIMITED,28/6/2021 00:00:00,25/7/2021 00:00:00,P04-2022
,LV HOCKEY AND TENNIS CENTRE,PREMISES RELATED EXPENDITURE,BUILDING SERVICE AGREEMENTS,2220,P112098-SERVICE-Pest Control 2021-2022,13/7/2021 00:00:00,250072,400,VE0006,VERMINATE CITY & RURAL PEST CONTROL LTD,28/6/2021 00:00:00,25/7/2021 00:00:00,P04-2022
,LV HOCKEY AND TENNIS CENTRE,PREMISES RELATED EXPENDITURE,BUILDING SERVICE AGREEMENTS,2220,P111427-SERVICE-Lift maintenance contract HTC,13/7/2021 00:00:00,250277,90.04,GU0210,GUIDELINE LIFT SERVICES LTD,28/6/2021 00:00:00,25/7/2021 00:00:00,P04-2022
,LEE VALLEY VELOPARK CATERING,PREMISES RELATED EXPENDITURE,BUILDING SERVICE AGREEMENTS,2220,P113028-SERVICE-Vending Filter Change,13/7/2021 00:00:00,249516,130,TA0272,TASTEBUDS VENDING LI MITED,28/6/2021 00:00:00,25/7/2021 00:00:00,P04-2022
,LEE VALLEY VELOPARK CATERING,PREMISES RELATED EXPENDITURE,BUILDING SERVICE AGREEMENTS,2220,"P113029-SERVICE-Service Fee Jul, Aug & Sep",13/7/2021 00:00:00,249517,363.99,TA0272,TASTEBUDS VENDING LI MITED,28/6/2021 00:00:00,25/7/2021 00:00:00,P04-2022
,LEE VALLEY VELOPARK CATERING,PREMISES RELATED EXPENDITURE,BUILDING SERVICE AGREEMENTS,2220,P113044-SERVICE-Stocktaje 18 Jun,13/7/2021 00:00:00,249897,266,VE0038,VENNERS LTD,28/6/2021 00:00:00,25/7/2021 00:00:00,P04-2022
,LV HOCKEY AND TENNIS CATERING,PREMISES RELATED EXPENDITURE,BUILDING SERVICE AGREEMENTS,2220,"P113030-SERVICE-Service Fee Jul, Aug & Sep",13/7/2021 00:00:00,249518,363.99,TA0272,TASTEBUDS VENDING LI MITED,28/6/2021 00:00:00,25/7/2021 00:00:00,P04-2022
,LV HOCKEY AND TENNIS CATERING,PREMISES RELATED EXPENDITURE,BUILDING SERVICE AGREEMENTS,2220,P113034-SERVICE-Vending Filter Change,13/7/2021 00:00:00,249741,130,TA0272,TASTEBUDS VENDING LI MITED,28/6/2021 00:00:00,25/7/2021 00:00:00,P04-2022
,LV HOCKEY AND TENNIS CATERING,PREMISES RELATED EXPENDITURE,BUILDING SERVICE AGREEMENTS,2220,P113045-SERVICE-Stocktaje 18 Jun,13/7/2021 00:00:00,249899,133,VE0038,VENNERS LTD,28/6/2021 00:00:00,25/7/2021 00:00:00,P04-2022
,LV LEISURE CENTRE CAMPSITE,PREMISES RELATED EXPENDITURE,BUILDING SERVICE AGREEMENTS,2220,P113109-SERVICE-Pest control,25/7/2021 00:00:00,250070,70,VE0006,VERMINATE CITY & RURAL PEST CONTROL LTD,28/6/2021 00:00:00,25/7/2021 00:00:00,P04-2022
,LEE VALLEY WHITE WATER CENTRE,PREMISES RELATED EXPENDITURE,BUILDING SERVICE AGREEMENTS,2220,P111254-SERVICE-Hygiene Services April 2021 to 2022,07/05/2021 00:00,249687,168.6,PE0015,PHS GROUP PLC,28/6/2021 00:00:00,25/7/2021 00:00:00,P04-2022
,LEE VALLEY ICE CENTRE,PREMISES RELATED EXPENDITURE,ENGINEERING SERVICE AGREEMENTS,2221,P112817-SERVICE-Cleaning Machines Hire May,07/01/2021 00:00,248716,420,CL0606,CLEAN SWEEP UK LTD,28/6/2021 00:00:00,25/7/2021 00:00:00,P04-2022
,LEE VALLEY ICE CENTRE,PREMISES RELATED EXPENDITURE,ENGINEERING SERVICE AGREEMENTS,2221,P112952-SERVICE-Cleaning Machines Hire June,07/12/2021 00:00,249889,440,CL0606,CLEAN SWEEP UK LTD,28/6/2021 00:00:00,25/7/2021 00:00:00,P04-2022
P&V,MYDDELTON HOUSE,PREMISES RELATED EXPENDITURE,BUILDING REPAIRS & MAINTENANCE,2222,P113178-SERVICE-Intruder System in VC works July 2021,25/7/2021 00:00:00,250526,71,AD0015,ADT FIRE & SECURITY PLC,28/6/2021 00:00:00,25/7/2021 00:00:00,P04-2022
CEO,RESIDENTIAL ACCOMMODATION,PREMISES RELATED EXPENDITURE,BUILDING REPAIRS & MAINTENANCE,2222,"P112931-SERVICE-Cut Grass to Front and Rear Garden, Cut Back",25/7/2021 00:00:00,250217,449,KE0023,KENDALL & SONS LIMITED,28/6/2021 00:00:00,25/7/2021 00:00:00,P04-2022
CEO,RESIDENTIAL ACCOMMODATION,PREMISES RELATED EXPENDITURE,BUILDING REPAIRS & MAINTENANCE,2222,P112930-SERVICE-Cut Back Weeds and Shingle Area Around Buildi,25/7/2021 00:00:00,250218,590,KE0023,KENDALL & SONS LIMITED,28/6/2021 00:00:00,25/7/2021 00:00:00,P04-2022
CEO,COMMERCIAL ACCOMMODATION,PREMISES RELATED EXPENDITURE,BUILDING REPAIRS & MAINTENANCE,2222,P111994-SERVICE-2 x Stop blocks concrete barriers,07/07/2021 00:00,249891,60,NA0171,NAIVETTE SERVICES LTD,28/6/2021 00:00:00,25/7/2021 00:00:00,P04-2022
,LEE VALLEY MARINA SPRINGFIELD,PREMISES RELATED EXPENDITURE,BUILDING REPAIRS & MAINTENANCE,2222,P112205-SERVICE-To supply vermin & pest control,07/05/2021 00:00,249955,375,VE0006,VERMINATE CITY & RURAL PEST CONTROL LTD,28/6/2021 00:00:00,25/7/2021 00:00:00,P04-2022
,LEE VALLEY MARINA SPRINGFIELD,PREMISES RELATED EXPENDITURE,BUILDING REPAIRS & MAINTENANCE,2222,P112677-SERVICE-Replace damaged finger guard mounting plate,07/12/2021 00:00,250044,85,DE0013,DENNIS SECURITY CENTRE,28/6/2021 00:00:00,25/7/2021 00:00:00,P04-2022
,LEE VALLEY MARINA SPRINGFIELD,PREMISES RELATED EXPENDITURE,BUILDING REPAIRS & MAINTENANCE,2222,P112677-SERVICE-Replace and set up IP camera in chandley,07/12/2021 00:00,250045,235.42,DE0013,DENNIS SECURITY CENTRE,28/6/2021 00:00:00,25/7/2021 00:00:00,P04-2022
,LEE VALLEY MARINA SPRINGFIELD,PREMISES RELATED EXPENDITURE,BUILDING REPAIRS & MAINTENANCE,2222,P112678-SERVICE-Replace Main gate faulty flashing light unit,07/12/2021 00:00,250046,849.36,DE0013,DENNIS SECURITY CENTRE,28/6/2021 00:00:00,25/7/2021 00:00:00,P04-2022
,LEE VALLEY MARINA SPRINGFIELD,PREMISES RELATED EXPENDITURE,BUILDING REPAIRS & MAINTENANCE,2222,P112205-SERVICE-To supply vermin & pest control,07/12/2021 00:00,250071,375,VE0006,VERMINATE CITY & RURAL PEST CONTROL LTD,28/6/2021 00:00:00,25/7/2021 00:00:00,P04-2022
P&V,LEE VALLEY FARM HOLYFIELDHALL,PREMISES RELATED EXPENDITURE,BUILDING REPAIRS & MAINTENANCE,2222,P111466-SERVICE-Building Repairs,07/08/2021 00:00,249923,23.82,JE0011,SAINT-GOBAIN BUILDING DISTRIBUTION,28/6/2021 00:00:00,25/7/2021 00:00:00,P04-2022
P&V,LEE VALLEY FARM HOLYFIELDHALL,PREMISES RELATED EXPENDITURE,BUILDING REPAIRS & MAINTENANCE,2222,P113001-SERVICE-Various Works,13/7/2021 00:00:00,250213,834,BR0018,BRADSHAW ELECTRICAL LIMITED,28/6/2021 00:00:00,25/7/2021 00:00:00,P04-2022
P&V,LEE VALLEY FARM HOLYFIELDHALL,PREMISES RELATED EXPENDITURE,BUILDING REPAIRS & MAINTENANCE,2222,P113003-SERVICE-Steel,13/7/2021 00:00:00,250281,105,JP0017,JPS STEEL FABRICATION LTD,28/6/2021 00:00:00,25/7/2021 00:00:00,P04-2022
P&V,GUNPOWDER PARK,PREMISES RELATED EXPENDITURE,BUILDING REPAIRS & MAINTENANCE,2222,P113012-SERVICE-Unblock Ladies Toilet - GPP,20/7/2021 00:00:00,250296,85,RE0094,REACT 2 IT (BUILDING & REFURBISHMENT) LTD,28/6/2021 00:00:00,25/7/2021 00:00:00,P04-2022
P&V,RIVER LEE COUNTRY PARK,PREMISES RELATED EXPENDITURE,BUILDING REPAIRS & MAINTENANCE,2222,KENDALL & SONS LIMITED,25/7/2021 00:00:00,249094,395,KE0023,KENDALL & SONS LIMITED,28/6/2021 00:00:00,25/7/2021 00:00:00,P04-2022
P&V,RIVER LEE COUNTRY PARK,PREMISES RELATED EXPENDITURE,BUILDING REPAIRS & MAINTENANCE,2222,P111890-SERVICE-Water Leak at Showground,25/7/2021 00:00:00,249094,395,KE0023,KENDALL & SONS LIMITED,28/6/2021 00:00:00,25/7/2021 00:00:00,P04-2022
P&V,RIVER LEE COUNTRY PARK,PREMISES RELATED EXPENDITURE,BUILDING REPAIRS & MAINTENANCE,2222,P111890-SERVICE-Water Leak at Showground,25/7/2021 00:00:00,249094,480,KE0023,KENDALL & SONS LIMITED,28/6/2021 00:00:00,25/7/2021 00:00:00,P04-2022
P&V,RIVER LEE COUNTRY PARK,PREMISES RELATED EXPENDITURE,BUILDING REPAIRS & MAINTENANCE,2222,KENDALL & SONS LIMITED,25/7/2021 00:00:00,249094,-480,KE0023,KENDALL & SONS LIMITED,28/6/2021 00:00:00,25/7/2021 00:00:00,P04-2022
P&V,RIVER LEE COUNTRY PARK,PREMISES RELATED EXPENDITURE,BUILDING REPAIRS & MAINTENANCE,2222,KENDALL & SONS LIMITED,25/7/2021 00:00:00,249094,60,KE0023,KENDALL & SONS LIMITED,28/6/2021 00:00:00,25/7/2021 00:00:00,P04-2022
P&V,RIVER LEE COUNTRY PARK,PREMISES RELATED EXPENDITURE,BUILDING REPAIRS & MAINTENANCE,2222,KENDALL & SONS LIMITED,25/7/2021 00:00:00,249094,420,KE0023,KENDALL & SONS LIMITED,28/6/2021 00:00:00,25/7/2021 00:00:00,P04-2022
P&V,RIVER LEE COUNTRY PARK,PREMISES RELATED EXPENDITURE,BUILDING REPAIRS & MAINTENANCE,2222,KENDALL & SONS LIMITED,25/7/2021 00:00:00,249094,-395,KE0023,KENDALL & SONS LIMITED,28/6/2021 00:00:00,25/7/2021 00:00:00,P04-2022
P&V,RIVER LEE COUNTRY PARK,PREMISES RELATED EXPENDITURE,BUILDING REPAIRS & MAINTENANCE,2222,KENDALL & SONS LIMITED,25/7/2021 00:00:00,250329,-395,KE0023,KENDALL & SONS LIMITED,28/6/2021 00:00:00,25/7/2021 00:00:00,P04-2022
P&V,RIVER LEE COUNTRY PARK,PREMISES RELATED EXPENDITURE,BUILDING REPAIRS & MAINTENANCE,2222,KENDALL & SONS LIMITED,25/7/2021 00:00:00,250329,395,KE0023,KENDALL & SONS LIMITED,28/6/2021 00:00:00,25/7/2021 00:00:00,P04-2022
P&V,RIVER LEE COUNTRY PARK,PREMISES RELATED EXPENDITURE,BUILDING REPAIRS & MAINTENANCE,2222,P111890-SERVICE-Water Leak at Showground,25/7/2021 00:00:00,250329,-395,KE0023,KENDALL & SONS LIMITED,28/6/2021 00:00:00,25/7/2021 00:00:00,P04-2022
P&V,RIVER LEE COUNTRY PARK,PREMISES RELATED EXPENDITURE,BUILDING REPAIRS & MAINTENANCE,2222,KENDALL & SONS LIMITED,25/7/2021 00:00:00,250329,480,KE0023,KENDALL & SONS LIMITED,28/6/2021 00:00:00,25/7/2021 00:00:00,P04-2022
P&V,RIVER LEE COUNTRY PARK,PREMISES RELATED EXPENDITURE,BUILDING REPAIRS & MAINTENANCE,2222,KENDALL & SONS LIMITED,25/7/2021 00:00:00,250329,-60,KE0023,KENDALL & SONS LIMITED,28/6/2021 00:00:00,25/7/2021 00:00:00,P04-2022
P&V,RIVER LEE COUNTRY PARK,PREMISES RELATED EXPENDITURE,BUILDING REPAIRS & MAINTENANCE,2222,KENDALL & SONS LIMITED,25/7/2021 00:00:00,250329,-420,KE0023,KENDALL & SONS LIMITED,28/6/2021 00:00:00,25/7/2021 00:00:00,P04-2022
P&V,RIVER LEE COUNTRY PARK,PREMISES RELATED EXPENDITURE,BUILDING REPAIRS & MAINTENANCE,2222,P111890-SERVICE-Water Leak at Showground,25/7/2021 00:00:00,250329,-480,KE0023,KENDALL & SONS LIMITED,28/6/2021 00:00:00,25/7/2021 00:00:00,P04-2022
P&V,RIVER LEE COUNTRY PARK,PREMISES RELATED EXPENDITURE,BUILDING REPAIRS & MAINTENANCE,2222,P112714-SERVICE-Electrical Works at Pindar Toilets,25/7/2021 00:00:00,250487,620,BR0018,BRADSHAW ELECTRICAL LIMITED,28/6/2021 00:00:00,25/7/2021 00:00:00,P04-2022
,LEE VALLEY VELOPARK,PREMISES RELATED EXPENDITURE,BUILDING REPAIRS & MAINTENANCE,2222,P113114-SERVICE-Card Access System Works,20/7/2021 00:00:00,249922,281,AD0015,ADT FIRE & SECURITY PLC,28/6/2021 00:00:00,25/7/2021 00:00:00,P04-2022
,LEE VALLEY VELOPARK,PREMISES RELATED EXPENDITURE,BUILDING REPAIRS & MAINTENANCE,2222,P113057-SERVICE-Intruder System Works 1 July,19/7/2021 00:00:00,250273,619.77,AD0015,ADT FIRE & SECURITY PLC,28/6/2021 00:00:00,25/7/2021 00:00:00,P04-2022
,LEE VALLEY VELOPARK,PREMISES RELATED EXPENDITURE,BUILDING REPAIRS & MAINTENANCE,2222,P112807-SERVICE-Water Fountain,25/7/2021 00:00:00,250576,105,GI0137,R & P GIBBS LIMITED,28/6/2021 00:00:00,25/7/2021 00:00:00,P04-2022
,LEE VALLEY VELOPARK,PREMISES RELATED EXPENDITURE,BUILDING REPAIRS & MAINTENANCE,2222,KENDALL & SONS LIMITED,25/7/2021 00:00:00,250585,610.5,KE0023,KENDALL & SONS LIMITED,28/6/2021 00:00:00,25/7/2021 00:00:00,P04-2022
,LEE VALLEY VELOPARK,PREMISES RELATED EXPENDITURE,BUILDING REPAIRS & MAINTENANCE,2222,KENDALL & SONS LIMITED,25/7/2021 00:00:00,250585,-735.5,KE0023,KENDALL & SONS LIMITED,28/6/2021 00:00:00,25/7/2021 00:00:00,P04-2022
,LEE VALLEY VELOPARK,PREMISES RELATED EXPENDITURE,BUILDING REPAIRS & MAINTENANCE,2222,P110629-SERVICE-Additiponal BMX Fence Works,25/7/2021 00:00:00,250585,735.5,KE0023,KENDALL & SONS LIMITED,28/6/2021 00:00:00,25/7/2021 00:00:00,P04-2022
,LEE VALLEY VELOPARK,PREMISES RELATED EXPENDITURE,BUILDING REPAIRS & MAINTENANCE,2222,KENDALL & SONS LIMITED,25/7/2021 00:00:00,250585,125,KE0023,KENDALL & SONS LIMITED,28/6/2021 00:00:00,25/7/2021 00:00:00,P04-2022
,LV HOCKEY AND TENNIS CENTRE,PREMISES RELATED EXPENDITURE,BUILDING REPAIRS & MAINTENANCE,2222,P112919-SERVICE-Chlorine Dioxide Unit Repairs,13/7/2021 00:00:00,250043,649,GO0211,GOODWATER LTD,28/6/2021 00:00:00,25/7/2021 00:00:00,P04-2022
,LV HOCKEY AND TENNIS CENTRE,PREMISES RELATED EXPENDITURE,BUILDING REPAIRS & MAINTENANCE,2222,P109251-SERVICE-Service Maintenance Contract,13/7/2021 00:00:00,250195,72,AR0335,ARJO UK LTD (FRMLY ARJOHUNTLEIGH UK),28/6/2021 00:00:00,25/7/2021 00:00:00,P04-2022
,LV HOCKEY AND TENNIS CENTRE,PREMISES RELATED EXPENDITURE,BUILDING REPAIRS & MAINTENANCE,2222,P113100-SERVICE-Drainage Works,25/7/2021 00:00:00,250580,220,RE0094,REACT 2 IT (BUILDING & REFURBISHMENT) LTD,28/6/2021 00:00:00,25/7/2021 00:00:00,P04-2022
,LEE VALLEY RIDING CENTRE,PREMISES RELATED EXPENDITURE,BUILDING REPAIRS & MAINTENANCE,2222,P112358-SERVICE-soap and sanitary dispensers and bins,07/06/2021 00:00,249422,279.55,PE0015,PHS GROUP PLC,28/6/2021 00:00:00,25/7/2021 00:00:00,P04-2022
,LEE VALLEY RIDING CENTRE,PREMISES RELATED EXPENDITURE,BUILDING REPAIRS & MAINTENANCE,2222,P112358-SERVICE-soap and sanitary dispensers and bins,07/05/2021 00:00,249688,91.17,PE0015,PHS GROUP PLC,28/6/2021 00:00:00,25/7/2021 00:00:00,P04-2022
,LEE VALLEY RIDING CENTRE,PREMISES RELATED EXPENDITURE,BUILDING REPAIRS & MAINTENANCE,2222,P112903-SERVICE-electronic fron gates repair,07/06/2021 00:00,249702,215,EA0001,EAGLE AUTOMATION SYSTEMS LTD,28/6/2021 00:00:00,25/7/2021 00:00:00,P04-2022
,LEE VALLEY RIDING CENTRE,PREMISES RELATED EXPENDITURE,BUILDING REPAIRS & MAINTENANCE,2222,P112358-SERVICE-soap and sanitary dispensers and bins,07/05/2021 00:00,249902,282.58,PE0015,PHS GROUP PLC,28/6/2021 00:00:00,25/7/2021 00:00:00,P04-2022
,LEE VALLEY RIDING CENTRE,PREMISES RELATED EXPENDITURE,BUILDING REPAIRS & MAINTENANCE,2222,P113127-SERVICE-intruder alarm maintenance & redcare,20/7/2021 00:00:00,250251,253.45,AD0015,ADT FIRE & SECURITY PLC,28/6/2021 00:00:00,25/7/2021 00:00:00,P04-2022
,LEE VALLEY RIDING CENTRE,PREMISES RELATED EXPENDITURE,BUILDING REPAIRS & MAINTENANCE,2222,P113128-SERVICE-fire alarm call out and repair,20/7/2021 00:00:00,250252,166.64,AD0015,ADT FIRE & SECURITY PLC,28/6/2021 00:00:00,25/7/2021 00:00:00,P04-2022
,LV LEISURE CENTRE CAMPSITE,PREMISES RELATED EXPENDITURE,BUILDING REPAIRS & MAINTENANCE,2222,P113198-SERVICE-pull cord,25/7/2021 00:00:00,249482,123,RV0035,RVTV SECURITY GROUP LTD,28/6/2021 00:00:00,25/7/2021 00:00:00,P04-2022
,LV LEISURE CENTRE CAMPSITE,PREMISES RELATED EXPENDITURE,BUILDING REPAIRS & MAINTENANCE,2222,P112839-SERVICE-Changed valve,19/7/2021 00:00:00,249971,510,SO0400,SOUTHERN GREEN SERVICES LIMITED,28/6/2021 00:00:00,25/7/2021 00:00:00,P04-2022
,LV LEISURE CENTRE CAMPSITE,PREMISES RELATED EXPENDITURE,BUILDING REPAIRS & MAINTENANCE,2222,P113106-SERVICE-Electrical repairs,25/7/2021 00:00:00,249979,1540,BR0018,BRADSHAW ELECTRICAL LIMITED,28/6/2021 00:00:00,25/7/2021 00:00:00,P04-2022
,LV LEISURE CENTRE CAMPSITE,PREMISES RELATED EXPENDITURE,BUILDING REPAIRS & MAINTENANCE,2222,P113107-SERVICE-Electrical issues,25/7/2021 00:00:00,249982,290,BR0018,BRADSHAW ELECTRICAL LIMITED,28/6/2021 00:00:00,25/7/2021 00:00:00,P04-2022
,LV LEISURE CENTRE CAMPSITE,PREMISES RELATED EXPENDITURE,BUILDING REPAIRS & MAINTENANCE,2222,P112629-SERVICE-Boiler main shower block,25/7/2021 00:00:00,250306,10815.49,GI0137,R & P GIBBS LIMITED,28/6/2021 00:00:00,25/7/2021 00:00:00,P04-2022
,LEE VALLEY ATHLETICS CENTRE,PREMISES RELATED EXPENDITURE,BUILDING REPAIRS & MAINTENANCE,2222,P113265-SERVICE-LVAC INVOICE P7062 LEG CURL FRAME REPAIR 15/7,25/7/2021 00:00:00,250492,135,PR0446,PRECISION GYM SERVICES LTD,28/6/2021 00:00:00,25/7/2021 00:00:00,P04-2022
,LEE VALLEY ATHLETICS CENTRE,PREMISES RELATED EXPENDITURE,BUILDING REPAIRS & MAINTENANCE,2222,P112157-SERVICE-LVAC CALL OUT & LABOUR & PARTS - SERVICE NO 5,20/7/2021 00:00:00,250494,252.5,GO0221,GOLF CAR UK LIMITED,28/6/2021 00:00:00,25/7/2021 00:00:00,P04-2022
,LEE VALLEY ATHLETICS CENTRE,PREMISES RELATED EXPENDITURE,BUILDING REPAIRS & MAINTENANCE,2222,P113167-SERVICE-LVAC INVOICE 154474 KEYS,22/7/2021 00:00:00,250495,21.1,GO0221,GOLF CAR UK LIMITED,28/6/2021 00:00:00,25/7/2021 00:00:00,P04-2022
,LEE VALLEY ATHLETICS CENTRE,PREMISES RELATED EXPENDITURE,BUILDING REPAIRS & MAINTENANCE,2222,P113167-SERVICE-CARRAIGE,22/7/2021 00:00:00,250495,8.5,GO0221,GOLF CAR UK LIMITED,28/6/2021 00:00:00,25/7/2021 00:00:00,P04-2022
,LEE VALLEY WHITE WATER CENTRE,PREMISES RELATED EXPENDITURE,BUILDING REPAIRS & MAINTENANCE,2222,P112857-SERVICE-Parts used on the major service contract visi,13/7/2021 00:00:00,249997,1061.28,BR0378,BROADWATER TECHNOLOGIES LTD,28/6/2021 00:00:00,25/7/2021 00:00:00,P04-2022
,LEE VALLEY WHITE WATER CENTRE,PREMISES RELATED EXPENDITURE,BUILDING REPAIRS & MAINTENANCE,2222,P112005-SERVICE-Shower valve replacememt,19/7/2021 00:00:00,250307,1402.39,GI0137,R & P GIBBS LIMITED,28/6/2021 00:00:00,25/7/2021 00:00:00,P04-2022
,LEE VALLEY WHITE WATER CENTRE,PREMISES RELATED EXPENDITURE,BUILDING REPAIRS & MAINTENANCE,2222,P113092-SERVICE-Assist S Gibbons in investigating earth fault,20/7/2021 00:00:00,250308,320,GI0137,R & P GIBBS LIMITED,28/6/2021 00:00:00,25/7/2021 00:00:00,P04-2022
CEO,LVLC SERVICE CHARGE,PREMISES RELATED EXPENDITURE,BUILDING REPAIRS & MAINTENANCE,2222,P112685-SERVICE-5x ASSA Locks - C-1-1-4,07/12/2021 00:00,249991,419.32,LO0020,LOCK AND KEY SERVICES,28/6/2021 00:00:00,25/7/2021 00:00:00,P04-2022
CEO,LVLC SERVICE CHARGE,PREMISES RELATED EXPENDITURE,BUILDING REPAIRS & MAINTENANCE,2222,P112685-SERVICE-ASSA Lock Delivery,07/12/2021 00:00,249991,8.4,LO0020,LOCK AND KEY SERVICES,28/6/2021 00:00:00,25/7/2021 00:00:00,P04-2022
CEO,LVLC SERVICE CHARGE,PREMISES RELATED EXPENDITURE,BUILDING REPAIRS & MAINTENANCE,2222,KENDALL & SONS LIMITED,25/7/2021 00:00:00,250331,449,KE0023,KENDALL & SONS LIMITED,28/6/2021 00:00:00,25/7/2021 00:00:00,P04-2022
CEO,LVLC SERVICE CHARGE,PREMISES RELATED EXPENDITURE,BUILDING REPAIRS & MAINTENANCE,2222,KENDALL & SONS LIMITED,25/7/2021 00:00:00,250331,120,KE0023,KENDALL & SONS LIMITED,28/6/2021 00:00:00,25/7/2021 00:00:00,P04-2022
CEO,LVLC SERVICE CHARGE,PREMISES RELATED EXPENDITURE,BUILDING REPAIRS & MAINTENANCE,2222,KENDALL & SONS LIMITED,25/7/2021 00:00:00,250331,-569,KE0023,KENDALL & SONS LIMITED,28/6/2021 00:00:00,25/7/2021 00:00:00,P04-2022
CEO,LVLC SERVICE CHARGE,PREMISES RELATED EXPENDITURE,BUILDING REPAIRS & MAINTENANCE,2222,P112991-SERVICE-Cut Back Bushes and Install New Bollards at P,25/7/2021 00:00:00,250331,569,KE0023,KENDALL & SONS LIMITED,28/6/2021 00:00:00,25/7/2021 00:00:00,P04-2022
,LEE VALLEY ATHLETICS CENTRE,PREMISES RELATED EXPENDITURE,ENGINEERING SERVICES CONTRACT,2223,P111593-SERVICE-ANNUAL FIRE EXTINGUISHERS 21/22,07/01/2021 00:00,249233,1026.87,TJ0009,T.J.FIRE & SECURITY,28/6/2021 00:00:00,25/7/2021 00:00:00,P04-2022
,LEE VALLEY ATHLETICS CENTRE,PREMISES RELATED EXPENDITURE,ENGINEERING SERVICES CONTRACT,2223,P111755-SERVICE-LVAC ANNUAL MAINTENANCE 21/22,07/01/2021 00:00,249439,1415,KE0163,KERSHAW MECHANICAL SERVICES LTD,28/6/2021 00:00:00,25/7/2021 00:00:00,P04-2022
,LEE VALLEY ATHLETICS CENTRE,PREMISES RELATED EXPENDITURE,ENGINEERING SERVICES CONTRACT,2223,P111584-SERVICE-LVAC ANNUAL CONTRACT,07/06/2021 00:00,249673,1953,DA0075,D.A.T.A. CLEANING SERVICES,28/6/2021 00:00:00,25/7/2021 00:00:00,P04-2022
,LEE VALLEY ATHLETICS CENTRE,PREMISES RELATED EXPENDITURE,ENGINEERING SERVICES CONTRACT,2223,P111594-SERVICE-BUILDING MANAGEMENT SYSTEM ANNUAL 21/22,07/06/2021 00:00,249850,485,TO0224,TOTAL CONTROL SERVICES LIMITED,28/6/2021 00:00:00,25/7/2021 00:00:00,P04-2022
,LEE VALLEY ATHLETICS CENTRE,PREMISES RELATED EXPENDITURE,ENGINEERING SERVICES CONTRACT,2223,P108872-SERVICE-LVAC ANNUAL CONTRACT OCT 2020 TO MARCH 2021,07/01/2021 00:00,249859,80,CH0675,CHEAPERWASTE LIMITED,28/6/2021 00:00:00,25/7/2021 00:00:00,P04-2022
,LEE VALLEY ATHLETICS CENTRE,PREMISES RELATED EXPENDITURE,ENGINEERING SERVICES CONTRACT,2223,P112900-SERVICE-LVAC STOCK TAKING 17.6.21 -  INV V21060645,07/06/2021 00:00,249898,133,VE0038,VENNERS LTD,28/6/2021 00:00:00,25/7/2021 00:00:00,P04-2022
,LEE VALLEY ATHLETICS CENTRE,PREMISES RELATED EXPENDITURE,ENGINEERING SERVICES CONTRACT,2223,P111604-SERVICE-LVAC ANNUAL REFUSE COLLECTION 21/22,13/7/2021 00:00:00,249959,334.8,SI0659,SIMPLY WASTE SOLUTIONS,28/6/2021 00:00:00,25/7/2021 00:00:00,P04-2022
,LEE VALLEY ATHLETICS CENTRE,PREMISES RELATED EXPENDITURE,ENGINEERING SERVICES CONTRACT,2223,P111755-SERVICE-LVAC ANNUAL MAINTENANCE 21/22,25/7/2021 00:00:00,250563,1415,KE0163,KERSHAW MECHANICAL SERVICES LTD,28/6/2021 00:00:00,25/7/2021 00:00:00,P04-2022
,LEE VALLEY WHITE WATER CENTRE,PREMISES RELATED EXPENDITURE,ENGINEERING SERVICES CONTRACT,2223,P112007-SERVICE-To provide the services of an authorised pers,07/08/2021 00:00,249948,1530,AM0309,AMP 5 LIMITED,28/6/2021 00:00:00,25/7/2021 00:00:00,P04-2022
P&V,LEE VALLEY FARM HOLYFIELDHALL,PREMISES RELATED EXPENDITURE,HLS EXPENDITURE,2234,P112935-SERVICE-Seeds,07/08/2021 00:00,249100,516,HA0013,HARLOW AGRICULTURAL MERCHANTS,28/6/2021 00:00:00,25/7/2021 00:00:00,P04-2022
CEO,COMMERCIAL ACCOMMODATION,PREMISES RELATED EXPENDITURE,EAST HALE ALLOTMENTS,2261,P111998-SERVICE-11 Grass cuts throughout the season,07/07/2021 00:00,249757,604.8,GL0214,GLENDALE GROUNDS MANAGEMENT LIMITED,28/6/2021 00:00:00,25/7/2021 00:00:00,P04-2022
CEO,COMMERCIAL ACCOMMODATION,PREMISES RELATED EXPENDITURE,EAST HALE ALLOTMENTS,2261,P112083-SERVICE-Allotment Bins,07/08/2021 00:00,249934,107.81,CL0037,VEOLIA ES (UK) LTD,28/6/2021 00:00:00,25/7/2021 00:00:00,P04-2022
P&V,MYDDELTON HOUSE,PREMISES RELATED EXPENDITURE,ENERGY COSTS (ELECTRICITY),2332,KENT COUNTY COUNCIL (KCS),07/05/2021 00:00,249697,229.67,KE0007,KENT COUNTY COUNCIL (KCS),28/6/2021 00:00:00,25/7/2021 00:00:00,P04-2022
P&V,MYDDELTON HOUSE,PREMISES RELATED EXPENDITURE,ENERGY COSTS (ELECTRICITY),2332,KENT COUNTY COUNCIL (KCS),07/05/2021 00:00,249698,1116.72,KE0007,KENT COUNTY COUNCIL (KCS),28/6/2021 00:00:00,25/7/2021 00:00:00,P04-2022
P&V,MYDDELTON HOUSE,PREMISES RELATED EXPENDITURE,ENERGY COSTS (ELECTRICITY),2332,KENT COUNTY COUNCIL (KCS),25/7/2021 00:00:00,250553,1635.47,KE0007,KENT COUNTY COUNCIL (KCS),28/6/2021 00:00:00,25/7/2021 00:00:00,P04-2022
CEO,COMMERCIAL ACCOMMODATION,PREMISES RELATED EXPENDITURE,ENERGY COSTS (ELECTRICITY),2332,E-ON,07/08/2021 00:00,249637,169.44,PO0025,E-ON,28/6/2021 00:00:00,25/7/2021 00:00:00,P04-2022
CEO,COMMERCIAL ACCOMMODATION,PREMISES RELATED EXPENDITURE,ENERGY COSTS (ELECTRICITY),2332,E-ON,22/7/2021 00:00:00,249976,13.44,PO0025,E-ON,28/6/2021 00:00:00,25/7/2021 00:00:00,P04-2022
CEO,COMMERCIAL ACCOMMODATION,PREMISES RELATED EXPENDITURE,ENERGY COSTS (ELECTRICITY),2332,E-ON NEXT ENERGY LTD,22/7/2021 00:00:00,250031,32,EO0398,E-ON NEXT ENERGY LTD,28/6/2021 00:00:00,25/7/2021 00:00:00,P04-2022
CEO,COMMERCIAL ACCOMMODATION,PREMISES RELATED EXPENDITURE,ENERGY COSTS (ELECTRICITY),2332,E-ON,22/7/2021 00:00:00,250339,16.32,PO0025,E-ON,28/6/2021 00:00:00,25/7/2021 00:00:00,P04-2022
,LEE VALLEY MARINA SPRINGFIELD,PREMISES RELATED EXPENDITURE,ENERGY COSTS (ELECTRICITY),2332,KENT COUNTY COUNCIL (KCS),20/7/2021 00:00:00,250317,2049.91,KE0007,KENT COUNTY COUNCIL (KCS),28/6/2021 00:00:00,25/7/2021 00:00:00,P04-2022
,LEE VALLEY CARAVAN PARK,PREMISES RELATED EXPENDITURE,ENERGY COSTS (ELECTRICITY),2332,KENT COUNTY COUNCIL (KCS),25/7/2021 00:00:00,250315,5583.47,KE0007,KENT COUNTY COUNCIL (KCS),28/6/2021 00:00:00,25/7/2021 00:00:00,P04-2022
P&V,EAST INDIA DOCK AND BOW CREEK,PREMISES RELATED EXPENDITURE,ENERGY COSTS (ELECTRICITY),2332,KENT COUNTY COUNCIL (KCS),07/05/2021 00:00,249704,130.59,KE0007,KENT COUNTY COUNCIL (KCS),28/6/2021 00:00:00,25/7/2021 00:00:00,P04-2022
P&V,NORTH AREA RANGERS,PREMISES RELATED EXPENDITURE,ENERGY COSTS (ELECTRICITY),2332,KENT COUNTY COUNCIL (KCS),07/06/2021 00:00,249367,150.28,KE0007,KENT COUNTY COUNCIL (KCS),28/6/2021 00:00:00,25/7/2021 00:00:00,P04-2022
P&V,SOUTH AREA RANGERS,PREMISES RELATED EXPENDITURE,ENERGY COSTS (ELECTRICITY),2332,KENT COUNTY COUNCIL (KCS),21/7/2021 00:00:00,249346,300.42,KE0007,KENT COUNTY COUNCIL (KCS),28/6/2021 00:00:00,25/7/2021 00:00:00,P04-2022
P&V,GUNPOWDER PARK,PREMISES RELATED EXPENDITURE,ENERGY COSTS (ELECTRICITY),2332,KENT COUNTY COUNCIL (KCS),25/7/2021 00:00:00,250472,203.48,KE0007,KENT COUNTY COUNCIL (KCS),28/6/2021 00:00:00,25/7/2021 00:00:00,P04-2022
,LEE VALLEY VELOPARK,PREMISES RELATED EXPENDITURE,ENERGY COSTS (ELECTRICITY),2332,KENT COUNTY COUNCIL (KCS),07/07/2021 00:00,249739,215.22,KE0007,KENT COUNTY COUNCIL (KCS),28/6/2021 00:00:00,25/7/2021 00:00:00,P04-2022
,LEE VALLEY VELOPARK,PREMISES RELATED EXPENDITURE,ENERGY COSTS (ELECTRICITY),2332,KENT COUNTY COUNCIL (KCS),07/07/2021 00:00,249740,168.46,KE0007,KENT COUNTY COUNCIL (KCS),28/6/2021 00:00:00,25/7/2021 00:00:00,P04-2022
,LEE VALLEY VELOPARK,PREMISES RELATED EXPENDITURE,ENERGY COSTS (ELECTRICITY),2332,KENT COUNTY COUNCIL (KCS),19/7/2021 00:00:00,250316,70.39,KE0007,KENT COUNTY COUNCIL (KCS),28/6/2021 00:00:00,25/7/2021 00:00:00,P04-2022
,LEE VALLEY VELOPARK,PREMISES RELATED EXPENDITURE,ENERGY COSTS (ELECTRICITY),2332,KENT COUNTY COUNCIL (KCS),19/7/2021 00:00:00,250473,40.68,KE0007,KENT COUNTY COUNCIL (KCS),28/6/2021 00:00:00,25/7/2021 00:00:00,P04-2022
,LEE VALLEY VELOPARK,PREMISES RELATED EXPENDITURE,ENERGY COSTS (ELECTRICITY),2332,EDF ENERGY CUSTOMERS PLC,19/7/2021 00:00:00,250525,0.49,ED0321,EDF ENERGY CUSTOMERS PLC,28/6/2021 00:00:00,25/7/2021 00:00:00,P04-2022
,LEE VALLEY VELOPARK,PREMISES RELATED EXPENDITURE,ENERGY COSTS (ELECTRICITY),2332,EDF ENERGY CUSTOMERS PLC,19/7/2021 00:00:00,250525,12.73,ED0321,EDF ENERGY CUSTOMERS PLC,28/6/2021 00:00:00,25/7/2021 00:00:00,P04-2022
,LEE VALLEY VELOPARK,PREMISES RELATED EXPENDITURE,ENERGY COSTS (ELECTRICITY),2332,NPOWER LIMITED,25/7/2021 00:00:00,250537,12845.13,NP0123,NPOWER LIMITED,28/6/2021 00:00:00,25/7/2021 00:00:00,P04-2022
,LEE VALLEY VELOPARK,PREMISES RELATED EXPENDITURE,ENERGY COSTS (ELECTRICITY),2332,KENT COUNTY COUNCIL (KCS),19/7/2021 00:00:00,250547,103.64,KE0007,KENT COUNTY COUNCIL (KCS),28/6/2021 00:00:00,25/7/2021 00:00:00,P04-2022
,LV HOCKEY AND TENNIS CENTRE,PREMISES RELATED EXPENDITURE,ENERGY COSTS (ELECTRICITY),2332,NPOWER LIMITED,25/7/2021 00:00:00,250536,7618.32,NP0123,NPOWER LIMITED,28/6/2021 00:00:00,25/7/2021 00:00:00,P04-2022
,LEE VALLEY RIDING CENTRE,PREMISES RELATED EXPENDITURE,ENERGY COSTS (ELECTRICITY),2332,EDF ENERGY 1 LIMITED,07/01/2021 00:00,249638,58,ED0077,EDF ENERGY 1 LIMITED,28/6/2021 00:00:00,25/7/2021 00:00:00,P04-2022
,LEE VALLEY RIDING CENTRE,PREMISES RELATED EXPENDITURE,ENERGY COSTS (ELECTRICITY),2332,NPOWER LIMITED,07/01/2021 00:00,249639,-522.46,NP0123,NPOWER LIMITED,28/6/2021 00:00:00,25/7/2021 00:00:00,P04-2022
,LEE VALLEY RIDING CENTRE,PREMISES RELATED EXPENDITURE,ENERGY COSTS (ELECTRICITY),2332,NPOWER LIMITED,07/01/2021 00:00,249640,-170.3,NP0123,NPOWER LIMITED,28/6/2021 00:00:00,25/7/2021 00:00:00,P04-2022
,LEE VALLEY RIDING CENTRE,PREMISES RELATED EXPENDITURE,ENERGY COSTS (ELECTRICITY),2332,NPOWER LIMITED,07/01/2021 00:00,249641,1910.68,NP0123,NPOWER LIMITED,28/6/2021 00:00:00,25/7/2021 00:00:00,P04-2022
,LEE VALLEY RIDING CENTRE,PREMISES RELATED EXPENDITURE,ENERGY COSTS (ELECTRICITY),2332,EDF ENERGY 1 LIMITED,25/7/2021 00:00:00,250748,52.93,ED0077,EDF ENERGY 1 LIMITED,28/6/2021 00:00:00,25/7/2021 00:00:00,P04-2022
,LEE VALLEY ICE CENTRE,PREMISES RELATED EXPENDITURE,ENERGY COSTS (ELECTRICITY),2332,NPOWER LIMITED,30/6/2021 00:00:00,248582,10714.86,NP0123,NPOWER LIMITED,28/6/2021 00:00:00,25/7/2021 00:00:00,P04-2022
,LEE VALLEY ICE CENTRE,PREMISES RELATED EXPENDITURE,ENERGY COSTS (ELECTRICITY),2332,NPOWER LIMITED,30/6/2021 00:00:00,249176,11776.06,NP0123,NPOWER LIMITED,28/6/2021 00:00:00,25/7/2021 00:00:00,P04-2022
,LEE VALLEY ICE CENTRE,PREMISES RELATED EXPENDITURE,ENERGY COSTS (ELECTRICITY),2332,NPOWER LIMITED,25/7/2021 00:00:00,250535,13079.49,NP0123,NPOWER LIMITED,28/6/2021 00:00:00,25/7/2021 00:00:00,P04-2022
P&V,FORMER LV LIDO SITE,PREMISES RELATED EXPENDITURE,ENERGY COSTS (ELECTRICITY),2332,KENT COUNTY COUNCIL (KCS),25/7/2021 00:00:00,250548,33.91,KE0007,KENT COUNTY COUNCIL (KCS),28/6/2021 00:00:00,25/7/2021 00:00:00,P04-2022
,LV LEISURE CENTRE CAMPSITE,PREMISES RELATED EXPENDITURE,ENERGY COSTS (ELECTRICITY),2332,NPOWER LIMITED,19/7/2021 00:00:00,250534,3487.54,NP0123,NPOWER LIMITED,28/6/2021 00:00:00,25/7/2021 00:00:00,P04-2022
,LEE VALLEY WHITE WATER CENTRE,PREMISES RELATED EXPENDITURE,ENERGY COSTS (ELECTRICITY),2332,NPOWER LIMITED,19/7/2021 00:00:00,250538,16053.42,NP0123,NPOWER LIMITED,28/6/2021 00:00:00,25/7/2021 00:00:00,P04-2022
,LEE VALLEY WHITE WATER CENTRE,PREMISES RELATED EXPENDITURE,ENERGY COSTS (ELECTRICITY),2332,NPOWER LIMITED,19/7/2021 00:00:00,250539,14912.08,NP0123,NPOWER LIMITED,28/6/2021 00:00:00,25/7/2021 00:00:00,P04-2022
,LEE VALLEY WHITE WATER CENTRE,PREMISES RELATED EXPENDITURE,ENERGY COSTS (ELECTRICITY),2332,NPOWER LIMITED,19/7/2021 00:00:00,250540,14509.71,NP0123,NPOWER LIMITED,28/6/2021 00:00:00,25/7/2021 00:00:00,P04-2022
,LEE VALLEY WHITE WATER CENTRE,PREMISES RELATED EXPENDITURE,ENERGY COSTS (ELECTRICITY),2332,NPOWER LIMITED,19/7/2021 00:00:00,250541,9650.68,NP0123,NPOWER LIMITED,28/6/2021 00:00:00,25/7/2021 00:00:00,P04-2022
,LEE VALLEY WHITE WATER CENTRE,PREMISES RELATED EXPENDITURE,ENERGY COSTS (ELECTRICITY),2332,NPOWER LIMITED,19/7/2021 00:00:00,250542,149.85,NP0123,NPOWER LIMITED,28/6/2021 00:00:00,25/7/2021 00:00:00,P04-2022
,LEE VALLEY WHITE WATER CENTRE,PREMISES RELATED EXPENDITURE,ENERGY COSTS (ELECTRICITY),2332,NPOWER LIMITED,19/7/2021 00:00:00,250543,342.48,NP0123,NPOWER LIMITED,28/6/2021 00:00:00,25/7/2021 00:00:00,P04-2022
,LEE VALLEY MARINA SPRINGFIELD,PREMISES RELATED EXPENDITURE,ENERGY COSTS (GAS),2333,KENT COUNTY COUNCIL (KCS),20/7/2021 00:00:00,250285,100.17,KE0007,KENT COUNTY COUNCIL (KCS),28/6/2021 00:00:00,25/7/2021 00:00:00,P04-2022
,LEE VALLEY MARINA STANSTEAD,PREMISES RELATED EXPENDITURE,ENERGY COSTS (GAS),2333,KENT COUNTY COUNCIL (KCS),19/7/2021 00:00:00,250287,82.42,KE0007,KENT COUNTY COUNCIL (KCS),28/6/2021 00:00:00,25/7/2021 00:00:00,P04-2022
,LEE VALLEY MARINA STANSTEAD,PREMISES RELATED EXPENDITURE,ENERGY COSTS (GAS),2333,KENT COUNTY COUNCIL (KCS),19/7/2021 00:00:00,250288,91.41,KE0007,KENT COUNTY COUNCIL (KCS),28/6/2021 00:00:00,25/7/2021 00:00:00,P04-2022
,LEE VALLEY WATERWORKS CENTRE,PREMISES RELATED EXPENDITURE,ENERGY COSTS (GAS),2333,KENT COUNTY COUNCIL (KCS),07/06/2021 00:00,249119,294.57,KE0007,KENT COUNTY COUNCIL (KCS),28/6/2021 00:00:00,25/7/2021 00:00:00,P04-2022
,LEE VALLEY CAMPSITE,PREMISES RELATED EXPENDITURE,ENERGY COSTS (GAS),2333,KENT COUNTY COUNCIL (KCS),20/7/2021 00:00:00,250286,255.63,KE0007,KENT COUNTY COUNCIL (KCS),28/6/2021 00:00:00,25/7/2021 00:00:00,P04-2022
P&V,GUNPOWDER PARK,PREMISES RELATED EXPENDITURE,ENERGY COSTS (GAS),2333,KENT COUNTY COUNCIL (KCS),07/06/2021 00:00,249116,62.89,KE0007,KENT COUNTY COUNCIL (KCS),28/6/2021 00:00:00,25/7/2021 00:00:00,P04-2022
,LEE VALLEY RIDING CENTRE,PREMISES RELATED EXPENDITURE,ENERGY COSTS (GAS),2333,BRITISH GAS BUSINESS,07/01/2021 00:00,249635,84.13,BR0029,BRITISH GAS BUSINESS,28/6/2021 00:00:00,25/7/2021 00:00:00,P04-2022
,LEE VALLEY RIDING CENTRE,PREMISES RELATED EXPENDITURE,ENERGY COSTS (GAS),2333,BRITISH GAS SERVICES (COMMERCI,25/7/2021 00:00:00,250696,115,BR0484,BRITISH GAS SERVICES (COMMERCIAL) LTD,28/6/2021 00:00:00,25/7/2021 00:00:00,P04-2022
,LEE VALLEY RIDING CENTRE,PREMISES RELATED EXPENDITURE,ENERGY COSTS (GAS),2333,BRITISH GAS SERVICES (COMMERCI,25/7/2021 00:00:00,250697,144.3,BR0484,BRITISH GAS SERVICES (COMMERCIAL) LTD,28/6/2021 00:00:00,25/7/2021 00:00:00,P04-2022
,LV LEISURE CENTRE CAMPSITE,PREMISES RELATED EXPENDITURE,ENERGY COSTS (GAS),2333,KENT COUNTY COUNCIL (KCS),19/7/2021 00:00:00,250290,639.79,KE0007,KENT COUNTY COUNCIL (KCS),28/6/2021 00:00:00,25/7/2021 00:00:00,P04-2022
P&V,KING GEORGE RESERVOIR SOUTH,PREMISES RELATED EXPENDITURE,RENT (EXTERNAL),2442,THAMES WATER UTILITIES LIMITED,07/08/2021 00:00,249642,3375,TH0020,THAMES WATER UTILITIES LIMITED-  SAVILLS,28/6/2021 00:00:00,25/7/2021 00:00:00,P04-2022
,LEE VALLEY VELOPARK,PREMISES RELATED EXPENDITURE,BUSINESS RATES,2444,PERIOD 010721-310322,14/7/2021 00:00:00,249628,221327.74,NE0038,LONDON BOROUGH OF NEWHAM,28/6/2021 00:00:00,25/7/2021 00:00:00,P04-2022
P&V,LEE VALLEY FARM HOLYFIELDHALL,PREMISES RELATED EXPENDITURE,COUNCIL TAX,2445,EPPING FOREST DISTRICT COUNCIL,21/7/2021 00:00:00,250258,1258.19,EP0025,EPPING FOREST DISTRICT COUNCIL,28/6/2021 00:00:00,25/7/2021 00:00:00,P04-2022
CEO,RESIDENTIAL ACCOMMODATION,PREMISES RELATED EXPENDITURE,WATER,2555,THAMES WATER UTILITIES LIMITED,07/08/2021 00:00,245107,570.53,TH0015,THAMES WATER UTILITIES LIMITED,28/6/2021 00:00:00,25/7/2021 00:00:00,P04-2022
CEO,RESIDENTIAL ACCOMMODATION,PREMISES RELATED EXPENDITURE,WATER,2555,THAMES WATER UTILITIES LIMITED,07/08/2021 00:00,249633,360.53,TH0015,THAMES WATER UTILITIES LIMITED,28/6/2021 00:00:00,25/7/2021 00:00:00,P04-2022
CEO,RESIDENTIAL ACCOMMODATION,PREMISES RELATED EXPENDITURE,WATER,2555,THAMES WATER UTILITIES LIMITED,07/08/2021 00:00,249634,-1650.2,TH0015,THAMES WATER UTILITIES LIMITED,28/6/2021 00:00:00,25/7/2021 00:00:00,P04-2022
,LEE VALLEY MARINA STANSTEAD,PREMISES RELATED EXPENDITURE,WATER,2555,CASTLE WATER LIMITED,07/08/2021 00:00,250001,126.8,CA0625,CASTLE WATER LIMITED,28/6/2021 00:00:00,25/7/2021 00:00:00,P04-2022
,LEE VALLEY MARINA STANSTEAD,PREMISES RELATED EXPENDITURE,WATER,2555,CASTLE WATER LIMITED,07/08/2021 00:00,250001,121.19,CA0625,CASTLE WATER LIMITED,28/6/2021 00:00:00,25/7/2021 00:00:00,P04-2022
,LEE VALLEY CAMPSITE,PREMISES RELATED EXPENDITURE,WATER,2555,CASTLE WATER LIMITED,07/12/2021 00:00,250000,419.45,CA0625,CASTLE WATER LIMITED,28/6/2021 00:00:00,25/7/2021 00:00:00,P04-2022
P&V,SOUTH AREA RANGERS,PREMISES RELATED EXPENDITURE,WATER,2555,ENVIRONMENT AGENCY,25/7/2021 00:00:00,250751,359.89,EN0024,ENVIRONMENT AGENCY,28/6/2021 00:00:00,25/7/2021 00:00:00,P04-2022
P&V,RIVER LEE COUNTRY PARK,PREMISES RELATED EXPENDITURE,WATER,2555,CASTLE WATER LIMITED,07/01/2021 00:00,249599,105.57,CA0625,CASTLE WATER LIMITED,28/6/2021 00:00:00,25/7/2021 00:00:00,P04-2022
P&V,RIVER LEE COUNTRY PARK,PREMISES RELATED EXPENDITURE,WATER,2555,CASTLE WATER LIMITED,07/01/2021 00:00,249605,-105.57,CA0625,CASTLE WATER LIMITED,28/6/2021 00:00:00,25/7/2021 00:00:00,P04-2022
P&V,RIVER LEE COUNTRY PARK,PREMISES RELATED EXPENDITURE,WATER,2555,CASTLE WATER LIMITED,07/01/2021 00:00,249606,-106.61,CA0625,CASTLE WATER LIMITED,28/6/2021 00:00:00,25/7/2021 00:00:00,P04-2022
P&V,RIVER LEE COUNTRY PARK,PREMISES RELATED EXPENDITURE,WATER,2555,CASTLE WATER LIMITED,07/01/2021 00:00,249607,-313.16,CA0625,CASTLE WATER LIMITED,28/6/2021 00:00:00,25/7/2021 00:00:00,P04-2022
,LV LEISURE CENTRE CAMPSITE,PREMISES RELATED EXPENDITURE,WATER,2555,CASTLE WATER LIMITED,14/7/2021 00:00:00,250212,146.31,CA0625,CASTLE WATER LIMITED,28/6/2021 00:00:00,25/7/2021 00:00:00,P04-2022
,LV LEISURE CENTRE CAMPSITE,PREMISES RELATED EXPENDITURE,WATER,2555,CASTLE WATER LIMITED,14/7/2021 00:00:00,250212,422.31,CA0625,CASTLE WATER LIMITED,28/6/2021 00:00:00,25/7/2021 00:00:00,P04-2022
,LEE VALLEY WHITE WATER CENTRE,PREMISES RELATED EXPENDITURE,WATER,2555,CASTLE WATER LIMITED,25/7/2021 00:00:00,250574,4842.02,CA0625,CASTLE WATER LIMITED,28/6/2021 00:00:00,25/7/2021 00:00:00,P04-2022
,LEE VALLEY WHITE WATER CENTRE,PREMISES RELATED EXPENDITURE,WATER,2555,CASTLE WATER LIMITED,25/7/2021 00:00:00,250574,717.08,CA0625,CASTLE WATER LIMITED,28/6/2021 00:00:00,25/7/2021 00:00:00,P04-2022
,LEE VALLEY WHITE WATER CENTRE,PREMISES RELATED EXPENDITURE,WATER,2555,ENVIRONMENT AGENCY,25/7/2021 00:00:00,250752,553.6,EN0024,ENVIRONMENT AGENCY,28/6/2021 00:00:00,25/7/2021 00:00:00,P04-2022
P&V,MYDDELTON HOUSE,PREMISES RELATED EXPENDITURE,CLEANING & DOMESTIC SUPPLIES,2666,P112648-SERVICE-Clover Fresco Instant Foaming Hand Soap - Alo,07/06/2021 00:00,249868,7.77,HY0043,HYGIENE SYSTEMS LTD,28/6/2021 00:00:00,25/7/2021 00:00:00,P04-2022
P&V,MYDDELTON HOUSE,PREMISES RELATED EXPENDITURE,CLEANING & DOMESTIC SUPPLIES,2666,P112648-SERVICE-Simply Soft Conventional Toilet Roll - 6.47,07/06/2021 00:00,249906,12.94,HY0043,HYGIENE SYSTEMS LTD,28/6/2021 00:00:00,25/7/2021 00:00:00,P04-2022
P&V,MYDDELTON HOUSE,PREMISES RELATED EXPENDITURE,CLEANING & DOMESTIC SUPPLIES,2666,P112648-SERVICE-Centerfeed Roll 2 Ply White  x 9.49 x 3,07/06/2021 00:00,249906,28.47,HY0043,HYGIENE SYSTEMS LTD,28/6/2021 00:00:00,25/7/2021 00:00:00,P04-2022
P&V,MYDDELTON HOUSE,PREMISES RELATED EXPENDITURE,CLEANING & DOMESTIC SUPPLIES,2666,P112648-SERVICE-Refuse Sack Medium Duty - 7.77 x 3,07/06/2021 00:00,249906,23.31,HY0043,HYGIENE SYSTEMS LTD,28/6/2021 00:00:00,25/7/2021 00:00:00,P04-2022
P&V,MYDDELTON HOUSE,PREMISES RELATED EXPENDITURE,CLEANING & DOMESTIC SUPPLIES,2666,P112648-SERVICE-Clover Fresco Instant Foaming Hand Soap - Alo,07/06/2021 00:00,249906,10.51,HY0043,HYGIENE SYSTEMS LTD,28/6/2021 00:00:00,25/7/2021 00:00:00,P04-2022
P&V,MYDDELTON HOUSE,PREMISES RELATED EXPENDITURE,CLEANING & DOMESTIC SUPPLIES,2666,P112873-SERVICE-Conti Lite Large Patient Wipe - Pack size 32,21/7/2021 00:00:00,250346,50.03,HY0043,HYGIENE SYSTEMS LTD,28/6/2021 00:00:00,25/7/2021 00:00:00,P04-2022
P&V,MYDDELTON HOUSE,PREMISES RELATED EXPENDITURE,CLEANING & DOMESTIC SUPPLIES,2666,P113131-SERVICE-Antibac Wipes,20/7/2021 00:00:00,250481,49.83,HY0043,HYGIENE SYSTEMS LTD,28/6/2021 00:00:00,25/7/2021 00:00:00,P04-2022
,LEE VALLEY MARINA SPRINGFIELD,PREMISES RELATED EXPENDITURE,CLEANING & DOMESTIC SUPPLIES,2666,P112289-SERVICE-Sanitary Disposal/Dust Mats/Eco Shield/Air F,07/05/2021 00:00,249427,179.8,PE0015,PHS GROUP PLC,28/6/2021 00:00:00,25/7/2021 00:00:00,P04-2022
,LEE VALLEY MARINA SPRINGFIELD,PREMISES RELATED EXPENDITURE,CLEANING & DOMESTIC SUPPLIES,2666,P112866-SERVICE-June 21 site cleaning,07/05/2021 00:00,249728,912.33,MA0015,MAYFAIR CLEANING COMPANY LIMITED,28/6/2021 00:00:00,25/7/2021 00:00:00,P04-2022
,LEE VALLEY MARINA SPRINGFIELD,PREMISES RELATED EXPENDITURE,CLEANING & DOMESTIC SUPPLIES,2666,P112164-SERVICE-To supply items as requested,07/05/2021 00:00,249905,132.29,HY0043,HYGIENE SYSTEMS LTD,28/6/2021 00:00:00,25/7/2021 00:00:00,P04-2022
,LEE VALLEY MARINA STANSTEAD,PREMISES RELATED EXPENDITURE,CLEANING & DOMESTIC SUPPLIES,2666,P112749-SERVICE-10 x toilet rolls 2 x rags,07/12/2021 00:00,250262,167.5,IN0012,INITIAL WASHROOM HYGIENE,28/6/2021 00:00:00,25/7/2021 00:00:00,P04-2022
,LEE VALLEY WATERWORKS CENTRE,PREMISES RELATED EXPENDITURE,CLEANING & DOMESTIC SUPPLIES,2666,P112869-SERVICE-Cleaning WaterWorks Centre - Jun 2021,07/05/2021 00:00,249756,526.05,GL0214,GLENDALE GROUNDS MANAGEMENT LIMITED,28/6/2021 00:00:00,25/7/2021 00:00:00,P04-2022
,LEE VALLEY CAMPSITE,PREMISES RELATED EXPENDITURE,CLEANING & DOMESTIC SUPPLIES,2666,P112567-SERVICE-Cleaning Supplies,07/07/2021 00:00,249907,21.93,HY0043,HYGIENE SYSTEMS LTD,28/6/2021 00:00:00,25/7/2021 00:00:00,P04-2022
,LEE VALLEY CAMPSITE,PREMISES RELATED EXPENDITURE,CLEANING & DOMESTIC SUPPLIES,2666,P113160-SERVICE-monthly clean july & aug 21,21/7/2021 00:00:00,250463,82.09,IN0012,INITIAL WASHROOM HYGIENE,28/6/2021 00:00:00,25/7/2021 00:00:00,P04-2022
,LEE VALLEY CAMPSITE,PREMISES RELATED EXPENDITURE,CLEANING & DOMESTIC SUPPLIES,2666,P113160-SERVICE-monthly clean july & aug 21,21/7/2021 00:00:00,250464,82.09,IN0012,INITIAL WASHROOM HYGIENE,28/6/2021 00:00:00,25/7/2021 00:00:00,P04-2022
P&V,ALMOST WILD CAMPSITE,PREMISES RELATED EXPENDITURE,CLEANING & DOMESTIC SUPPLIES,2666,P113072-SERVICE-Cleaning supplies,25/7/2021 00:00:00,250575,225.03,HY0043,HYGIENE SYSTEMS LTD,28/6/2021 00:00:00,25/7/2021 00:00:00,P04-2022
,LEE VALLEY VELOPARK,PREMISES RELATED EXPENDITURE,CLEANING & DOMESTIC SUPPLIES,2666,P113039-SERVICE-Hygiene Products,13/7/2021 00:00:00,249879,285.27,PE0015,PHS GROUP PLC,28/6/2021 00:00:00,25/7/2021 00:00:00,P04-2022
,LV HOCKEY AND TENNIS CENTRE,PREMISES RELATED EXPENDITURE,CLEANING & DOMESTIC SUPPLIES,2666,P113040-SERVICE-Hygiene Products,13/7/2021 00:00:00,249880,364.82,PE0015,PHS GROUP PLC,28/6/2021 00:00:00,25/7/2021 00:00:00,P04-2022
,LV LEISURE CENTRE CAMPSITE,PREMISES RELATED EXPENDITURE,CLEANING & DOMESTIC SUPPLIES,2666,P112812-SERVICE-Cleaning supplies,19/7/2021 00:00:00,250006,279.16,HY0043,HYGIENE SYSTEMS LTD,28/6/2021 00:00:00,25/7/2021 00:00:00,P04-2022
,LV LEISURE CENTRE CAMPSITE,PREMISES RELATED EXPENDITURE,CLEANING & DOMESTIC SUPPLIES,2666,P112429-SERVICE-cleaning supplies,19/7/2021 00:00:00,250047,18.4,HY0043,HYGIENE SYSTEMS LTD,28/6/2021 00:00:00,25/7/2021 00:00:00,P04-2022
,LEE VALLEY ATHLETICS CENTRE,PREMISES RELATED EXPENDITURE,CLEANING & DOMESTIC SUPPLIES,2666,P112950-SERVICE-LVAC ORDER EMAIL AB 8.7.21,20/7/2021 00:00:00,250458,228.18,HY0043,HYGIENE SYSTEMS LTD,28/6/2021 00:00:00,25/7/2021 00:00:00,P04-2022
,LEE VALLEY WHITE WATER CENTRE,PREMISES RELATED EXPENDITURE,CLEANING & DOMESTIC SUPPLIES,2666,P112718-SERVICE-Cleaning supplies,07/08/2021 00:00,249672,572.89,SU0595,SUMMIT HYGIENE LTD,28/6/2021 00:00:00,25/7/2021 00:00:00,P04-2022
,LEE VALLEY WHITE WATER CENTRE,PREMISES RELATED EXPENDITURE,CLEANING & DOMESTIC SUPPLIES,2666,P112718-SERVICE-Cleaning supplies,07/08/2021 00:00,249852,51.52,SU0595,SUMMIT HYGIENE LTD,28/6/2021 00:00:00,25/7/2021 00:00:00,P04-2022
,LEE VALLEY WHITE WATER CENTRE,PREMISES RELATED EXPENDITURE,CLEANING & DOMESTIC SUPPLIES,2666,P112655-SERVICE-Cleaning supplies,15/7/2021 00:00:00,250237,-5.4,SU0595,SUMMIT HYGIENE LTD,28/6/2021 00:00:00,25/7/2021 00:00:00,P04-2022
,LEE VALLEY WHITE WATER CENTRE,PREMISES RELATED EXPENDITURE,CLEANING & DOMESTIC SUPPLIES,2666,P112655-SERVICE-Cleaning supplies,15/7/2021 00:00:00,250265,111.9,SU0595,SUMMIT HYGIENE LTD,28/6/2021 00:00:00,25/7/2021 00:00:00,P04-2022
,LEE VALLEY WHITE WATER CENTRE,PREMISES RELATED EXPENDITURE,WINDOW CLEANING,2667,P112886-SERVICE-Window Clean,25/7/2021 00:00:00,250550,1722.19,ELI0362,ELITE SUPPORT SERVICES (LONDON) LIMITED,28/6/2021 00:00:00,25/7/2021 00:00:00,P04-2022
P&V,LEE VALLEY FARM HOLYFIELDHALL,TRANSPORT RELATED EXPENDITURE,TRANSPORT RUNNING EXPENSES,3333,P111474-SERVICE-Tractor Spares,07/08/2021 00:00,249483,85.64,OL0059,OLIVER LANDPOWER LIMITED,28/6/2021 00:00:00,25/7/2021 00:00:00,P04-2022
P&V,LEE VALLEY FARM HOLYFIELDHALL,TRANSPORT RELATED EXPENDITURE,TRANSPORT RUNNING EXPENSES,3333,P111474-SERVICE-Tractor Spares,07/08/2021 00:00,249484,75.13,OL0059,OLIVER LANDPOWER LIMITED,28/6/2021 00:00:00,25/7/2021 00:00:00,P04-2022
P&V,LEE VALLEY FARM HOLYFIELDHALL,TRANSPORT RELATED EXPENDITURE,TRANSPORT RUNNING EXPENSES,3333,P111473-SERVICE-Tractor Spares,07/08/2021 00:00,249508,70.23,OL0001,OLIVER AGRICULTURE LTD,28/6/2021 00:00:00,25/7/2021 00:00:00,P04-2022
P&V,LEE VALLEY FARM HOLYFIELDHALL,TRANSPORT RELATED EXPENDITURE,TRANSPORT RUNNING EXPENSES,3333,P111467-SERVICE-Puncture Repair,07/08/2021 00:00,249662,54,KB0006,KB TYRES LTD,28/6/2021 00:00:00,25/7/2021 00:00:00,P04-2022
P&V,LEE VALLEY FARM HOLYFIELDHALL,TRANSPORT RELATED EXPENDITURE,TRANSPORT RUNNING EXPENSES,3333,P111462-SERVICE-Welding Sundries,07/08/2021 00:00,249749,96.7,BO0015,BOC LTD,28/6/2021 00:00:00,25/7/2021 00:00:00,P04-2022
P&V,LEE VALLEY FARM HOLYFIELDHALL,TRANSPORT RELATED EXPENDITURE,TRANSPORT RUNNING EXPENSES,3333,P111465-SERVICE-Workshop Sundries,07/08/2021 00:00,249893,276.98,GR0022,GROUP COMPONENTS LIMITED,28/6/2021 00:00:00,25/7/2021 00:00:00,P04-2022
P&V,LEE VALLEY FARM HOLYFIELDHALL,TRANSPORT RELATED EXPENDITURE,TRANSPORT RUNNING EXPENSES,3333,P111467-SERVICE-Puncture Repair,13/7/2021 00:00:00,250240,65,KB0006,KB TYRES LTD,28/6/2021 00:00:00,25/7/2021 00:00:00,P04-2022
P&V,LEE VALLEY FARM HOLYFIELDHALL,TRANSPORT RELATED EXPENDITURE,TRANSPORT RUNNING EXPENSES,3333,P113006-SERVICE-Tyres,13/7/2021 00:00:00,250241,104,KB0006,KB TYRES LTD,28/6/2021 00:00:00,25/7/2021 00:00:00,P04-2022
P&V,LEE VALLEY FARM HOLYFIELDHALL,TRANSPORT RELATED EXPENDITURE,TRANSPORT RUNNING EXPENSES,3333,P111467-SERVICE-Puncture Repair,13/7/2021 00:00:00,250242,230,KB0006,KB TYRES LTD,28/6/2021 00:00:00,25/7/2021 00:00:00,P04-2022
P&V,LEE VALLEY FARM HOLYFIELDHALL,TRANSPORT RELATED EXPENDITURE,TRANSPORT RUNNING EXPENSES,3333,P111467-SERVICE-Puncture Repair,13/7/2021 00:00:00,250243,50,KB0006,KB TYRES LTD,28/6/2021 00:00:00,25/7/2021 00:00:00,P04-2022
P&V,FISHERIES MANAGEMENT,TRANSPORT RELATED EXPENDITURE,VEHICLE FUEL,3335,ALLSTAR BUSINESS SOLUTIONS LTD,07/12/2021 00:00,249916,69,AR0035,ALLSTAR BUSINESS SOLUTIONS LTD,28/6/2021 00:00:00,25/7/2021 00:00:00,P04-2022
,LEE VALLEY MARINA SPRINGFIELD,TRANSPORT RELATED EXPENDITURE,VEHICLE FUEL,3335,ALLSTAR BUSINESS SOLUTIONS LTD,07/12/2021 00:00,249916,23,AR0035,ALLSTAR BUSINESS SOLUTIONS LTD,28/6/2021 00:00:00,25/7/2021 00:00:00,P04-2022
,LEE VALLEY MARINA STANSTEAD,TRANSPORT RELATED EXPENDITURE,VEHICLE FUEL,3335,ALLSTAR BUSINESS SOLUTIONS LTD,07/12/2021 00:00,249916,267.15,AR0035,ALLSTAR BUSINESS SOLUTIONS LTD,28/6/2021 00:00:00,25/7/2021 00:00:00,P04-2022
P&V,LEE VALLEY FARM HOLYFIELDHALL,TRANSPORT RELATED EXPENDITURE,VEHICLE FUEL,3335,ALLSTAR BUSINESS SOLUTIONS LTD,07/12/2021 00:00,249916,23,AR0035,ALLSTAR BUSINESS SOLUTIONS LTD,28/6/2021 00:00:00,25/7/2021 00:00:00,P04-2022
P&V,LEE VALLEY FARM HOLYFIELDHALL,TRANSPORT RELATED EXPENDITURE,VEHICLE FUEL,3335,ALLSTAR BUSINESS SOLUTIONS LTD,07/12/2021 00:00,249916,279.06,AR0035,ALLSTAR BUSINESS SOLUTIONS LTD,28/6/2021 00:00:00,25/7/2021 00:00:00,P04-2022
,LEE VALLEY CAMPSITE,TRANSPORT RELATED EXPENDITURE,VEHICLE FUEL,3335,ALLSTAR BUSINESS SOLUTIONS LTD,07/12/2021 00:00,249916,144.42,AR0035,ALLSTAR BUSINESS SOLUTIONS LTD,28/6/2021 00:00:00,25/7/2021 00:00:00,P04-2022
,LEE VALLEY CARAVAN PARK,TRANSPORT RELATED EXPENDITURE,VEHICLE FUEL,3335,ALLSTAR BUSINESS SOLUTIONS LTD,07/12/2021 00:00,249916,238.25,AR0035,ALLSTAR BUSINESS SOLUTIONS LTD,28/6/2021 00:00:00,25/7/2021 00:00:00,P04-2022
P&V,MYDDELTON HOUSE GARDENS,TRANSPORT RELATED EXPENDITURE,VEHICLE FUEL,3335,ALLSTAR BUSINESS SOLUTIONS LTD,07/12/2021 00:00,249915,38,AR0035,ALLSTAR BUSINESS SOLUTIONS LTD,28/6/2021 00:00:00,25/7/2021 00:00:00,P04-2022
P&V,MYDDELTON HOUSE GARDENS,TRANSPORT RELATED EXPENDITURE,VEHICLE FUEL,3335,ALLSTAR BUSINESS SOLUTIONS LTD,07/12/2021 00:00,249915,10.45,AR0035,ALLSTAR BUSINESS SOLUTIONS LTD,28/6/2021 00:00:00,25/7/2021 00:00:00,P04-2022
P&V,MYDDELTON HOUSE GARDENS,TRANSPORT RELATED EXPENDITURE,VEHICLE FUEL,3335,ALLSTAR BUSINESS SOLUTIONS LTD,07/12/2021 00:00,249916,23,AR0035,ALLSTAR BUSINESS SOLUTIONS LTD,28/6/2021 00:00:00,25/7/2021 00:00:00,P04-2022
P&V,NORTH AREA RANGERS,TRANSPORT RELATED EXPENDITURE,VEHICLE FUEL,3335,ALLSTAR BUSINESS SOLUTIONS LTD,07/12/2021 00:00,249916,172.31,AR0035,ALLSTAR BUSINESS SOLUTIONS LTD,28/6/2021 00:00:00,25/7/2021 00:00:00,P04-2022
P&V,SOUTH AREA RANGERS,TRANSPORT RELATED EXPENDITURE,VEHICLE FUEL,3335,ALLSTAR BUSINESS SOLUTIONS LTD,07/12/2021 00:00,249916,348.62,AR0035,ALLSTAR BUSINESS SOLUTIONS LTD,28/6/2021 00:00:00,25/7/2021 00:00:00,P04-2022
P&V,GUNPOWDER PARK,TRANSPORT RELATED EXPENDITURE,VEHICLE FUEL,3335,ALLSTAR BUSINESS SOLUTIONS LTD,07/12/2021 00:00,249916,23,AR0035,ALLSTAR BUSINESS SOLUTIONS LTD,28/6/2021 00:00:00,25/7/2021 00:00:00,P04-2022
P&V,RIVER LEE COUNTRY PARK,TRANSPORT RELATED EXPENDITURE,VEHICLE FUEL,3335,ALLSTAR BUSINESS SOLUTIONS LTD,07/12/2021 00:00,249916,685.03,AR0035,ALLSTAR BUSINESS SOLUTIONS LTD,28/6/2021 00:00:00,25/7/2021 00:00:00,P04-2022
,LEE VALLEY VELOPARK,TRANSPORT RELATED EXPENDITURE,VEHICLE FUEL,3335,ALLSTAR BUSINESS SOLUTIONS LTD,07/12/2021 00:00,249915,38,AR0035,ALLSTAR BUSINESS SOLUTIONS LTD,28/6/2021 00:00:00,25/7/2021 00:00:00,P04-2022
,LEE VALLEY VELOPARK,TRANSPORT RELATED EXPENDITURE,VEHICLE FUEL,3335,ALLSTAR BUSINESS SOLUTIONS LTD,07/12/2021 00:00,249916,23,AR0035,ALLSTAR BUSINESS SOLUTIONS LTD,28/6/2021 00:00:00,25/7/2021 00:00:00,P04-2022
,LV HOCKEY AND TENNIS CENTRE,TRANSPORT RELATED EXPENDITURE,VEHICLE FUEL,3335,ALLSTAR BUSINESS SOLUTIONS LTD,07/12/2021 00:00,249915,38,AR0035,ALLSTAR BUSINESS SOLUTIONS LTD,28/6/2021 00:00:00,25/7/2021 00:00:00,P04-2022
,LV HOCKEY AND TENNIS CENTRE,TRANSPORT RELATED EXPENDITURE,VEHICLE FUEL,3335,ALLSTAR BUSINESS SOLUTIONS LTD,07/12/2021 00:00,249916,23,AR0035,ALLSTAR BUSINESS SOLUTIONS LTD,28/6/2021 00:00:00,25/7/2021 00:00:00,P04-2022
,LEE VALLEY RIDING CENTRE,TRANSPORT RELATED EXPENDITURE,VEHICLE FUEL,3335,ALLSTAR BUSINESS SOLUTIONS LTD,07/12/2021 00:00,249915,142.82,AR0035,ALLSTAR BUSINESS SOLUTIONS LTD,28/6/2021 00:00:00,25/7/2021 00:00:00,P04-2022
,LEE VALLEY ICE CENTRE,TRANSPORT RELATED EXPENDITURE,VEHICLE FUEL,3335,ALLSTAR BUSINESS SOLUTIONS LTD,07/12/2021 00:00,249915,38,AR0035,ALLSTAR BUSINESS SOLUTIONS LTD,28/6/2021 00:00:00,25/7/2021 00:00:00,P04-2022
,LV LEISURE CENTRE CAMPSITE,TRANSPORT RELATED EXPENDITURE,VEHICLE FUEL,3335,ALLSTAR BUSINESS SOLUTIONS LTD,07/12/2021 00:00,249916,23,AR0035,ALLSTAR BUSINESS SOLUTIONS LTD,28/6/2021 00:00:00,25/7/2021 00:00:00,P04-2022
,LV LEISURE CENTRE GOLF COURSE,TRANSPORT RELATED EXPENDITURE,VEHICLE FUEL,3335,P112390-SERVICE-Fuel for golf centre,15/7/2021 00:00:00,249124,284,HA0400,WATSON FUELS,28/6/2021 00:00:00,25/7/2021 00:00:00,P04-2022
,LV LEISURE CENTRE GOLF COURSE,TRANSPORT RELATED EXPENDITURE,VEHICLE FUEL,3335,P112497-SERVICE-Fuel for Golf,20/7/2021 00:00:00,249222,852,HA0400,WATSON FUELS,28/6/2021 00:00:00,25/7/2021 00:00:00,P04-2022
,LEE VALLEY WHITE WATER CENTRE,TRANSPORT RELATED EXPENDITURE,VEHICLE FUEL,3335,ALLSTAR BUSINESS SOLUTIONS LTD,07/12/2021 00:00,249916,104.51,AR0035,ALLSTAR BUSINESS SOLUTIONS LTD,28/6/2021 00:00:00,25/7/2021 00:00:00,P04-2022
,LEE VALLEY WHITE WATER CENTRE,TRANSPORT RELATED EXPENDITURE,VEHICLE FUEL,3335,ALLSTAR BUSINESS SOLUTIONS LTD,07/12/2021 00:00,249916,23,AR0035,ALLSTAR BUSINESS SOLUTIONS LTD,28/6/2021 00:00:00,25/7/2021 00:00:00,P04-2022
P&V,RIVER LEE COUNTRY PARK,TRANSPORT RELATED EXPENDITURE,VEHICLE REPAIRS & MAINTENANCE,3338,P112981-SERVICE-Inner Tube - N713 SAV,15/7/2021 00:00:00,250203,18,AD0016,ADVANCE TYRE SERVICE,28/6/2021 00:00:00,25/7/2021 00:00:00,P04-2022
,LEE VALLEY MARINA SPRINGFIELD,SUPPLIES AND SERVICES,EQUIPMENT & MATERIALS,4111,P112549-SERVICE-8 x Softwood 300m2 x 600mm,25/7/2021 00:00:00,249227,422.4,AS0329,ASHWELLS RECLAIMED TIMBER LTD,28/6/2021 00:00:00,25/7/2021 00:00:00,P04-2022
,LEE VALLEY MARINA SPRINGFIELD,SUPPLIES AND SERVICES,EQUIPMENT & MATERIALS,4111,P112549-SERVICE-12 x Softwood 200 x 150 x 850mm,25/7/2021 00:00:00,249227,316.8,AS0329,ASHWELLS RECLAIMED TIMBER LTD,28/6/2021 00:00:00,25/7/2021 00:00:00,P04-2022
,LEE VALLEY MARINA SPRINGFIELD,SUPPLIES AND SERVICES,EQUIPMENT & MATERIALS,4111,P112549-SERVICE-Delivery on Order,25/7/2021 00:00:00,249227,100,AS0329,ASHWELLS RECLAIMED TIMBER LTD,28/6/2021 00:00:00,25/7/2021 00:00:00,P04-2022
,LEE VALLEY MARINA SPRINGFIELD,SUPPLIES AND SERVICES,EQUIPMENT & MATERIALS,4111,P112613-SERVICE-Code ADAMSCYLINDER/20L4 x  Deposit  on,07/05/2021 00:00,249446,320,EL0281,ELTHAM WELDING SUPPLIES LIMITED,28/6/2021 00:00:00,25/7/2021 00:00:00,P04-2022
,LEE VALLEY MARINA SPRINGFIELD,SUPPLIES AND SERVICES,EQUIPMENT & MATERIALS,4111,P112613-SERVICE-4 x ADAMS/ARGCO2-12/20L @ 63.68 EACH,07/05/2021 00:00,249446,254.72,EL0281,ELTHAM WELDING SUPPLIES LIMITED,28/6/2021 00:00:00,25/7/2021 00:00:00,P04-2022
,LEE VALLEY MARINA STANSTEAD,SUPPLIES AND SERVICES,EQUIPMENT & MATERIALS,4111,P112072-SERVICE-increase to paints,07/01/2021 00:00,249664,16.63,TH0008,JKL SOLUTIONS LTD,28/6/2021 00:00:00,25/7/2021 00:00:00,P04-2022
,STANSTEAD RECHARGEABLE WORKS,SUPPLIES AND SERVICES,EQUIPMENT & MATERIALS,4111,P112844-SERVICE-Workshop welding gas bottle,07/05/2021 00:00,249751,122.65,BO0015,BOC LTD,28/6/2021 00:00:00,25/7/2021 00:00:00,P04-2022
,STANSTEAD RECHARGEABLE WORKS,SUPPLIES AND SERVICES,EQUIPMENT & MATERIALS,4111,P112806-SERVICE-centre tube,07/07/2021 00:00,249871,52.41,MI0200,MIDLAND CHANDLERS LIMITED,28/6/2021 00:00:00,25/7/2021 00:00:00,P04-2022
,STANSTEAD RECHARGEABLE WORKS,SUPPLIES AND SERVICES,EQUIPMENT & MATERIALS,4111,P112888-SERVICE-blacking,07/12/2021 00:00,250063,949.9,SM0658,SML PAINTS AND COATINGS,28/6/2021 00:00:00,25/7/2021 00:00:00,P04-2022
,STANSTEAD RECHARGEABLE WORKS,SUPPLIES AND SERVICES,EQUIPMENT & MATERIALS,4111,P112985-SERVICE-blacking,25/7/2021 00:00:00,250457,927,SM0658,SML PAINTS AND COATINGS,28/6/2021 00:00:00,25/7/2021 00:00:00,P04-2022
,STANSTEAD RECHARGEABLE WORKS,SUPPLIES AND SERVICES,EQUIPMENT & MATERIALS,4111,P112607-SERVICE-anodes,25/7/2021 00:00:00,250715,874.5,MI0200,MIDLAND CHANDLERS LIMITED,28/6/2021 00:00:00,25/7/2021 00:00:00,P04-2022
,LEE VALLEY CAMPSITE,SUPPLIES AND SERVICES,EQUIPMENT & MATERIALS,4111,P112515-SERVICE-increase order to cover invoice,07/05/2021 00:00,249221,38,AL0434,ALLSOP & FRANCIS,28/6/2021 00:00:00,25/7/2021 00:00:00,P04-2022
,LEE VALLEY CAMPSITE,SUPPLIES AND SERVICES,EQUIPMENT & MATERIALS,4111,P112896-SERVICE-Repair aeriel Plot 20,07/07/2021 00:00,249908,95,AS0343,ASCENT AERIALS,28/6/2021 00:00:00,25/7/2021 00:00:00,P04-2022
,LEE VALLEY CAMPSITE,SUPPLIES AND SERVICES,EQUIPMENT & MATERIALS,4111,P112003-SERVICE-Repairs to Both Kubota,07/07/2021 00:00,249918,430,GE0440,GTEC'S,28/6/2021 00:00:00,25/7/2021 00:00:00,P04-2022
,LEE VALLEY CARAVAN PARK,SUPPLIES AND SERVICES,EQUIPMENT & MATERIALS,4111,P113242-SERVICE-High pressure washer,25/7/2021 00:00:00,250311,41.66,SC0057,SCREWFIX DIRECT LTD,28/6/2021 00:00:00,25/7/2021 00:00:00,P04-2022
,LEE VALLEY CARAVAN PARK,SUPPLIES AND SERVICES,EQUIPMENT & MATERIALS,4111,P113243-SERVICE-4 stroke engine oil,25/7/2021 00:00:00,250338,17.49,SC0057,SCREWFIX DIRECT LTD,28/6/2021 00:00:00,25/7/2021 00:00:00,P04-2022
,LEE VALLEY CARAVAN PARK,SUPPLIES AND SERVICES,EQUIPMENT & MATERIALS,4111,P113244-SERVICE-Primer & glue,25/7/2021 00:00:00,250556,41.46,BQ0164,TRADE UK ACCOUNT,28/6/2021 00:00:00,25/7/2021 00:00:00,P04-2022
P&V,MYDDELTON HOUSE GARDENS,SUPPLIES AND SERVICES,EQUIPMENT & MATERIALS,4111,"P112724-SERVICE-Clover Alcohol Hand Sanitiser, 5ltr x 4",13/7/2021 00:00:00,250239,64.37,HY0043,HYGIENE SYSTEMS LTD,28/6/2021 00:00:00,25/7/2021 00:00:00,P04-2022
P&V,MYDDELTON HOUSE GARDENS,SUPPLIES AND SERVICES,EQUIPMENT & MATERIALS,4111,P112254-SERVICE-Labels Angled Head 27cm - Black,20/7/2021 00:00:00,250504,15.88,FA0149,FARGRO LIMITED,28/6/2021 00:00:00,25/7/2021 00:00:00,P04-2022
P&V,MYDDELTON HOUSE GARDENS,SUPPLIES AND SERVICES,EQUIPMENT & MATERIALS,4111,P112254-SERVICE-Labels Angled Head 38cm - Black LB400BL,20/7/2021 00:00:00,250504,17.85,FA0149,FARGRO LIMITED,28/6/2021 00:00:00,25/7/2021 00:00:00,P04-2022
P&V,EAST INDIA DOCK AND BOW CREEK,SUPPLIES AND SERVICES,EQUIPMENT & MATERIALS,4111,P112705-SERVICE-2x Medium Dressing No8 - F90101,07/12/2021 00:00,250253,1,ST0038,ST JOHN AMBULANCE,28/6/2021 00:00:00,25/7/2021 00:00:00,P04-2022
P&V,EAST INDIA DOCK AND BOW CREEK,SUPPLIES AND SERVICES,EQUIPMENT & MATERIALS,4111,P112705-SERVICE-6x No16 Eye Pad - F90105,07/12/2021 00:00,250253,3,ST0038,ST JOHN AMBULANCE,28/6/2021 00:00:00,25/7/2021 00:00:00,P04-2022
P&V,EAST INDIA DOCK AND BOW CREEK,SUPPLIES AND SERVICES,EQUIPMENT & MATERIALS,4111,P112705-SERVICE-6x Fabric Plasters 10Pk - F94027,07/12/2021 00:00,250253,4.5,ST0038,ST JOHN AMBULANCE,28/6/2021 00:00:00,25/7/2021 00:00:00,P04-2022
P&V,EAST INDIA DOCK AND BOW CREEK,SUPPLIES AND SERVICES,EQUIPMENT & MATERIALS,4111,P112705-SERVICE-12x Finger dressings - F9011,07/12/2021 00:00,250253,7.8,ST0038,ST JOHN AMBULANCE,28/6/2021 00:00:00,25/7/2021 00:00:00,P04-2022
P&V,EAST INDIA DOCK AND BOW CREEK,SUPPLIES AND SERVICES,EQUIPMENT & MATERIALS,4111,P112705-SERVICE-8x Burnshield Dressing 10x10cm - F80001,07/12/2021 00:00,250253,32,ST0038,ST JOHN AMBULANCE,28/6/2021 00:00:00,25/7/2021 00:00:00,P04-2022
P&V,EAST INDIA DOCK AND BOW CREEK,SUPPLIES AND SERVICES,EQUIPMENT & MATERIALS,4111,P112705-SERVICE-Delivery to address below,07/12/2021 00:00,250253,4.95,ST0038,ST JOHN AMBULANCE,28/6/2021 00:00:00,25/7/2021 00:00:00,P04-2022
P&V,EAST INDIA DOCK AND BOW CREEK,SUPPLIES AND SERVICES,EQUIPMENT & MATERIALS,4111,P112705-SERVICE-10x Medium Dressing 12x12cm - F90106,07/12/2021 00:00,250253,5.07,ST0038,ST JOHN AMBULANCE,28/6/2021 00:00:00,25/7/2021 00:00:00,P04-2022
P&V,NORTH AREA RANGERS,SUPPLIES AND SERVICES,EQUIPMENT & MATERIALS,4111,P111484-SERVICE-Equipment & Materials as and when required,07/12/2021 00:00,250260,46.5,JW0004,J & W FENCING LIMITED,28/6/2021 00:00:00,25/7/2021 00:00:00,P04-2022
P&V,SOUTH AREA RANGERS,SUPPLIES AND SERVICES,EQUIPMENT & MATERIALS,4111,P113013-SERVICE-Postmix,15/7/2021 00:00:00,250248,10.5,JE0011,SAINT-GOBAIN BUILDING DISTRIBUTION,28/6/2021 00:00:00,25/7/2021 00:00:00,P04-2022
P&V,SOUTH AREA RANGERS,SUPPLIES AND SERVICES,EQUIPMENT & MATERIALS,4111,P113194-SERVICE-Masonry Paint - Brick Red,25/7/2021 00:00:00,250515,21.67,BQ0164,TRADE UK ACCOUNT,28/6/2021 00:00:00,25/7/2021 00:00:00,P04-2022
P&V,SOUTH AREA RANGERS,SUPPLIES AND SERVICES,EQUIPMENT & MATERIALS,4111,P113194-SERVICE-Wood Stain,25/7/2021 00:00:00,250515,16.67,BQ0164,TRADE UK ACCOUNT,28/6/2021 00:00:00,25/7/2021 00:00:00,P04-2022
,LEE VALLEY VELOPARK,SUPPLIES AND SERVICES,EQUIPMENT & MATERIALS,4111,P112917-SERVICE-Materials,07/08/2021 00:00,249654,30.9,SC0057,SCREWFIX DIRECT LTD,28/6/2021 00:00:00,25/7/2021 00:00:00,P04-2022
,LEE VALLEY VELOPARK,SUPPLIES AND SERVICES,EQUIPMENT & MATERIALS,4111,P113035-SERVICE-Suremix 60 Size V,13/7/2021 00:00:00,249752,51.3,BO0015,BOC LTD,28/6/2021 00:00:00,25/7/2021 00:00:00,P04-2022
,LEE VALLEY VELOPARK,SUPPLIES AND SERVICES,EQUIPMENT & MATERIALS,4111,P112842-SERVICE-Nitrogen Cylinders,07/12/2021 00:00,250184,122.51,BO0015,BOC LTD,28/6/2021 00:00:00,25/7/2021 00:00:00,P04-2022
,LEE VALLEY VELOPARK,SUPPLIES AND SERVICES,EQUIPMENT & MATERIALS,4111,P112910-SERVICE-Printer Battery Packs,07/12/2021 00:00,250215,46.5,SW0443,THE SWATCH GROUP (UK) LIMITED,28/6/2021 00:00:00,25/7/2021 00:00:00,P04-2022
,LEE VALLEY VELOPARK,SUPPLIES AND SERVICES,EQUIPMENT & MATERIALS,4111,P113141-SERVICE-Copies Mar -May 2021,20/7/2021 00:00:00,250220,29.83,IN0185,IBS OFFICE SOLUTIONS LTD,28/6/2021 00:00:00,25/7/2021 00:00:00,P04-2022
,LEE VALLEY VELOPARK,SUPPLIES AND SERVICES,EQUIPMENT & MATERIALS,4111,P112834-SERVICE-Timing Strips,19/7/2021 00:00:00,250328,1009,SW0443,THE SWATCH GROUP (UK) LIMITED,28/6/2021 00:00:00,25/7/2021 00:00:00,P04-2022
,LEE VALLEY VELOPARK,SUPPLIES AND SERVICES,EQUIPMENT & MATERIALS,4111,P113123-SERVICE-Access Panel 343x343mm,25/7/2021 00:00:00,250516,24.99,SC0057,SCREWFIX DIRECT LTD,28/6/2021 00:00:00,25/7/2021 00:00:00,P04-2022
,LV HOCKEY AND TENNIS CENTRE,SUPPLIES AND SERVICES,EQUIPMENT & MATERIALS,4111,P113036-SERVICE-Suremix 60 Size V,13/7/2021 00:00:00,249753,16.8,BO0015,BOC LTD,28/6/2021 00:00:00,25/7/2021 00:00:00,P04-2022
,LV HOCKEY AND TENNIS CENTRE,SUPPLIES AND SERVICES,EQUIPMENT & MATERIALS,4111,P113122-SERVICE-Hockey Sticks,20/7/2021 00:00:00,250268,150,RO0314,ROOS SPORTS LTD,28/6/2021 00:00:00,25/7/2021 00:00:00,P04-2022
,LEE VALLEY RIDING CENTRE,SUPPLIES AND SERVICES,EQUIPMENT & MATERIALS,4111,P112832-SERVICE-new riding school pony,07/05/2021 00:00,249851,3000,LA0462,HAYLEY LAWSON,28/6/2021 00:00:00,25/7/2021 00:00:00,P04-2022
,LEE VALLEY RIDING CENTRE,SUPPLIES AND SERVICES,EQUIPMENT & MATERIALS,4111,P112832-SERVICE-as above entered incorrect price,07/05/2021 00:00,249851,700,LA0462,HAYLEY LAWSON,28/6/2021 00:00:00,25/7/2021 00:00:00,P04-2022
,LEE VALLEY RIDING CENTRE,SUPPLIES AND SERVICES,EQUIPMENT & MATERIALS,4111,P113192-SERVICE-leather soap x 6,25/7/2021 00:00:00,250238,13.08,JE0001,B JENKINSON & SONS LTD,28/6/2021 00:00:00,25/7/2021 00:00:00,P04-2022
,LEE VALLEY RIDING CENTRE,SUPPLIES AND SERVICES,EQUIPMENT & MATERIALS,4111,P113192-SERVICE-udder cream x 4,25/7/2021 00:00:00,250238,33.6,JE0001,B JENKINSON & SONS LTD,28/6/2021 00:00:00,25/7/2021 00:00:00,P04-2022
,LEE VALLEY RIDING CENTRE,SUPPLIES AND SERVICES,EQUIPMENT & MATERIALS,4111,P113192-SERVICE-saddle soap x 4,25/7/2021 00:00:00,250238,4.2,JE0001,B JENKINSON & SONS LTD,28/6/2021 00:00:00,25/7/2021 00:00:00,P04-2022
,LEE VALLEY RIDING CENTRE,SUPPLIES AND SERVICES,EQUIPMENT & MATERIALS,4111,P113192-SERVICE-fly rug x 2,25/7/2021 00:00:00,250238,43.9,JE0001,B JENKINSON & SONS LTD,28/6/2021 00:00:00,25/7/2021 00:00:00,P04-2022
,LEE VALLEY RIDING CENTRE,SUPPLIES AND SERVICES,EQUIPMENT & MATERIALS,4111,P113192-SERVICE-yard boots,25/7/2021 00:00:00,250238,37.95,JE0001,B JENKINSON & SONS LTD,28/6/2021 00:00:00,25/7/2021 00:00:00,P04-2022
,LEE VALLEY RIDING CENTRE,SUPPLIES AND SERVICES,EQUIPMENT & MATERIALS,4111,P113192-SERVICE-feed buckets x 10,25/7/2021 00:00:00,250238,115.2,JE0001,B JENKINSON & SONS LTD,28/6/2021 00:00:00,25/7/2021 00:00:00,P04-2022
,LEE VALLEY RIDING CENTRE,SUPPLIES AND SERVICES,EQUIPMENT & MATERIALS,4111,P113192-SERVICE-lead ropes x 20,25/7/2021 00:00:00,250238,39,JE0001,B JENKINSON & SONS LTD,28/6/2021 00:00:00,25/7/2021 00:00:00,P04-2022
,LEE VALLEY RIDING CENTRE,SUPPLIES AND SERVICES,EQUIPMENT & MATERIALS,4111,P113192-SERVICE-mane comb,25/7/2021 00:00:00,250238,2.76,JE0001,B JENKINSON & SONS LTD,28/6/2021 00:00:00,25/7/2021 00:00:00,P04-2022
,LEE VALLEY RIDING CENTRE,SUPPLIES AND SERVICES,EQUIPMENT & MATERIALS,4111,P113192-SERVICE-small fly rug,25/7/2021 00:00:00,250238,21.95,JE0001,B JENKINSON & SONS LTD,28/6/2021 00:00:00,25/7/2021 00:00:00,P04-2022
,LEE VALLEY RIDING CENTRE,SUPPLIES AND SERVICES,EQUIPMENT & MATERIALS,4111,P113192-SERVICE-washbag x 2,25/7/2021 00:00:00,250238,19.6,JE0001,B JENKINSON & SONS LTD,28/6/2021 00:00:00,25/7/2021 00:00:00,P04-2022
,LEE VALLEY RIDING CENTRE,SUPPLIES AND SERVICES,EQUIPMENT & MATERIALS,4111,P113192-SERVICE-pig and sulphur oil x 2,25/7/2021 00:00:00,250238,28,JE0001,B JENKINSON & SONS LTD,28/6/2021 00:00:00,25/7/2021 00:00:00,P04-2022
,LEE VALLEY RIDING CENTRE,SUPPLIES AND SERVICES,EQUIPMENT & MATERIALS,4111,P112776-SERVICE-x6 fence posts,25/7/2021 00:00:00,250703,240,FA0099,FARM & COUNTRY SUPPLIES LTD,28/6/2021 00:00:00,25/7/2021 00:00:00,P04-2022
,LEE VALLEY RIDING CENTRE,SUPPLIES AND SERVICES,EQUIPMENT & MATERIALS,4111,P112316-SERVICE-large wheelbarrows x 4,25/7/2021 00:00:00,250704,1080,FA0099,FARM & COUNTRY SUPPLIES LTD,28/6/2021 00:00:00,25/7/2021 00:00:00,P04-2022
,LEE VALLEY RIDING CENTRE,SUPPLIES AND SERVICES,EQUIPMENT & MATERIALS,4111,P112316-SERVICE-wooden rails,25/7/2021 00:00:00,250705,70.5,FA0099,FARM & COUNTRY SUPPLIES LTD,28/6/2021 00:00:00,25/7/2021 00:00:00,P04-2022
,LEE VALLEY RIDING CENTRE,SUPPLIES AND SERVICES,EQUIPMENT & MATERIALS,4111,P112316-SERVICE-wooden rails,25/7/2021 00:00:00,250706,104.6,FA0099,FARM & COUNTRY SUPPLIES LTD,28/6/2021 00:00:00,25/7/2021 00:00:00,P04-2022
,LEE VALLEY RIDING CENTRE,SUPPLIES AND SERVICES,EQUIPMENT & MATERIALS,4111,P112316-SERVICE-large wheelbarrows x 4,25/7/2021 00:00:00,250706,6,FA0099,FARM & COUNTRY SUPPLIES LTD,28/6/2021 00:00:00,25/7/2021 00:00:00,P04-2022
,LEE VALLEY ICE CENTRE,SUPPLIES AND SERVICES,EQUIPMENT & MATERIALS,4111,P112821-SERVICE-Suregas June,07/01/2021 00:00,248812,35.4,BO0015,BOC LTD,28/6/2021 00:00:00,25/7/2021 00:00:00,P04-2022
,LEE VALLEY ICE CENTRE,SUPPLIES AND SERVICES,EQUIPMENT & MATERIALS,4111,P112951-SERVICE-Suregas Inv date 28/6/21,07/12/2021 00:00,249750,35.4,BO0015,BOC LTD,28/6/2021 00:00:00,25/7/2021 00:00:00,P04-2022
,LEE VALLEY ICE CENTRE,SUPPLIES AND SERVICES,EQUIPMENT & MATERIALS,4111,P113227-SERVICE-Disconnect supplies to bike container,25/7/2021 00:00:00,249980,220,BR0018,BRADSHAW ELECTRICAL LIMITED,28/6/2021 00:00:00,25/7/2021 00:00:00,P04-2022
,LV ICE CENTRE CATERING,SUPPLIES AND SERVICES,EQUIPMENT & MATERIALS,4111,P112816-SERVICE-Coca-cola Vending Machines June,07/01/2021 00:00,248764,33.33,CO0045,COCA COLA EUROPEAN PARTNERS GREAT BRITAIN LTD,28/6/2021 00:00:00,25/7/2021 00:00:00,P04-2022
,LV ICE CENTRE CATERING,SUPPLIES AND SERVICES,EQUIPMENT & MATERIALS,4111,P113219-SERVICE-Coca-cola Machine,25/7/2021 00:00:00,250017,33.33,CO0045,COCA COLA EUROPEAN PARTNERS GREAT BRITAIN LTD,28/6/2021 00:00:00,25/7/2021 00:00:00,P04-2022
,LV LEISURE CENTRE CAMPSITE,SUPPLIES AND SERVICES,EQUIPMENT & MATERIALS,4111,P113104-SERVICE-Maintenance supplies,25/7/2021 00:00:00,249967,27.31,SC0057,SCREWFIX DIRECT LTD,28/6/2021 00:00:00,25/7/2021 00:00:00,P04-2022
,LV LEISURE CENTRE GOLF COURSE,SUPPLIES AND SERVICES,EQUIPMENT & MATERIALS,4111,P112855-SERVICE-Equipment for Edmonton campsite,15/7/2021 00:00:00,250204,118.32,AM0406,AMAZON PAYMENTS UK LIMITED,28/6/2021 00:00:00,25/7/2021 00:00:00,P04-2022
,LV LEISURE CENTRE GOLF COURSE,SUPPLIES AND SERVICES,EQUIPMENT & MATERIALS,4111,P112921-SERVICE-bedding order for dobbs,15/7/2021 00:00:00,250227,23.32,AM0406,AMAZON PAYMENTS UK LIMITED,28/6/2021 00:00:00,25/7/2021 00:00:00,P04-2022
,LV LEISURE CENTRE GOLF COURSE,SUPPLIES AND SERVICES,EQUIPMENT & MATERIALS,4111,P113171-SERVICE-Amazon supplies for campsites,25/7/2021 00:00:00,250228,14.98,AM0406,AMAZON PAYMENTS UK LIMITED,28/6/2021 00:00:00,25/7/2021 00:00:00,P04-2022
,LV LEISURE CENTRE GOLF COURSE,SUPPLIES AND SERVICES,EQUIPMENT & MATERIALS,4111,P112974-SERVICE-tyre for machine,20/7/2021 00:00:00,250323,89.52,LE0279,REESINK TURFCARE UK LIMITED,28/6/2021 00:00:00,25/7/2021 00:00:00,P04-2022
,LV LEISURE CENTRE GOLF COURSE,SUPPLIES AND SERVICES,EQUIPMENT & MATERIALS,4111,P113019-SERVICE-camera,20/7/2021 00:00:00,250324,42.49,AM0406,AMAZON PAYMENTS UK LIMITED,28/6/2021 00:00:00,25/7/2021 00:00:00,P04-2022
,LV LEISURE CENTRE GOLF COURSE,SUPPLIES AND SERVICES,EQUIPMENT & MATERIALS,4111,P113056-SERVICE-Energy saving lights,20/7/2021 00:00:00,250498,22.49,AM0406,AMAZON PAYMENTS UK LIMITED,28/6/2021 00:00:00,25/7/2021 00:00:00,P04-2022
,LEE VALLEY WHITE WATER CENTRE,SUPPLIES AND SERVICES,EQUIPMENT & MATERIALS,4111,P112513-SERVICE-1000 Membershio cards for WWC and Velo,07/07/2021 00:00,249692,500,TH0267,THAMES CARD TECHNOLOGY LIMITED,28/6/2021 00:00:00,25/7/2021 00:00:00,P04-2022
,LEE VALLEY WHITE WATER CENTRE,SUPPLIES AND SERVICES,EQUIPMENT & MATERIALS,4111,P111825-SERVICE-Mats and Equipment blanket order for MR and J,07/05/2021 00:00,249694,-8.32,AM0406,AMAZON PAYMENTS UK LIMITED,28/6/2021 00:00:00,25/7/2021 00:00:00,P04-2022
,LEE VALLEY WHITE WATER CENTRE,SUPPLIES AND SERVICES,EQUIPMENT & MATERIALS,4111,"P112822-SERVICE-Tablet Case, aaa batteries, whiteboard marker",07/06/2021 00:00,249873,14.99,AM0406,AMAZON PAYMENTS UK LIMITED,28/6/2021 00:00:00,25/7/2021 00:00:00,P04-2022
,LEE VALLEY WHITE WATER CENTRE,SUPPLIES AND SERVICES,EQUIPMENT & MATERIALS,4111,"P112822-SERVICE-Tablet Case, aaa batteries, whiteboard marker",07/06/2021 00:00,249874,10.17,AM0406,AMAZON PAYMENTS UK LIMITED,28/6/2021 00:00:00,25/7/2021 00:00:00,P04-2022
,LEE VALLEY WHITE WATER CENTRE,SUPPLIES AND SERVICES,EQUIPMENT & MATERIALS,4111,"P112822-SERVICE-Tablet Case, aaa batteries, whiteboard marker",07/06/2021 00:00,249875,8.32,AM0406,AMAZON PAYMENTS UK LIMITED,28/6/2021 00:00:00,25/7/2021 00:00:00,P04-2022
,LEE VALLEY WHITE WATER CENTRE,SUPPLIES AND SERVICES,EQUIPMENT & MATERIALS,4111,P112878-SERVICE-Tablet case and screen protector,13/7/2021 00:00:00,249968,14.99,AM0406,AMAZON PAYMENTS UK LIMITED,28/6/2021 00:00:00,25/7/2021 00:00:00,P04-2022
,LEE VALLEY WHITE WATER CENTRE,SUPPLIES AND SERVICES,EQUIPMENT & MATERIALS,4111,P112878-SERVICE-Tablet case and screen protector,13/7/2021 00:00:00,249969,4.88,AM0406,AMAZON PAYMENTS UK LIMITED,28/6/2021 00:00:00,25/7/2021 00:00:00,P04-2022
,LEE VALLEY WHITE WATER CENTRE,SUPPLIES AND SERVICES,EQUIPMENT & MATERIALS,4111,P112875-SERVICE-Pens,13/7/2021 00:00:00,249970,8.08,AM0406,AMAZON PAYMENTS UK LIMITED,28/6/2021 00:00:00,25/7/2021 00:00:00,P04-2022
,LEE VALLEY WHITE WATER CENTRE,SUPPLIES AND SERVICES,EQUIPMENT & MATERIALS,4111,P111825-SERVICE-Mats and Equipment blanket order for MR and J,15/7/2021 00:00:00,250181,4.99,AM0406,AMAZON PAYMENTS UK LIMITED,28/6/2021 00:00:00,25/7/2021 00:00:00,P04-2022
,LEE VALLEY WHITE WATER CENTRE,SUPPLIES AND SERVICES,EQUIPMENT & MATERIALS,4111,P113062-SERVICE-Buffs and AA batteries,19/7/2021 00:00:00,250467,8.25,AM0406,AMAZON PAYMENTS UK LIMITED,28/6/2021 00:00:00,25/7/2021 00:00:00,P04-2022
,LEE VALLEY WHITE WATER CENTRE,SUPPLIES AND SERVICES,EQUIPMENT & MATERIALS,4111,P113062-SERVICE-Buffs and AA batteries,19/7/2021 00:00:00,250468,29.97,AM0406,AMAZON PAYMENTS UK LIMITED,28/6/2021 00:00:00,25/7/2021 00:00:00,P04-2022
,LEE VALLEY WHITE WATER CENTRE,SUPPLIES AND SERVICES,EQUIPMENT & MATERIALS,4111,P113096-SERVICE-Gaffer tape and cable ties.,25/7/2021 00:00:00,250557,13.08,AM0406,AMAZON PAYMENTS UK LIMITED,28/6/2021 00:00:00,25/7/2021 00:00:00,P04-2022
,LEE VALLEY WHITE WATER CENTRE,SUPPLIES AND SERVICES,EQUIPMENT & MATERIALS,4111,P113096-SERVICE-Gaffer tape and cable ties.,25/7/2021 00:00:00,250558,14.82,AM0406,AMAZON PAYMENTS UK LIMITED,28/6/2021 00:00:00,25/7/2021 00:00:00,P04-2022
,LEE VALLEY WHITE WATER CENTRE,SUPPLIES AND SERVICES,EQUIPMENT & MATERIALS,4111,P113132-SERVICE-Gate padlocks,25/7/2021 00:00:00,250582,46.42,AM0406,AMAZON PAYMENTS UK LIMITED,28/6/2021 00:00:00,25/7/2021 00:00:00,P04-2022
,LEE VALLEY WHITE WATER CENTRE,SUPPLIES AND SERVICES,EQUIPMENT & MATERIALS,4111,P111825-SERVICE-Mats and Equipment blanket order for MR and J,25/7/2021 00:00:00,250761,21,AM0406,AMAZON PAYMENTS UK LIMITED,28/6/2021 00:00:00,25/7/2021 00:00:00,P04-2022
,LEE VALLEY CAMPSITE,SUPPLIES AND SERVICES,EQUIPMENT MAINTENANCE,4112,P112515-SERVICE-WASHING MACHINE REPAIR,07/05/2021 00:00,249221,167,AL0434,ALLSOP & FRANCIS,28/6/2021 00:00:00,25/7/2021 00:00:00,P04-2022
,LEE VALLEY CAMPSITE,SUPPLIES AND SERVICES,EQUIPMENT MAINTENANCE,4112,CAPSER,07/07/2021 00:00,249860,1500,MO0041,CAPSER,28/6/2021 00:00:00,25/7/2021 00:00:00,P04-2022
,LEE VALLEY CAMPSITE,SUPPLIES AND SERVICES,EQUIPMENT MAINTENANCE,4112,CAPSER,07/07/2021 00:00,249860,-1760,MO0041,CAPSER,28/6/2021 00:00:00,25/7/2021 00:00:00,P04-2022
,LEE VALLEY CAMPSITE,SUPPLIES AND SERVICES,EQUIPMENT MAINTENANCE,4112,P112684-SERVICE-BASE,07/07/2021 00:00,249860,1760,MO0041,CAPSER,28/6/2021 00:00:00,25/7/2021 00:00:00,P04-2022
,LEE VALLEY CAMPSITE,SUPPLIES AND SERVICES,EQUIPMENT MAINTENANCE,4112,P112684-SERVICE-REMOVE FROM PITCH,07/07/2021 00:00,249860,500,MO0041,CAPSER,28/6/2021 00:00:00,25/7/2021 00:00:00,P04-2022
,LEE VALLEY CAMPSITE,SUPPLIES AND SERVICES,EQUIPMENT MAINTENANCE,4112,CAPSER,07/07/2021 00:00,249860,500,MO0041,CAPSER,28/6/2021 00:00:00,25/7/2021 00:00:00,P04-2022
,LEE VALLEY CAMPSITE,SUPPLIES AND SERVICES,EQUIPMENT MAINTENANCE,4112,CAPSER,07/07/2021 00:00,249860,-500,MO0041,CAPSER,28/6/2021 00:00:00,25/7/2021 00:00:00,P04-2022
,LEE VALLEY CAMPSITE,SUPPLIES AND SERVICES,EQUIPMENT MAINTENANCE,4112,P112684-SERVICE-PLUMB,07/07/2021 00:00,249860,425,MO0041,CAPSER,28/6/2021 00:00:00,25/7/2021 00:00:00,P04-2022
,LEE VALLEY CAMPSITE,SUPPLIES AND SERVICES,EQUIPMENT MAINTENANCE,4112,CAPSER,07/07/2021 00:00,249860,260,MO0041,CAPSER,28/6/2021 00:00:00,25/7/2021 00:00:00,P04-2022
,LEE VALLEY CAMPSITE,SUPPLIES AND SERVICES,EQUIPMENT MAINTENANCE,4112,CAPSER,07/07/2021 00:00,249861,-675,MO0041,CAPSER,28/6/2021 00:00:00,25/7/2021 00:00:00,P04-2022
,LEE VALLEY CAMPSITE,SUPPLIES AND SERVICES,EQUIPMENT MAINTENANCE,4112,CAPSER,07/07/2021 00:00,249861,350,MO0041,CAPSER,28/6/2021 00:00:00,25/7/2021 00:00:00,P04-2022
,LEE VALLEY CAMPSITE,SUPPLIES AND SERVICES,EQUIPMENT MAINTENANCE,4112,CAPSER,07/07/2021 00:00,249861,325,MO0041,CAPSER,28/6/2021 00:00:00,25/7/2021 00:00:00,P04-2022
,LEE VALLEY CAMPSITE,SUPPLIES AND SERVICES,EQUIPMENT MAINTENANCE,4112,P112683-SERVICE-Plot 20  site & plumb,07/07/2021 00:00,249861,675,MO0041,CAPSER,28/6/2021 00:00:00,25/7/2021 00:00:00,P04-2022
,LEE VALLEY CAMPSITE,SUPPLIES AND SERVICES,EQUIPMENT MAINTENANCE,4112,P112682-SERVICE-plots 3 and 47,07/07/2021 00:00,249862,500,MO0041,CAPSER,28/6/2021 00:00:00,25/7/2021 00:00:00,P04-2022
,LEE VALLEY CAMPSITE,SUPPLIES AND SERVICES,EQUIPMENT MAINTENANCE,4112,P112986-SERVICE-visits re Loss of power  to hook ups,13/7/2021 00:00:00,249977,120,BR0018,BRADSHAW ELECTRICAL LIMITED,28/6/2021 00:00:00,25/7/2021 00:00:00,P04-2022
,LEE VALLEY CAMPSITE,SUPPLIES AND SERVICES,EQUIPMENT MAINTENANCE,4112,P112986-SERVICE-install check meter static 16,13/7/2021 00:00:00,249978,100,BR0018,BRADSHAW ELECTRICAL LIMITED,28/6/2021 00:00:00,25/7/2021 00:00:00,P04-2022
,LEE VALLEY CAMPSITE,SUPPLIES AND SERVICES,EQUIPMENT MAINTENANCE,4112,P112986-SERVICE-callout  re broken bollard,13/7/2021 00:00:00,250033,120,BR0018,BRADSHAW ELECTRICAL LIMITED,28/6/2021 00:00:00,25/7/2021 00:00:00,P04-2022
,LEE VALLEY CAMPSITE,SUPPLIES AND SERVICES,EQUIPMENT MAINTENANCE,4112,P112986-SERVICE-bollard repair & replacement lamps,13/7/2021 00:00:00,250214,60,BR0018,BRADSHAW ELECTRICAL LIMITED,28/6/2021 00:00:00,25/7/2021 00:00:00,P04-2022
,LEE VALLEY CARAVAN PARK,SUPPLIES AND SERVICES,EQUIPMENT MAINTENANCE,4112,P112973-SERVICE-Flush toilet pipes,13/7/2021 00:00:00,249086,220,CO0550,CONVERT WATER LTD,28/6/2021 00:00:00,25/7/2021 00:00:00,P04-2022
,LEE VALLEY CARAVAN PARK,SUPPLIES AND SERVICES,EQUIPMENT MAINTENANCE,4112,P112883-SERVICE-Washing machine and dryer service,07/05/2021 00:00,249912,767.4,AL0434,ALLSOP & FRANCIS,28/6/2021 00:00:00,25/7/2021 00:00:00,P04-2022
,LEE VALLEY CARAVAN PARK,SUPPLIES AND SERVICES,EQUIPMENT MAINTENANCE,4112,P113236-SERVICE-Replace RCD in a wigwam,25/7/2021 00:00:00,249981,180,BR0018,BRADSHAW ELECTRICAL LIMITED,28/6/2021 00:00:00,25/7/2021 00:00:00,P04-2022
,LEE VALLEY CARAVAN PARK,SUPPLIES AND SERVICES,EQUIPMENT MAINTENANCE,4112,P113239-SERVICE-July pest control,25/7/2021 00:00:00,250068,70,VE0006,VERMINATE CITY & RURAL PEST CONTROL LTD,28/6/2021 00:00:00,25/7/2021 00:00:00,P04-2022
,LEE VALLEY CARAVAN PARK,SUPPLIES AND SERVICES,EQUIPMENT MAINTENANCE,4112,P110450-SERVICE-Kingfisher,25/7/2021 00:00:00,250295,339.71,KI0090,KINGFISHER ENVIRONMENTAL SERVICES LTD,28/6/2021 00:00:00,25/7/2021 00:00:00,P04-2022
,LEE VALLEY CARAVAN PARK,SUPPLIES AND SERVICES,EQUIPMENT MAINTENANCE,4112,P113241-SERVICE-Blocked drain clearance,25/7/2021 00:00:00,250298,280,CO0550,CONVERT WATER LTD,28/6/2021 00:00:00,25/7/2021 00:00:00,P04-2022
,LEE VALLEY CARAVAN PARK,SUPPLIES AND SERVICES,EQUIPMENT MAINTENANCE,4112,P112765-SERVICE-Height Barrier Repairs,25/7/2021 00:00:00,250500,360,LW0268,LWC ENGINEERING LIMITED,28/6/2021 00:00:00,25/7/2021 00:00:00,P04-2022
P&V,ALMOST WILD CAMPSITE,SUPPLIES AND SERVICES,EQUIPMENT MAINTENANCE,4112,P112829-SERVICE-Fire extinguisher check,15/7/2021 00:00:00,249869,28.22,TJ0009,T.J.FIRE & SECURITY,28/6/2021 00:00:00,25/7/2021 00:00:00,P04-2022
,LEE VALLEY VELOPARK,SUPPLIES AND SERVICES,EQUIPMENT MAINTENANCE,4112,P112755-SERVICE-Call Out,07/01/2021 00:00,249459,250,OL0105,OLD BARN AUDIO,28/6/2021 00:00:00,25/7/2021 00:00:00,P04-2022
,LEE VALLEY VELOPARK,SUPPLIES AND SERVICES,EQUIPMENT MAINTENANCE,4112,P112748-SERVICE-Gator Repair,25/7/2021 00:00:00,250600,153,AP0245,APS LIMITED,28/6/2021 00:00:00,25/7/2021 00:00:00,P04-2022
,LEE VALLEY VELOPARK CATERING,SUPPLIES AND SERVICES,EQUIPMENT MAINTENANCE,4112,P113052-SERVICE-Catering Equipment Maintenance,19/7/2021 00:00:00,250343,2250,RO0216,ROMBOUTS COFFEE GB LIMITED,28/6/2021 00:00:00,25/7/2021 00:00:00,P04-2022
,LV HOCKEY AND TENNIS CATERING,SUPPLIES AND SERVICES,EQUIPMENT MAINTENANCE,4112,P113053-SERVICE-Catering Equipment Maintenance,19/7/2021 00:00:00,250344,1125,RO0216,ROMBOUTS COFFEE GB LIMITED,28/6/2021 00:00:00,25/7/2021 00:00:00,P04-2022
,LV LEISURE CENTRE GOLF COURSE,SUPPLIES AND SERVICES,EQUIPMENT MAINTENANCE,4112,P112564-SERVICE-Engineer visit,20/7/2021 00:00:00,249226,1626.82,SJ0635,SJS IRRIGATION,28/6/2021 00:00:00,25/7/2021 00:00:00,P04-2022
R&B,INFORMATION TECHNOLOGY,SUPPLIES AND SERVICES,IT CORE SYSTEMS,4113,P112895-SERVICE-Xcel Download Maintenance,20/7/2021 00:00:00,249693,587.81,CE0021,ADVANCED BUSINESS SOLUTIONS,28/6/2021 00:00:00,25/7/2021 00:00:00,P04-2022
R&B,INFORMATION TECHNOLOGY,SUPPLIES AND SERVICES,IT CORE SYSTEMS,4113,P112895-SERVICE-Web Chart of Accounts,20/7/2021 00:00:00,249693,587.81,CE0021,ADVANCED BUSINESS SOLUTIONS,28/6/2021 00:00:00,25/7/2021 00:00:00,P04-2022
R&B,INFORMATION TECHNOLOGY,SUPPLIES AND SERVICES,IT CORE SYSTEMS,4113,P112895-SERVICE-SAP Business Objectives Enterprise QRA,20/7/2021 00:00:00,249693,587.81,CE0021,ADVANCED BUSINESS SOLUTIONS,28/6/2021 00:00:00,25/7/2021 00:00:00,P04-2022
R&B,INFORMATION TECHNOLOGY,SUPPLIES AND SERVICES,IT CORE SYSTEMS,4113,P112895-SERVICE-EFin DBA Services,20/7/2021 00:00:00,249693,587.81,CE0021,ADVANCED BUSINESS SOLUTIONS,28/6/2021 00:00:00,25/7/2021 00:00:00,P04-2022
R&B,INFORMATION TECHNOLOGY,SUPPLIES AND SERVICES,IT CORE SYSTEMS,4113,P112895-SERVICE-V1 Login Data Mapping,20/7/2021 00:00:00,249693,590.54,CE0021,ADVANCED BUSINESS SOLUTIONS,28/6/2021 00:00:00,25/7/2021 00:00:00,P04-2022
R&B,INFORMATION TECHNOLOGY,SUPPLIES AND SERVICES,IT CORE SYSTEMS,4113,P112895-SERVICE-Paperclip Maintenance,20/7/2021 00:00:00,249693,587.81,CE0021,ADVANCED BUSINESS SOLUTIONS,28/6/2021 00:00:00,25/7/2021 00:00:00,P04-2022
R&B,INFORMATION TECHNOLOGY,SUPPLIES AND SERVICES,IT CORE SYSTEMS,4113,P112895-SERVICE-Collaborative Interface Broker,20/7/2021 00:00:00,249693,587.81,CE0021,ADVANCED BUSINESS SOLUTIONS,28/6/2021 00:00:00,25/7/2021 00:00:00,P04-2022
R&B,INFORMATION TECHNOLOGY,SUPPLIES AND SERVICES,IT CORE SYSTEMS,4113,P112895-SERVICE-Document Imaging Maintenance,20/7/2021 00:00:00,249693,587.81,CE0021,ADVANCED BUSINESS SOLUTIONS,28/6/2021 00:00:00,25/7/2021 00:00:00,P04-2022
R&B,INFORMATION TECHNOLOGY,SUPPLIES AND SERVICES,IT CORE SYSTEMS,4113,P112895-SERVICE-Collaborative Planning Core Support,20/7/2021 00:00:00,249693,590.54,CE0021,ADVANCED BUSINESS SOLUTIONS,28/6/2021 00:00:00,25/7/2021 00:00:00,P04-2022
R&B,INFORMATION TECHNOLOGY,SUPPLIES AND SERVICES,IT CORE SYSTEMS,4113,P112895-SERVICE-Xcel Upload Maintenance,20/7/2021 00:00:00,249693,587.81,CE0021,ADVANCED BUSINESS SOLUTIONS,28/6/2021 00:00:00,25/7/2021 00:00:00,P04-2022
R&B,INFORMATION TECHNOLOGY,SUPPLIES AND SERVICES,IT CORE SYSTEMS,4113,P113136-SERVICE-Managed Fee 14 Sep - 13 Oct 21,20/7/2021 00:00:00,250488,1246.24,CE0021,ADVANCED BUSINESS SOLUTIONS,28/6/2021 00:00:00,25/7/2021 00:00:00,P04-2022
R&B,INFORMATION TECHNOLOGY,SUPPLIES AND SERVICES,IT CORE SYSTEMS,4113,P113138-SERVICE-Monthly Service fee's 15 Jul - 14 Aug 21,20/7/2021 00:00:00,250545,351,CO0440,VERIFONE SERVICES UK & IRELAND LTD,28/6/2021 00:00:00,25/7/2021 00:00:00,P04-2022
R&B,INFORMATION TECHNOLOGY,SUPPLIES AND SERVICES,IT NETWORK & TELECOMS COSTS,4114,P111480-SERVICE-Monthly SIP Apr 21-Mar 22,07/12/2021 00:00,249884,149.48,FR0131,VOICEFLEX LTD,28/6/2021 00:00:00,25/7/2021 00:00:00,P04-2022
R&B,INFORMATION TECHNOLOGY,SUPPLIES AND SERVICES,IT NETWORK & TELECOMS COSTS,4114,P112912-SERVICE-MPLS for all sites Jul 21,13/7/2021 00:00:00,250004,11996.86,PP0200,PPSNET LIMITED,28/6/2021 00:00:00,25/7/2021 00:00:00,P04-2022
,LEE VALLEY CARAVAN PARK,SUPPLIES AND SERVICES,IT NETWORK & TELECOMS COSTS,4114,MY O2,07/07/2021 00:00,249721,54,O20134,MY O2,28/6/2021 00:00:00,25/7/2021 00:00:00,P04-2022
,LEE VALLEY CARAVAN PARK,SUPPLIES AND SERVICES,IT NETWORK & TELECOMS COSTS,4114,MY O2,25/7/2021 00:00:00,250824,54,O20134,MY O2,28/6/2021 00:00:00,25/7/2021 00:00:00,P04-2022
P&V,FISHERIES MANAGEMENT,SUPPLIES AND SERVICES,EQUIPMENT HIRE,4115,"P111980-SERVICE-52 weeks hire at Stansted Innings, Marsh Lane",07/05/2021 00:00,249681,92,TO0092,TOILETS+ LTD,28/6/2021 00:00:00,25/7/2021 00:00:00,P04-2022
,LEE VALLEY ICE CENTRE,SUPPLIES AND SERVICES,EQUIPMENT HIRE,4115,P112960-SERVICE-Radio Hire June 21,13/7/2021 00:00:00,249865,213.48,LO0133,RADIOCOMS SYSTEMS LTD,28/6/2021 00:00:00,25/7/2021 00:00:00,P04-2022
,LV LEISURE CENTRE CAMPSITE,SUPPLIES AND SERVICES,EQUIPMENT HIRE,4115,P112628-SERVICE-Utility vehicles,19/7/2021 00:00:00,249926,450,CA0698,CAMBRIDGE GOLF COMPANY,28/6/2021 00:00:00,25/7/2021 00:00:00,P04-2022
P&V,MYDDELTON HOUSE,SUPPLIES AND SERVICES,IT HARDWARE & SOFTWARE COSTS,4116,ZEN INTERNET LTD,07/12/2021 00:00,249691,29.5,ZE0007,ZEN INTERNET LTD,28/6/2021 00:00:00,25/7/2021 00:00:00,P04-2022
P&V,MYDDELTON HOUSE,SUPPLIES AND SERVICES,IT HARDWARE & SOFTWARE COSTS,4116,ZEN INTERNET LTD,21/7/2021 00:00:00,250303,42,ZE0007,ZEN INTERNET LTD,28/6/2021 00:00:00,25/7/2021 00:00:00,P04-2022
R&B,INFORMATION TECHNOLOGY,SUPPLIES AND SERVICES,IT HARDWARE & SOFTWARE COSTS,4116,P111692-SERVICE-Email filtering & large Files,20/7/2021 00:00:00,250509,738,IQ0022,IQUAL,28/6/2021 00:00:00,25/7/2021 00:00:00,P04-2022
,LEE VALLEY MARINA SPRINGFIELD,SUPPLIES AND SERVICES,IT HARDWARE & SOFTWARE COSTS,4116,ZEN INTERNET LTD,21/7/2021 00:00:00,250304,38,ZE0007,ZEN INTERNET LTD,28/6/2021 00:00:00,25/7/2021 00:00:00,P04-2022
,LEE VALLEY MARINA STANSTEAD,SUPPLIES AND SERVICES,IT HARDWARE & SOFTWARE COSTS,4116,ZEN INTERNET LTD,21/7/2021 00:00:00,250320,31.32,ZE0007,ZEN INTERNET LTD,28/6/2021 00:00:00,25/7/2021 00:00:00,P04-2022
,LEE VALLEY CARAVAN PARK,SUPPLIES AND SERVICES,IT HARDWARE & SOFTWARE COSTS,4116,P112913-SERVICE-Fibre Connection July 21,13/7/2021 00:00:00,250247,835,PP0200,PPSNET LIMITED,28/6/2021 00:00:00,25/7/2021 00:00:00,P04-2022
,LEE VALLEY VELOPARK,SUPPLIES AND SERVICES,IT HARDWARE & SOFTWARE COSTS,4116,P112968-SERVICE-Dell OptiPlex 3080 Micro - Intel Core i5 - 10,25/7/2021 00:00:00,250581,3600,IQ0022,IQUAL,28/6/2021 00:00:00,25/7/2021 00:00:00,P04-2022
,LEE VALLEY RIDING CENTRE,SUPPLIES AND SERVICES,IT HARDWARE & SOFTWARE COSTS,4116,ZEN INTERNET LTD,19/7/2021 00:00:00,250029,31.32,ZE0007,ZEN INTERNET LTD,28/6/2021 00:00:00,25/7/2021 00:00:00,P04-2022
,LEE VALLEY ICE CENTRE,SUPPLIES AND SERVICES,IT HARDWARE & SOFTWARE COSTS,4116,P111997-SERVICE-Annual services/maintenace fee Ice Centre,20/7/2021 00:00:00,250266,-887.8,WI0209,WI FI SPARK LIMITED,28/6/2021 00:00:00,25/7/2021 00:00:00,P04-2022
,LEE VALLEY WHITE WATER CENTRE,SUPPLIES AND SERVICES,IT HARDWARE & SOFTWARE COSTS,4116,ZEN INTERNET LTD,25/7/2021 00:00:00,250590,17.83,ZE0007,ZEN INTERNET LTD,28/6/2021 00:00:00,25/7/2021 00:00:00,P04-2022
,LEE VALLEY ATHLETICS CENTRE,SUPPLIES AND SERVICES,VENDING AGREEMENTS,4117,P112837-SERVICE-LVAC STOCK 1.6.21 INV P940678,07/01/2021 00:00,249372,253.16,RI0176,RIJO 42 INGREDIENTS LIMITED,28/6/2021 00:00:00,25/7/2021 00:00:00,P04-2022
,LEE VALLEY ATHLETICS CENTRE,SUPPLIES AND SERVICES,VENDING AGREEMENTS,4117,RIJO 42 INGREDIENTS LIMITED,07/01/2021 00:00,249372,115.4,RI0176,RIJO 42 INGREDIENTS LIMITED,28/6/2021 00:00:00,25/7/2021 00:00:00,P04-2022
,LEE VALLEY ATHLETICS CENTRE,SUPPLIES AND SERVICES,VENDING AGREEMENTS,4117,RIJO 42 INGREDIENTS LIMITED,07/01/2021 00:00,249372,-253.16,RI0176,RIJO 42 INGREDIENTS LIMITED,28/6/2021 00:00:00,25/7/2021 00:00:00,P04-2022
,LEE VALLEY ATHLETICS CENTRE,SUPPLIES AND SERVICES,VENDING AGREEMENTS,4117,RIJO 42 INGREDIENTS LIMITED,07/01/2021 00:00,249372,137.76,RI0176,RIJO 42 INGREDIENTS LIMITED,28/6/2021 00:00:00,25/7/2021 00:00:00,P04-2022
R&B,INFORMATION TECHNOLOGY,SUPPLIES AND SERVICES,IT MAINTENANCE AGREEMENTS,4119,P112867-SERVICE-Condenser & Wall Mounted unit repair investig,20/7/2021 00:00:00,250297,225,MA0032,MACAIR FMI LIMITED,28/6/2021 00:00:00,25/7/2021 00:00:00,P04-2022
,LEE VALLEY MARINA SPRINGFIELD,SUPPLIES AND SERVICES,IT MAINTENANCE AGREEMENTS,4119,P113135-SERVICE-Support &  Data Jul 21,20/7/2021 00:00:00,250485,72.44,CY0653,CYBERTILL,28/6/2021 00:00:00,25/7/2021 00:00:00,P04-2022
,LEE VALLEY MARINA STANSTEAD,SUPPLIES AND SERVICES,IT MAINTENANCE AGREEMENTS,4119,P113135-SERVICE-Support & Data Jul 21,20/7/2021 00:00:00,250485,72.44,CY0653,CYBERTILL,28/6/2021 00:00:00,25/7/2021 00:00:00,P04-2022
,LEE VALLEY CAMPSITE,SUPPLIES AND SERVICES,IT MAINTENANCE AGREEMENTS,4119,P111852-SERVICE-Monthlt Subscription may 21 - Oct 21 Sewardst,20/7/2021 00:00:00,250479,145.5,NE0218,NETGUIDES LIMITED,28/6/2021 00:00:00,25/7/2021 00:00:00,P04-2022
,LEE VALLEY CARAVAN PARK,SUPPLIES AND SERVICES,IT MAINTENANCE AGREEMENTS,4119,P111852-SERVICE-Monthly Subscription May 21 - Oct 21 DW,20/7/2021 00:00:00,250479,145.5,NE0218,NETGUIDES LIMITED,28/6/2021 00:00:00,25/7/2021 00:00:00,P04-2022
P&V,ALMOST WILD CAMPSITE,SUPPLIES AND SERVICES,IT MAINTENANCE AGREEMENTS,4119,P111852-SERVICE-Monthly Subscription May 21 - Oct 21 AWC,20/7/2021 00:00:00,250479,145.5,NE0218,NETGUIDES LIMITED,28/6/2021 00:00:00,25/7/2021 00:00:00,P04-2022
,LV LEISURE CENTRE CAMPSITE,SUPPLIES AND SERVICES,IT MAINTENANCE AGREEMENTS,4119,P111852-SERVICE-Monthly Subscription May 21 - Oct 21 Edmonton,20/7/2021 00:00:00,250479,145.5,NE0218,NETGUIDES LIMITED,28/6/2021 00:00:00,25/7/2021 00:00:00,P04-2022
,LV LEISURE CENTRE GOLF COURSE,SUPPLIES AND SERVICES,IT MAINTENANCE AGREEMENTS,4119,P113007-SERVICE-Digitickets Services June 2021,19/7/2021 00:00:00,249989,665.37,DI0304,DIGITAL TICKETING SYSTEMS LTD (DIGITICKETS),28/6/2021 00:00:00,25/7/2021 00:00:00,P04-2022
P&V,SOUTH AREA RANGERS,SUPPLIES AND SERVICES,MATERIALS (LOCKS),4124,P112215-SERVICE-3x ASSA Barrels,07/12/2021 00:00,249990,154.39,LO0020,LOCK AND KEY SERVICES,28/6/2021 00:00:00,25/7/2021 00:00:00,P04-2022
P&V,SOUTH AREA RANGERS,SUPPLIES AND SERVICES,MATERIALS (LOCKS),4124,P112215-SERVICE-10x ASSA Bodies,07/12/2021 00:00,249990,336.48,LO0020,LOCK AND KEY SERVICES,28/6/2021 00:00:00,25/7/2021 00:00:00,P04-2022
,LEE VALLEY CARAVAN PARK,SUPPLIES AND SERVICES,MATERIALS (GROUNDS MAINT),4125,P113240-SERVICE-Giant hogweed control,25/7/2021 00:00:00,250208,131.25,GO0044,S.H.GOSS & CO LTD,28/6/2021 00:00:00,25/7/2021 00:00:00,P04-2022
,LV LEISURE CENTRE GOLF COURSE,SUPPLIES AND SERVICES,MATERIALS (GROUNDS MAINT),4125,P112713-SERVICE-Machinary for green mower,20/7/2021 00:00:00,249492,68.03,LE0279,REESINK TURFCARE UK LIMITED,28/6/2021 00:00:00,25/7/2021 00:00:00,P04-2022
,LV LEISURE CENTRE GOLF COURSE,SUPPLIES AND SERVICES,MATERIALS (GROUNDS MAINT),4125,P112963-SERVICE-machinary items,15/7/2021 00:00:00,250270,335.12,LE0279,REESINK TURFCARE UK LIMITED,28/6/2021 00:00:00,25/7/2021 00:00:00,P04-2022
P&V,MYDDELTON HOUSE GARDENS,SUPPLIES AND SERVICES,MATERIALS (PLANTS & SHRUBS),4126,P113165-SERVICE-Quotation # Q15.000004981,25/7/2021 00:00:00,250776,449,GR0446,GRASSLANDS (NURSERIES) LIMITED,28/6/2021 00:00:00,25/7/2021 00:00:00,P04-2022
,LEE VALLEY MARINA SPRINGFIELD,SUPPLIES AND SERVICES,MATERIALS (TOOLS & PLANT),4127,P112592-SERVICE-To supply items as requested,07/05/2021 00:00,249447,240,EL0281,ELTHAM WELDING SUPPLIES LIMITED,28/6/2021 00:00:00,25/7/2021 00:00:00,P04-2022
,LEE VALLEY MARINA SPRINGFIELD,SUPPLIES AND SERVICES,MATERIALS (TOOLS & PLANT),4127,P112592-SERVICE-To supply items as requested,07/05/2021 00:00,249448,169.5,EL0281,ELTHAM WELDING SUPPLIES LIMITED,28/6/2021 00:00:00,25/7/2021 00:00:00,P04-2022
,STANSTEAD RECHARGEABLE WORKS,SUPPLIES AND SERVICES,MATERIALS (TOOLS & PLANT),4127,P112741-SERVICE-marina services,07/05/2021 00:00,249650,540,WA0251,M J MARINE SERVICES,28/6/2021 00:00:00,25/7/2021 00:00:00,P04-2022
,STANSTEAD RECHARGEABLE WORKS,SUPPLIES AND SERVICES,MATERIALS (TOOLS & PLANT),4127,P112978-SERVICE-yard services/gear box,13/7/2021 00:00:00,250261,710,WA0251,M J MARINE SERVICES,28/6/2021 00:00:00,25/7/2021 00:00:00,P04-2022
,STANSTEAD RECHARGEABLE WORKS,SUPPLIES AND SERVICES,MATERIALS (TOOLS & PLANT),4127,P113228-SERVICE-marina services,25/7/2021 00:00:00,250783,750,WA0251,M J MARINE SERVICES,28/6/2021 00:00:00,25/7/2021 00:00:00,P04-2022
,SPRINGFIELD RECHARGEABLE WORKS,SUPPLIES AND SERVICES,MATERIALS (ENG OTHER),4130,P112087-SERVICE-Hire 80 Ton Crane on Wednesday 26th May 2021,07/05/2021 00:00,249490,800,BA0339,BALDWINS CRANE HIRE LTD,28/6/2021 00:00:00,25/7/2021 00:00:00,P04-2022
,SPRINGFIELD RECHARGEABLE WORKS,SUPPLIES AND SERVICES,MATERIALS (ENG OTHER),4130,P112087-SERVICE-To Provide insurance @ 15%,07/05/2021 00:00,249490,120,BA0339,BALDWINS CRANE HIRE LTD,28/6/2021 00:00:00,25/7/2021 00:00:00,P04-2022
,SPRINGFIELD RECHARGEABLE WORKS,SUPPLIES AND SERVICES,MATERIALS (ENG OTHER),4130,P112719-SERVICE-Hire 80 Ton Crane on Wednesday 7th July 2021,20/7/2021 00:00:00,250501,800,BA0339,BALDWINS CRANE HIRE LTD,28/6/2021 00:00:00,25/7/2021 00:00:00,P04-2022
,SPRINGFIELD RECHARGEABLE WORKS,SUPPLIES AND SERVICES,MATERIALS (ENG OTHER),4130,P112719-SERVICE-To Provide insurance @ 15%,20/7/2021 00:00:00,250501,120,BA0339,BALDWINS CRANE HIRE LTD,28/6/2021 00:00:00,25/7/2021 00:00:00,P04-2022
,LEE VALLEY ICE CENTRE,SUPPLIES AND SERVICES,MATERIALS (ENG OTHER),4130,P112814-SERVICE-Sanitary Disposal June,07/01/2021 00:00,248293,32.17,PE0015,PHS GROUP PLC,28/6/2021 00:00:00,25/7/2021 00:00:00,P04-2022
,LEE VALLEY ICE CENTRE,SUPPLIES AND SERVICES,MATERIALS (ENG OTHER),4130,P112815-SERVICE-Sanitary Disposal May,07/01/2021 00:00,248601,32.17,PE0015,PHS GROUP PLC,28/6/2021 00:00:00,25/7/2021 00:00:00,P04-2022
,LEE VALLEY ICE CENTRE,SUPPLIES AND SERVICES,MATERIALS (ENG OTHER),4130,P112819-SERVICE-Radio's Hire May,07/01/2021 00:00,248801,220.56,LO0133,RADIOCOMS SYSTEMS LTD,28/6/2021 00:00:00,25/7/2021 00:00:00,P04-2022
,LEE VALLEY ICE CENTRE,SUPPLIES AND SERVICES,MATERIALS (ENG OTHER),4130,P112825-SERVICE-Sanitary Disposal Jan/Feb,07/01/2021 00:00,249423,32.17,PE0015,PHS GROUP PLC,28/6/2021 00:00:00,25/7/2021 00:00:00,P04-2022
,LEE VALLEY ICE CENTRE,SUPPLIES AND SERVICES,MATERIALS (ENG OTHER),4130,P112830-SERVICE-Sanitary Disposal Feb/Mar,07/01/2021 00:00,249424,32.17,PE0015,PHS GROUP PLC,28/6/2021 00:00:00,25/7/2021 00:00:00,P04-2022
,LEE VALLEY ICE CENTRE,SUPPLIES AND SERVICES,MATERIALS (ENG OTHER),4130,P112833-SERVICE-Sanitary Disposal,07/01/2021 00:00,249425,32.17,PE0015,PHS GROUP PLC,28/6/2021 00:00:00,25/7/2021 00:00:00,P04-2022
,LEE VALLEY WHITE WATER CENTRE,SUPPLIES AND SERVICES,MATERIALS (CHEMICALS),4131,P111382-SERVICE-SO for Acid and Hydro for 10 weeks,07/05/2021 00:00,249674,273.43,AL0074,BRENNTAG UK GROUP LIMITED,28/6/2021 00:00:00,25/7/2021 00:00:00,P04-2022
,LEE VALLEY WHITE WATER CENTRE,SUPPLIES AND SERVICES,MATERIALS (CHEMICALS),4131,P111382-SERVICE-SO for Acid and Hydro for 10 weeks,07/05/2021 00:00,249886,253.43,AL0074,BRENNTAG UK GROUP LIMITED,28/6/2021 00:00:00,25/7/2021 00:00:00,P04-2022
,LEE VALLEY WHITE WATER CENTRE,SUPPLIES AND SERVICES,MATERIALS (CHEMICALS),4131,P111382-SERVICE-SO for Acid and Hydro for 10 weeks,07/05/2021 00:00,249887,479.5,AL0074,BRENNTAG UK GROUP LIMITED,28/6/2021 00:00:00,25/7/2021 00:00:00,P04-2022
,LEE VALLEY WHITE WATER CENTRE,SUPPLIES AND SERVICES,MATERIALS (CHEMICALS),4131,P111382-SERVICE-SO for Acid and Hydro for 10 weeks,19/7/2021 00:00:00,250499,273.43,AL0074,BRENNTAG UK GROUP LIMITED,28/6/2021 00:00:00,25/7/2021 00:00:00,P04-2022
,LEE VALLEY WHITE WATER CENTRE,SUPPLIES AND SERVICES,MATERIALS (CHEMICALS),4131,P111382-SERVICE-SO for Acid and Hydro for 10 weeks,20/7/2021 00:00:00,250546,273.43,AL0074,BRENNTAG UK GROUP LIMITED,28/6/2021 00:00:00,25/7/2021 00:00:00,P04-2022
,LEE VALLEY ATHLETICS CENTRE,SUPPLIES AND SERVICES,MATERIALS (MEDICAL),4132,P113157-SERVICE-FL0217 EYE WASH X 4 @ 6.45,25/7/2021 00:00:00,250736,25.8,FI0215,VALUE  PRODUCTS LTD,28/6/2021 00:00:00,25/7/2021 00:00:00,P04-2022
,LEE VALLEY ATHLETICS CENTRE,SUPPLIES AND SERVICES,MATERIALS (MEDICAL),4132,P113157-SERVICE-FL0847 LARGE STRIP PLASTERS  X 3 @ 6.10,25/7/2021 00:00:00,250736,18.3,FI0215,VALUE  PRODUCTS LTD,28/6/2021 00:00:00,25/7/2021 00:00:00,P04-2022
,LEE VALLEY ATHLETICS CENTRE,SUPPLIES AND SERVICES,MATERIALS (MEDICAL),4132,P113157-SERVICE-FL0844 SPOT PLASTERS X 2 @ 8.90,25/7/2021 00:00:00,250736,17.8,FI0215,VALUE  PRODUCTS LTD,28/6/2021 00:00:00,25/7/2021 00:00:00,P04-2022
,LEE VALLEY ATHLETICS CENTRE,SUPPLIES AND SERVICES,MATERIALS (MEDICAL),4132,P113157-SERVICE-LVAC 1ST AID ORDER WIPES FL0229  X 6 @ 4.30,25/7/2021 00:00:00,250736,25.8,FI0215,VALUE  PRODUCTS LTD,28/6/2021 00:00:00,25/7/2021 00:00:00,P04-2022
,LEE VALLEY ATHLETICS CENTRE,SUPPLIES AND SERVICES,MATERIALS (MEDICAL),4132,P113157-SERVICE-FL0849 FINGERTIP PLASTERS X 1 @ 10.85,25/7/2021 00:00:00,250736,10.85,FI0215,VALUE  PRODUCTS LTD,28/6/2021 00:00:00,25/7/2021 00:00:00,P04-2022
,LEE VALLEY ATHLETICS CENTRE,SUPPLIES AND SERVICES,MATERIALS (MEDICAL),4132,P113157-SERVICE-FL0846 MED PLASTERS X 6 @ 4.75,25/7/2021 00:00:00,250736,28.5,FI0215,VALUE  PRODUCTS LTD,28/6/2021 00:00:00,25/7/2021 00:00:00,P04-2022
,LEE VALLEY WHITE WATER CENTRE,SUPPLIES AND SERVICES,MATERIALS (MEDICAL),4132,P113133-SERVICE-2 x FL2735 - Koolpak Compact Instant Ice Pack,25/7/2021 00:00:00,250779,21.9,FI0215,VALUE  PRODUCTS LTD,28/6/2021 00:00:00,25/7/2021 00:00:00,P04-2022
,LEE VALLEY WHITE WATER CENTRE,SUPPLIES AND SERVICES,MATERIALS (MEDICAL),4132,P113133-SERVICE-1 x FL1463 - Koolpak Original Instant Ice Pac,25/7/2021 00:00:00,250779,18.4,FI0215,VALUE  PRODUCTS LTD,28/6/2021 00:00:00,25/7/2021 00:00:00,P04-2022
P&V,LEE VALLEY FARM HOLYFIELDHALL,SUPPLIES AND SERVICES,FEED,4133,P112939-SERVICE-Translac/Optima/Beef Grower/Intamix,07/08/2021 00:00,249928,13959.24,BO0246,FOR FARMERS UK LTD,28/6/2021 00:00:00,25/7/2021 00:00:00,P04-2022
P&V,LEE VALLEY FARM HOLYFIELDHALL,SUPPLIES AND SERVICES,FEED,4133,P113147-SERVICE-Selco Plus,22/7/2021 00:00:00,250517,3308.76,BO0246,FOR FARMERS UK LTD,28/6/2021 00:00:00,25/7/2021 00:00:00,P04-2022
P&V,LEE VALLEY FARM HOLYFIELDHALL,SUPPLIES AND SERVICES,FEED,4133,P113146-SERVICE-Golden Flake,22/7/2021 00:00:00,250518,1450.8,BO0246,FOR FARMERS UK LTD,28/6/2021 00:00:00,25/7/2021 00:00:00,P04-2022
,LEE VALLEY RIDING CENTRE,SUPPLIES AND SERVICES,FEED,4133,P112862-SERVICE-feed,07/05/2021 00:00,249430,1219.05,DO0029,M C DOWLING & SONS,28/6/2021 00:00:00,25/7/2021 00:00:00,P04-2022
,LEE VALLEY RIDING CENTRE,SUPPLIES AND SERVICES,FEED,4133,P112862-SERVICE-feed,07/05/2021 00:00,249680,1809.3,DO0029,M C DOWLING & SONS,28/6/2021 00:00:00,25/7/2021 00:00:00,P04-2022
,LEE VALLEY RIDING CENTRE,SUPPLIES AND SERVICES,FEED,4133,P112862-SERVICE-feed,07/05/2021 00:00,249736,417.2,DO0029,M C DOWLING & SONS,28/6/2021 00:00:00,25/7/2021 00:00:00,P04-2022
,LEE VALLEY RIDING CENTRE,SUPPLIES AND SERVICES,FEED,4133,P112862-SERVICE-feed,07/05/2021 00:00,249950,1293.15,DO0029,M C DOWLING & SONS,28/6/2021 00:00:00,25/7/2021 00:00:00,P04-2022
,LEE VALLEY RIDING CENTRE,SUPPLIES AND SERVICES,FEED,4133,P112862-SERVICE-feed,19/7/2021 00:00:00,250527,261.3,DO0029,M C DOWLING & SONS,28/6/2021 00:00:00,25/7/2021 00:00:00,P04-2022
,LEE VALLEY RIDING CENTRE,SUPPLIES AND SERVICES,BEDDING,4134,P112862-SERVICE-bedding,07/05/2021 00:00,249736,644.4,DO0029,M C DOWLING & SONS,28/6/2021 00:00:00,25/7/2021 00:00:00,P04-2022
,LEE VALLEY RIDING CENTRE,SUPPLIES AND SERVICES,BEDDING,4134,P112862-SERVICE-bedding,07/05/2021 00:00,249950,644.4,DO0029,M C DOWLING & SONS,28/6/2021 00:00:00,25/7/2021 00:00:00,P04-2022
,LEE VALLEY RIDING CENTRE,SUPPLIES AND SERVICES,BEDDING,4134,P112862-SERVICE-bedding,19/7/2021 00:00:00,250527,1530.1,DO0029,M C DOWLING & SONS,28/6/2021 00:00:00,25/7/2021 00:00:00,P04-2022
P&V,LEE VALLEY FARM HOLYFIELDHALL,SUPPLIES AND SERVICES,SPRAYS,4136,P112934-SERVICE-Sprays,07/08/2021 00:00,249099,4533.15,HA0013,HARLOW AGRICULTURAL MERCHANTS,28/6/2021 00:00:00,25/7/2021 00:00:00,P04-2022
P&V,LEE VALLEY FARM HOLYFIELDHALL,SUPPLIES AND SERVICES,SPRAYS,4136,P112936-SERVICE-Spays,07/08/2021 00:00,249101,280.8,HA0013,HARLOW AGRICULTURAL MERCHANTS,28/6/2021 00:00:00,25/7/2021 00:00:00,P04-2022
P&V,LEE VALLEY FARM HOLYFIELDHALL,SUPPLIES AND SERVICES,SPRAYS,4136,P112937-SERVICE-Sprays,07/08/2021 00:00,249737,2343.6,HA0013,HARLOW AGRICULTURAL MERCHANTS,28/6/2021 00:00:00,25/7/2021 00:00:00,P04-2022
P&V,LEE VALLEY FARM HOLYFIELDHALL,SUPPLIES AND SERVICES,SPRAYS,4136,P112938-SERVICE-Sprays,07/08/2021 00:00,249738,2714.8,HA0013,HARLOW AGRICULTURAL MERCHANTS,28/6/2021 00:00:00,25/7/2021 00:00:00,P04-2022
P&V,LEE VALLEY FARM HOLYFIELDHALL,SUPPLIES AND SERVICES,DAIRY SUNDRIES,4138,P111619-SERVICE-Dead Animal Removal,07/08/2021 00:00,249927,52,MA0074,W MARTIN & SON LIMITED,28/6/2021 00:00:00,25/7/2021 00:00:00,P04-2022
P&V,LEE VALLEY FARM HOLYFIELDHALL,SUPPLIES AND SERVICES,DAIRY SUNDRIES,4138,P112946-SERVICE-Dead Animal Removal,07/08/2021 00:00,249942,54,MA0074,W MARTIN & SON LIMITED,28/6/2021 00:00:00,25/7/2021 00:00:00,P04-2022
P&V,LEE VALLEY FARM HOLYFIELDHALL,SUPPLIES AND SERVICES,DAIRY SUNDRIES,4138,P111471-SERVICE-Plumbing Fittings,13/7/2021 00:00:00,250035,30,WO0076,E J WOOLLARD LTD,28/6/2021 00:00:00,25/7/2021 00:00:00,P04-2022
P&V,LEE VALLEY FARM HOLYFIELDHALL,SUPPLIES AND SERVICES,DAIRY SUNDRIES,4138,P112367-SERVICE-Chemical Supply,13/7/2021 00:00:00,250229,5959.71,MI0023,MILL DAIRY SERVICES,28/6/2021 00:00:00,25/7/2021 00:00:00,P04-2022
P&V,LEE VALLEY FARM HOLYFIELDHALL,SUPPLIES AND SERVICES,DAIRY SUNDRIES,4138,P112946-SERVICE-Dead Animal Removal,20/7/2021 00:00:00,250530,140,MA0074,W MARTIN & SON LIMITED,28/6/2021 00:00:00,25/7/2021 00:00:00,P04-2022
,LEE VALLEY VELOPARK CATERING,SUPPLIES AND SERVICES,FOOD AND DRINK PURCHASES,4140,P113120-SERVICE-F&B Order 14 July,22/7/2021 00:00:00,250340,120.5,360001,BIDFOOD,28/6/2021 00:00:00,25/7/2021 00:00:00,P04-2022
,LEE VALLEY VELOPARK CATERING,SUPPLIES AND SERVICES,FOOD AND DRINK PURCHASES,4140,BIDFOOD,22/7/2021 00:00:00,250340,-120.5,360001,BIDFOOD,28/6/2021 00:00:00,25/7/2021 00:00:00,P04-2022
,LEE VALLEY VELOPARK CATERING,SUPPLIES AND SERVICES,FOOD AND DRINK PURCHASES,4140,BIDFOOD,22/7/2021 00:00:00,250340,2.7,360001,BIDFOOD,28/6/2021 00:00:00,25/7/2021 00:00:00,P04-2022
,LEE VALLEY VELOPARK CATERING,SUPPLIES AND SERVICES,FOOD AND DRINK PURCHASES,4140,BIDFOOD,22/7/2021 00:00:00,250340,117.8,360001,BIDFOOD,28/6/2021 00:00:00,25/7/2021 00:00:00,P04-2022
,LV HOCKEY AND TENNIS CATERING,SUPPLIES AND SERVICES,FOOD AND DRINK PURCHASES,4140,P113119-SERVICE-F&B Order 7 July,20/7/2021 00:00:00,250025,828.96,360001,BIDFOOD,28/6/2021 00:00:00,25/7/2021 00:00:00,P04-2022
,LV ICE CENTRE CATERING,SUPPLIES AND SERVICES,FOOD AND DRINK PURCHASES,4140,P112961-SERVICE-Stock Report June 2021,07/12/2021 00:00,249895,133,VE0038,VENNERS LTD,28/6/2021 00:00:00,25/7/2021 00:00:00,P04-2022
,LV WHITE WATER CATERING,SUPPLIES AND SERVICES,FOOD AND DRINK PURCHASES,4140,P112656-SERVICE-sandwiches,07/01/2021 00:00,249669,619.45,AN0324,ANCHOR CATERING,28/6/2021 00:00:00,25/7/2021 00:00:00,P04-2022
,LV WHITE WATER CATERING,SUPPLIES AND SERVICES,FOOD AND DRINK PURCHASES,4140,BIDFOOD,07/05/2021 00:00,249689,531.41,360001,BIDFOOD,28/6/2021 00:00:00,25/7/2021 00:00:00,P04-2022
,LV WHITE WATER CATERING,SUPPLIES AND SERVICES,FOOD AND DRINK PURCHASES,4140,BIDFOOD,07/05/2021 00:00,249689,-1113.42,360001,BIDFOOD,28/6/2021 00:00:00,25/7/2021 00:00:00,P04-2022
,LV WHITE WATER CATERING,SUPPLIES AND SERVICES,FOOD AND DRINK PURCHASES,4140,P112733-SERVICE-wc 2106 food front,07/05/2021 00:00,249689,1113.42,360001,BIDFOOD,28/6/2021 00:00:00,25/7/2021 00:00:00,P04-2022
,LV WHITE WATER CATERING,SUPPLIES AND SERVICES,FOOD AND DRINK PURCHASES,4140,BIDFOOD,07/05/2021 00:00,249689,582.01,360001,BIDFOOD,28/6/2021 00:00:00,25/7/2021 00:00:00,P04-2022
,LV WHITE WATER CATERING,SUPPLIES AND SERVICES,FOOD AND DRINK PURCHASES,4140,P112925-SERVICE-till rolls,07/12/2021 00:00,249701,149.02,TH0008,JKL SOLUTIONS LTD,28/6/2021 00:00:00,25/7/2021 00:00:00,P04-2022
,LV WHITE WATER CATERING,SUPPLIES AND SERVICES,FOOD AND DRINK PURCHASES,4140,BIDFOOD,07/05/2021 00:00,249731,-84.5,360001,BIDFOOD,28/6/2021 00:00:00,25/7/2021 00:00:00,P04-2022
,LV WHITE WATER CATERING,SUPPLIES AND SERVICES,FOOD AND DRINK PURCHASES,4140,BIDFOOD,07/05/2021 00:00,249731,100.68,360001,BIDFOOD,28/6/2021 00:00:00,25/7/2021 00:00:00,P04-2022
,LV WHITE WATER CATERING,SUPPLIES AND SERVICES,FOOD AND DRINK PURCHASES,4140,BIDFOOD,07/05/2021 00:00,249731,-16.18,360001,BIDFOOD,28/6/2021 00:00:00,25/7/2021 00:00:00,P04-2022
,LV WHITE WATER CATERING,SUPPLIES AND SERVICES,FOOD AND DRINK PURCHASES,4140,P112733-SERVICE-wc 2106 food front,07/05/2021 00:00,249731,-100.68,360001,BIDFOOD,28/6/2021 00:00:00,25/7/2021 00:00:00,P04-2022
,LV WHITE WATER CATERING,SUPPLIES AND SERVICES,FOOD AND DRINK PURCHASES,4140,P112810-SERVICE-cups,07/05/2021 00:00,249856,356.08,CA0585,CAFE CONNECTIONS,28/6/2021 00:00:00,25/7/2021 00:00:00,P04-2022
,LV WHITE WATER CATERING,SUPPLIES AND SERVICES,FOOD AND DRINK PURCHASES,4140,ROMBOUTS COFFEE GB LIMITED,07/05/2021 00:00,249876,-413.6,RO0216,ROMBOUTS COFFEE GB LIMITED,28/6/2021 00:00:00,25/7/2021 00:00:00,P04-2022
,LV WHITE WATER CATERING,SUPPLIES AND SERVICES,FOOD AND DRINK PURCHASES,4140,P112603-SERVICE-coffee syrups,07/05/2021 00:00,249876,413.6,RO0216,ROMBOUTS COFFEE GB LIMITED,28/6/2021 00:00:00,25/7/2021 00:00:00,P04-2022
,LV WHITE WATER CATERING,SUPPLIES AND SERVICES,FOOD AND DRINK PURCHASES,4140,ROMBOUTS COFFEE GB LIMITED,07/05/2021 00:00,249876,128,RO0216,ROMBOUTS COFFEE GB LIMITED,28/6/2021 00:00:00,25/7/2021 00:00:00,P04-2022
,LV WHITE WATER CATERING,SUPPLIES AND SERVICES,FOOD AND DRINK PURCHASES,4140,ROMBOUTS COFFEE GB LIMITED,07/05/2021 00:00,249876,285.6,RO0216,ROMBOUTS COFFEE GB LIMITED,28/6/2021 00:00:00,25/7/2021 00:00:00,P04-2022
,LV WHITE WATER CATERING,SUPPLIES AND SERVICES,FOOD AND DRINK PURCHASES,4140,BIDFOOD,07/05/2021 00:00,249881,634.68,360001,BIDFOOD,28/6/2021 00:00:00,25/7/2021 00:00:00,P04-2022
,LV WHITE WATER CATERING,SUPPLIES AND SERVICES,FOOD AND DRINK PURCHASES,4140,BIDFOOD,07/05/2021 00:00,249881,-1199.68,360001,BIDFOOD,28/6/2021 00:00:00,25/7/2021 00:00:00,P04-2022
,LV WHITE WATER CATERING,SUPPLIES AND SERVICES,FOOD AND DRINK PURCHASES,4140,P112827-SERVICE-food front house,07/05/2021 00:00,249881,1199.68,360001,BIDFOOD,28/6/2021 00:00:00,25/7/2021 00:00:00,P04-2022
,LV WHITE WATER CATERING,SUPPLIES AND SERVICES,FOOD AND DRINK PURCHASES,4140,BIDFOOD,07/05/2021 00:00,249881,565,360001,BIDFOOD,28/6/2021 00:00:00,25/7/2021 00:00:00,P04-2022
,LV WHITE WATER CATERING,SUPPLIES AND SERVICES,FOOD AND DRINK PURCHASES,4140,BIDFOOD,07/05/2021 00:00,249882,-636.76,360001,BIDFOOD,28/6/2021 00:00:00,25/7/2021 00:00:00,P04-2022
,LV WHITE WATER CATERING,SUPPLIES AND SERVICES,FOOD AND DRINK PURCHASES,4140,P112735-SERVICE-kitchen food,07/05/2021 00:00,249882,636.76,360001,BIDFOOD,28/6/2021 00:00:00,25/7/2021 00:00:00,P04-2022
,LV WHITE WATER CATERING,SUPPLIES AND SERVICES,FOOD AND DRINK PURCHASES,4140,BIDFOOD,07/05/2021 00:00,249882,10.92,360001,BIDFOOD,28/6/2021 00:00:00,25/7/2021 00:00:00,P04-2022
,LV WHITE WATER CATERING,SUPPLIES AND SERVICES,FOOD AND DRINK PURCHASES,4140,BIDFOOD,07/05/2021 00:00,249882,625.84,360001,BIDFOOD,28/6/2021 00:00:00,25/7/2021 00:00:00,P04-2022
,LV WHITE WATER CATERING,SUPPLIES AND SERVICES,FOOD AND DRINK PURCHASES,4140,P112874-SERVICE-stocktake,07/08/2021 00:00,249894,532,VE0038,VENNERS LTD,28/6/2021 00:00:00,25/7/2021 00:00:00,P04-2022
,LV WHITE WATER CATERING,SUPPLIES AND SERVICES,FOOD AND DRINK PURCHASES,4140,ROMBOUTS COFFEE GB LIMITED,07/05/2021 00:00,249944,40.46,RO0216,ROMBOUTS COFFEE GB LIMITED,28/6/2021 00:00:00,25/7/2021 00:00:00,P04-2022
,LV WHITE WATER CATERING,SUPPLIES AND SERVICES,FOOD AND DRINK PURCHASES,4140,ROMBOUTS COFFEE GB LIMITED,07/05/2021 00:00,249944,243.96,RO0216,ROMBOUTS COFFEE GB LIMITED,28/6/2021 00:00:00,25/7/2021 00:00:00,P04-2022
,LV WHITE WATER CATERING,SUPPLIES AND SERVICES,FOOD AND DRINK PURCHASES,4140,ROMBOUTS COFFEE GB LIMITED,07/05/2021 00:00,249944,-284.42,RO0216,ROMBOUTS COFFEE GB LIMITED,28/6/2021 00:00:00,25/7/2021 00:00:00,P04-2022
,LV WHITE WATER CATERING,SUPPLIES AND SERVICES,FOOD AND DRINK PURCHASES,4140,P112828-SERVICE-coffee,07/05/2021 00:00,249944,284.42,RO0216,ROMBOUTS COFFEE GB LIMITED,28/6/2021 00:00:00,25/7/2021 00:00:00,P04-2022
,LV WHITE WATER CATERING,SUPPLIES AND SERVICES,FOOD AND DRINK PURCHASES,4140,P112735-SERVICE-kitchen food,07/05/2021 00:00,249953,163.89,360001,BIDFOOD,28/6/2021 00:00:00,25/7/2021 00:00:00,P04-2022
,LV WHITE WATER CATERING,SUPPLIES AND SERVICES,FOOD AND DRINK PURCHASES,4140,P112734-SERVICE-sandwiches,07/08/2021 00:00,250003,692.16,AN0324,ANCHOR CATERING,28/6/2021 00:00:00,25/7/2021 00:00:00,P04-2022
,LV WHITE WATER CATERING,SUPPLIES AND SERVICES,FOOD AND DRINK PURCHASES,4140,P112735-SERVICE-kitchen food,07/12/2021 00:00,250022,-31.92,360001,BIDFOOD,28/6/2021 00:00:00,25/7/2021 00:00:00,P04-2022
,LV WHITE WATER CATERING,SUPPLIES AND SERVICES,FOOD AND DRINK PURCHASES,4140,P112943-SERVICE-Food 7/7/21,07/12/2021 00:00,250024,207.42,360001,BIDFOOD,28/6/2021 00:00:00,25/7/2021 00:00:00,P04-2022
,LV WHITE WATER CATERING,SUPPLIES AND SERVICES,FOOD AND DRINK PURCHASES,4140,ROMBOUTS COFFEE GB LIMITED,07/12/2021 00:00,250185,71.4,RO0216,ROMBOUTS COFFEE GB LIMITED,28/6/2021 00:00:00,25/7/2021 00:00:00,P04-2022
,LV WHITE WATER CATERING,SUPPLIES AND SERVICES,FOOD AND DRINK PURCHASES,4140,P112603-SERVICE-coffee syrups,07/12/2021 00:00,250185,182.35,RO0216,ROMBOUTS COFFEE GB LIMITED,28/6/2021 00:00:00,25/7/2021 00:00:00,P04-2022
,LV WHITE WATER CATERING,SUPPLIES AND SERVICES,FOOD AND DRINK PURCHASES,4140,ROMBOUTS COFFEE GB LIMITED,07/12/2021 00:00,250185,-182.35,RO0216,ROMBOUTS COFFEE GB LIMITED,28/6/2021 00:00:00,25/7/2021 00:00:00,P04-2022
,LV WHITE WATER CATERING,SUPPLIES AND SERVICES,FOOD AND DRINK PURCHASES,4140,ROMBOUTS COFFEE GB LIMITED,07/12/2021 00:00,250185,110.95,RO0216,ROMBOUTS COFFEE GB LIMITED,28/6/2021 00:00:00,25/7/2021 00:00:00,P04-2022
,LV WHITE WATER CATERING,SUPPLIES AND SERVICES,FOOD AND DRINK PURCHASES,4140,P112924-SERVICE-cups,07/12/2021 00:00,250209,248.23,CA0585,CAFE CONNECTIONS,28/6/2021 00:00:00,25/7/2021 00:00:00,P04-2022
,LV WHITE WATER CATERING,SUPPLIES AND SERVICES,FOOD AND DRINK PURCHASES,4140,P112928-SERVICE-move cpffee machine,07/12/2021 00:00,250225,213.33,RO0216,ROMBOUTS COFFEE GB LIMITED,28/6/2021 00:00:00,25/7/2021 00:00:00,P04-2022
,LV WHITE WATER CATERING,SUPPLIES AND SERVICES,FOOD AND DRINK PURCHASES,4140,BIDFOOD,13/7/2021 00:00:00,250246,-992.58,360001,BIDFOOD,28/6/2021 00:00:00,25/7/2021 00:00:00,P04-2022
,LV WHITE WATER CATERING,SUPPLIES AND SERVICES,FOOD AND DRINK PURCHASES,4140,BIDFOOD,13/7/2021 00:00:00,250246,524.74,360001,BIDFOOD,28/6/2021 00:00:00,25/7/2021 00:00:00,P04-2022
,LV WHITE WATER CATERING,SUPPLIES AND SERVICES,FOOD AND DRINK PURCHASES,4140,P112943-SERVICE-Food 7/7/21,13/7/2021 00:00:00,250246,992.58,360001,BIDFOOD,28/6/2021 00:00:00,25/7/2021 00:00:00,P04-2022
,LV WHITE WATER CATERING,SUPPLIES AND SERVICES,FOOD AND DRINK PURCHASES,4140,P112735-SERVICE-kitchen food,13/7/2021 00:00:00,250246,105.4,360001,BIDFOOD,28/6/2021 00:00:00,25/7/2021 00:00:00,P04-2022
,LV WHITE WATER CATERING,SUPPLIES AND SERVICES,FOOD AND DRINK PURCHASES,4140,P112827-SERVICE-food front house,13/7/2021 00:00:00,250246,0.32,360001,BIDFOOD,28/6/2021 00:00:00,25/7/2021 00:00:00,P04-2022
,LV WHITE WATER CATERING,SUPPLIES AND SERVICES,FOOD AND DRINK PURCHASES,4140,BIDFOOD,13/7/2021 00:00:00,250246,467.84,360001,BIDFOOD,28/6/2021 00:00:00,25/7/2021 00:00:00,P04-2022
,LV WHITE WATER CATERING,SUPPLIES AND SERVICES,FOOD AND DRINK PURCHASES,4140,P112069-SERVICE-cups lids,22/7/2021 00:00:00,250460,228.57,CA0585,CAFE CONNECTIONS,28/6/2021 00:00:00,25/7/2021 00:00:00,P04-2022
,LV WHITE WATER CATERING,SUPPLIES AND SERVICES,FOOD AND DRINK PURCHASES,4140,P112854-SERVICE-sandwiches,19/7/2021 00:00:00,250462,674.05,AN0324,ANCHOR CATERING,28/6/2021 00:00:00,25/7/2021 00:00:00,P04-2022
,LV WHITE WATER CATERING,SUPPLIES AND SERVICES,FOOD AND DRINK PURCHASES,4140,BIDFOOD,22/7/2021 00:00:00,250489,1313.42,360001,BIDFOOD,28/6/2021 00:00:00,25/7/2021 00:00:00,P04-2022
,LV WHITE WATER CATERING,SUPPLIES AND SERVICES,FOOD AND DRINK PURCHASES,4140,BIDFOOD,22/7/2021 00:00:00,250489,-2017.98,360001,BIDFOOD,28/6/2021 00:00:00,25/7/2021 00:00:00,P04-2022
,LV WHITE WATER CATERING,SUPPLIES AND SERVICES,FOOD AND DRINK PURCHASES,4140,P113075-SERVICE-food front ice creams,22/7/2021 00:00:00,250489,2017.98,360001,BIDFOOD,28/6/2021 00:00:00,25/7/2021 00:00:00,P04-2022
,LV WHITE WATER CATERING,SUPPLIES AND SERVICES,FOOD AND DRINK PURCHASES,4140,P112657-SERVICE-kitchen foodc,22/7/2021 00:00:00,250489,37.98,360001,BIDFOOD,28/6/2021 00:00:00,25/7/2021 00:00:00,P04-2022
,LV WHITE WATER CATERING,SUPPLIES AND SERVICES,FOOD AND DRINK PURCHASES,4140,BIDFOOD,22/7/2021 00:00:00,250489,704.56,360001,BIDFOOD,28/6/2021 00:00:00,25/7/2021 00:00:00,P04-2022
,LV WHITE WATER CATERING,SUPPLIES AND SERVICES,FOOD AND DRINK PURCHASES,4140,BIDFOOD,22/7/2021 00:00:00,250490,-949.42,360001,BIDFOOD,28/6/2021 00:00:00,25/7/2021 00:00:00,P04-2022
,LV WHITE WATER CATERING,SUPPLIES AND SERVICES,FOOD AND DRINK PURCHASES,4140,BIDFOOD,22/7/2021 00:00:00,250490,69.65,360001,BIDFOOD,28/6/2021 00:00:00,25/7/2021 00:00:00,P04-2022
,LV WHITE WATER CATERING,SUPPLIES AND SERVICES,FOOD AND DRINK PURCHASES,4140,BIDFOOD,22/7/2021 00:00:00,250490,879.77,360001,BIDFOOD,28/6/2021 00:00:00,25/7/2021 00:00:00,P04-2022
,LV WHITE WATER CATERING,SUPPLIES AND SERVICES,FOOD AND DRINK PURCHASES,4140,P112997-SERVICE-sandwiches,22/7/2021 00:00:00,250490,949.42,360001,BIDFOOD,28/6/2021 00:00:00,25/7/2021 00:00:00,P04-2022
,LV WHITE WATER CATERING,SUPPLIES AND SERVICES,FOOD AND DRINK PURCHASES,4140,ROMBOUTS COFFEE GB LIMITED,22/7/2021 00:00:00,250503,341.12,RO0216,ROMBOUTS COFFEE GB LIMITED,28/6/2021 00:00:00,25/7/2021 00:00:00,P04-2022
,LV WHITE WATER CATERING,SUPPLIES AND SERVICES,FOOD AND DRINK PURCHASES,4140,ROMBOUTS COFFEE GB LIMITED,22/7/2021 00:00:00,250503,8.88,RO0216,ROMBOUTS COFFEE GB LIMITED,28/6/2021 00:00:00,25/7/2021 00:00:00,P04-2022
,LV WHITE WATER CATERING,SUPPLIES AND SERVICES,FOOD AND DRINK PURCHASES,4140,P112149-SERVICE-coffee,22/7/2021 00:00:00,250503,350,RO0216,ROMBOUTS COFFEE GB LIMITED,28/6/2021 00:00:00,25/7/2021 00:00:00,P04-2022
,LV WHITE WATER CATERING,SUPPLIES AND SERVICES,FOOD AND DRINK PURCHASES,4140,P112726-SERVICE-coffee,22/7/2021 00:00:00,250503,26.04,RO0216,ROMBOUTS COFFEE GB LIMITED,28/6/2021 00:00:00,25/7/2021 00:00:00,P04-2022
,LV WHITE WATER CATERING,SUPPLIES AND SERVICES,FOOD AND DRINK PURCHASES,4140,ROMBOUTS COFFEE GB LIMITED,22/7/2021 00:00:00,250503,-350,RO0216,ROMBOUTS COFFEE GB LIMITED,28/6/2021 00:00:00,25/7/2021 00:00:00,P04-2022
,LV WHITE WATER CATERING,SUPPLIES AND SERVICES,FOOD AND DRINK PURCHASES,4140,P112735-SERVICE-kitchen food,22/7/2021 00:00:00,250529,17.95,360001,BIDFOOD,28/6/2021 00:00:00,25/7/2021 00:00:00,P04-2022
,LV WHITE WATER CATERING,SUPPLIES AND SERVICES,FOOD AND DRINK PURCHASES,4140,P112997-SERVICE-sandwiches,22/7/2021 00:00:00,250529,50.58,360001,BIDFOOD,28/6/2021 00:00:00,25/7/2021 00:00:00,P04-2022
,LV WHITE WATER CATERING,SUPPLIES AND SERVICES,FOOD AND DRINK PURCHASES,4140,P113076-SERVICE-dishwashwer detergent,22/7/2021 00:00:00,250544,23.09,HY0043,HYGIENE SYSTEMS LTD,28/6/2021 00:00:00,25/7/2021 00:00:00,P04-2022
,LV WHITE WATER CATERING,SUPPLIES AND SERVICES,FOOD AND DRINK PURCHASES,4140,P112997-SERVICE-sandwiches,25/7/2021 00:00:00,250565,-38.68,360001,BIDFOOD,28/6/2021 00:00:00,25/7/2021 00:00:00,P04-2022
,LV WHITE WATER CATERING,SUPPLIES AND SERVICES,FOOD AND DRINK PURCHASES,4140,P113075-SERVICE-food front ice creams,25/7/2021 00:00:00,250566,-8.46,360001,BIDFOOD,28/6/2021 00:00:00,25/7/2021 00:00:00,P04-2022
,LV WHITE WATER CATERING,SUPPLIES AND SERVICES,FOOD AND DRINK PURCHASES,4140,P112998-SERVICE-sandwiches kitchen,22/7/2021 00:00:00,250572,556.52,AN0324,ANCHOR CATERING,28/6/2021 00:00:00,25/7/2021 00:00:00,P04-2022
,LV WHITE WATER CATERING,SUPPLIES AND SERVICES,FOOD AND DRINK PURCHASES,4140,P113085-SERVICE-drinka,25/7/2021 00:00:00,250579,1369.89,DA0268,DAYLA DRINKS,28/6/2021 00:00:00,25/7/2021 00:00:00,P04-2022
,LV WHITE WATER CATERING,SUPPLIES AND SERVICES,FOOD AND DRINK PURCHASES,4140,BIDFOOD,25/7/2021 00:00:00,250606,52.5,360001,BIDFOOD,28/6/2021 00:00:00,25/7/2021 00:00:00,P04-2022
,LV WHITE WATER CATERING,SUPPLIES AND SERVICES,FOOD AND DRINK PURCHASES,4140,BIDFOOD,25/7/2021 00:00:00,250606,-352.83,360001,BIDFOOD,28/6/2021 00:00:00,25/7/2021 00:00:00,P04-2022
,LV WHITE WATER CATERING,SUPPLIES AND SERVICES,FOOD AND DRINK PURCHASES,4140,P113150-SERVICE-front of house,25/7/2021 00:00:00,250606,352.83,360001,BIDFOOD,28/6/2021 00:00:00,25/7/2021 00:00:00,P04-2022
,LV WHITE WATER CATERING,SUPPLIES AND SERVICES,FOOD AND DRINK PURCHASES,4140,BIDFOOD,25/7/2021 00:00:00,250606,300.33,360001,BIDFOOD,28/6/2021 00:00:00,25/7/2021 00:00:00,P04-2022
,LV WHITE WATER CATERING,SUPPLIES AND SERVICES,FOOD AND DRINK PURCHASES,4140,P113158-SERVICE-kithcen food,25/7/2021 00:00:00,250607,1011.86,360001,BIDFOOD,28/6/2021 00:00:00,25/7/2021 00:00:00,P04-2022
,LV WHITE WATER CATERING,SUPPLIES AND SERVICES,FOOD AND DRINK PURCHASES,4140,P113173-SERVICE-cups,25/7/2021 00:00:00,250702,638.39,CA0585,CAFE CONNECTIONS,28/6/2021 00:00:00,25/7/2021 00:00:00,P04-2022
,LV WHITE WATER CATERING,SUPPLIES AND SERVICES,FOOD AND DRINK PURCHASES,4140,ROMBOUTS COFFEE GB LIMITED,25/7/2021 00:00:00,250716,460.12,RO0216,ROMBOUTS COFFEE GB LIMITED,28/6/2021 00:00:00,25/7/2021 00:00:00,P04-2022
,LV WHITE WATER CATERING,SUPPLIES AND SERVICES,FOOD AND DRINK PURCHASES,4140,P113175-SERVICE-coffee,25/7/2021 00:00:00,250716,610.24,RO0216,ROMBOUTS COFFEE GB LIMITED,28/6/2021 00:00:00,25/7/2021 00:00:00,P04-2022
,LV WHITE WATER CATERING,SUPPLIES AND SERVICES,FOOD AND DRINK PURCHASES,4140,ROMBOUTS COFFEE GB LIMITED,25/7/2021 00:00:00,250716,150.12,RO0216,ROMBOUTS COFFEE GB LIMITED,28/6/2021 00:00:00,25/7/2021 00:00:00,P04-2022
,LV WHITE WATER CATERING,SUPPLIES AND SERVICES,FOOD AND DRINK PURCHASES,4140,ROMBOUTS COFFEE GB LIMITED,25/7/2021 00:00:00,250716,-610.24,RO0216,ROMBOUTS COFFEE GB LIMITED,28/6/2021 00:00:00,25/7/2021 00:00:00,P04-2022
,LV WHITE WATER CATERING,SUPPLIES AND SERVICES,FOOD AND DRINK PURCHASES,4140,BIDFOOD,25/7/2021 00:00:00,250754,-1000,360001,BIDFOOD,28/6/2021 00:00:00,25/7/2021 00:00:00,P04-2022
,LV WHITE WATER CATERING,SUPPLIES AND SERVICES,FOOD AND DRINK PURCHASES,4140,BIDFOOD,25/7/2021 00:00:00,250754,600.75,360001,BIDFOOD,28/6/2021 00:00:00,25/7/2021 00:00:00,P04-2022
,LV WHITE WATER CATERING,SUPPLIES AND SERVICES,FOOD AND DRINK PURCHASES,4140,P113172-SERVICE-front of house food,25/7/2021 00:00:00,250754,1000,360001,BIDFOOD,28/6/2021 00:00:00,25/7/2021 00:00:00,P04-2022
,LV WHITE WATER CATERING,SUPPLIES AND SERVICES,FOOD AND DRINK PURCHASES,4140,BIDFOOD,25/7/2021 00:00:00,250754,399.25,360001,BIDFOOD,28/6/2021 00:00:00,25/7/2021 00:00:00,P04-2022
,LV WHITE WATER CATERING,SUPPLIES AND SERVICES,FOOD AND DRINK PURCHASES,4140,P112733-SERVICE-wc 2106 food front,25/7/2021 00:00:00,250754,179.03,360001,BIDFOOD,28/6/2021 00:00:00,25/7/2021 00:00:00,P04-2022
,LV WHITE WATER CATERING,SUPPLIES AND SERVICES,FOOD AND DRINK PURCHASES,4140,P113088-SERVICE-sandwiches,25/7/2021 00:00:00,250807,782.53,AN0324,ANCHOR CATERING,28/6/2021 00:00:00,25/7/2021 00:00:00,P04-2022
,LEE VALLEY CARAVAN PARK,SUPPLIES AND SERVICES,MISCELLANEOUS CARAVAN COSTS,4174,P113238-SERVICE-instillation of new static,25/7/2021 00:00:00,250034,120,BR0018,BRADSHAW ELECTRICAL LIMITED,28/6/2021 00:00:00,25/7/2021 00:00:00,P04-2022
CEO,PR/COMMUNICATIONS,SUPPLIES AND SERVICES,CLOTHING & UNIFORMS,4225,P112632-SERVICE-Magnetic name badges x 9 + P&P,07/01/2021 00:00,249613,71,RE0055,RECOGNITION EXPRESS THAMES VALLEY,28/6/2021 00:00:00,25/7/2021 00:00:00,P04-2022
CEO,PR/COMMUNICATIONS,SUPPLIES AND SERVICES,CLOTHING & UNIFORMS,4225,P112695-SERVICE-Name badges x 2 + P&P,15/7/2021 00:00:00,249984,18,RE0055,RECOGNITION EXPRESS THAMES VALLEY,28/6/2021 00:00:00,25/7/2021 00:00:00,P04-2022
CEO,PR/COMMUNICATIONS,SUPPLIES AND SERVICES,CLOTHING & UNIFORMS,4225,P112848-SERVICE-Name badges x 4 + P&P,20/7/2021 00:00:00,250226,29,RE0055,RECOGNITION EXPRESS THAMES VALLEY,28/6/2021 00:00:00,25/7/2021 00:00:00,P04-2022
CEO,PR/COMMUNICATIONS,SUPPLIES AND SERVICES,CLOTHING & UNIFORMS,4225,P112761-SERVICE-Name badges x 2 + P&P,25/7/2021 00:00:00,250493,18,RE0055,RECOGNITION EXPRESS THAMES VALLEY,28/6/2021 00:00:00,25/7/2021 00:00:00,P04-2022
,LEE VALLEY MARINA SPRINGFIELD,SUPPLIES AND SERVICES,CLOTHING & UNIFORMS,4225,P112548-SERVICE-Cargo Trousers e.s vision stretch Ladies,20/7/2021 00:00:00,249648,164.7,EN0283,ENGELBERT STRAUSS LIMITED,28/6/2021 00:00:00,25/7/2021 00:00:00,P04-2022
,LEE VALLEY MARINA SPRINGFIELD,SUPPLIES AND SERVICES,CLOTHING & UNIFORMS,4225,P112589-SERVICE-To supply the following uniform,20/7/2021 00:00:00,250482,339.58,DI0017,DIRECT BOOT & SHOE SUPPLIES,28/6/2021 00:00:00,25/7/2021 00:00:00,P04-2022
,LEE VALLEY MARINA STANSTEAD,SUPPLIES AND SERVICES,CLOTHING & UNIFORMS,4225,SCREWFIX DIRECT LTD,25/7/2021 00:00:00,250555,4.17,SC0057,SCREWFIX DIRECT LTD,28/6/2021 00:00:00,25/7/2021 00:00:00,P04-2022
,LEE VALLEY MARINA STANSTEAD,SUPPLIES AND SERVICES,CLOTHING & UNIFORMS,4225,SCREWFIX DIRECT LTD,25/7/2021 00:00:00,250555,29.99,SC0057,SCREWFIX DIRECT LTD,28/6/2021 00:00:00,25/7/2021 00:00:00,P04-2022
,LEE VALLEY MARINA STANSTEAD,SUPPLIES AND SERVICES,CLOTHING & UNIFORMS,4225,SCREWFIX DIRECT LTD,25/7/2021 00:00:00,250555,-34.16,SC0057,SCREWFIX DIRECT LTD,28/6/2021 00:00:00,25/7/2021 00:00:00,P04-2022
,LEE VALLEY MARINA STANSTEAD,SUPPLIES AND SERVICES,CLOTHING & UNIFORMS,4225,P113089-SERVICE-boots,25/7/2021 00:00:00,250555,34.16,SC0057,SCREWFIX DIRECT LTD,28/6/2021 00:00:00,25/7/2021 00:00:00,P04-2022
P&V,LEE VALLEY FARM HOLYFIELDHALL,SUPPLIES AND SERVICES,CLOTHING & UNIFORMS,4225,P111460-SERVICE-Uniform,07/08/2021 00:00,249724,131.98,DI0017,DIRECT BOOT & SHOE SUPPLIES,28/6/2021 00:00:00,25/7/2021 00:00:00,P04-2022
P&V,LEE VALLEY FARM HOLYFIELDHALL,SUPPLIES AND SERVICES,CLOTHING & UNIFORMS,4225,P113145-SERVICE-Polo Shirts/Overalls/Shorts,25/7/2021 00:00:00,250293,405.7,DI0017,DIRECT BOOT & SHOE SUPPLIES,28/6/2021 00:00:00,25/7/2021 00:00:00,P04-2022
P&V,MYDDELTON HOUSE GARDENS,SUPPLIES AND SERVICES,CLOTHING & UNIFORMS,4225,P112651-SERVICE-safety boots,07/06/2021 00:00,249722,39.99,DI0017,DIRECT BOOT & SHOE SUPPLIES,28/6/2021 00:00:00,25/7/2021 00:00:00,P04-2022
,LV LEISURE CENTRE GOLF COURSE,SUPPLIES AND SERVICES,CLOTHING & UNIFORMS,4225,P112521-SERVICE-Tank filter clean,20/7/2021 00:00:00,249153,47.63,LE0279,REESINK TURFCARE UK LIMITED,28/6/2021 00:00:00,25/7/2021 00:00:00,P04-2022
,LV LEISURE CENTRE GOLF COURSE,SUPPLIES AND SERVICES,CLOTHING & UNIFORMS,4225,P112788-SERVICE-staff uniform,15/7/2021 00:00:00,249723,144.41,DI0017,DIRECT BOOT & SHOE SUPPLIES,28/6/2021 00:00:00,25/7/2021 00:00:00,P04-2022
,LV LEISURE CENTRE GOLF COURSE,SUPPLIES AND SERVICES,CLOTHING & UNIFORMS,4225,P113081-SERVICE-uniform,20/7/2021 00:00:00,250491,296.08,DI0017,DIRECT BOOT & SHOE SUPPLIES,28/6/2021 00:00:00,25/7/2021 00:00:00,P04-2022
R&B,FINANCE,SUPPLIES AND SERVICES,OFFICE EXPENSES,4311,P112860-SERVICE-KF26051-multiple labels,07/12/2021 00:00,250235,14.44,TH0008,JKL SOLUTIONS LTD,28/6/2021 00:00:00,25/7/2021 00:00:00,P04-2022
,LEE VALLEY MARINA SPRINGFIELD,SUPPLIES AND SERVICES,OFFICE EXPENSES,4311,P111896-SERVICE-To supply items as requested,07/05/2021 00:00,249488,71.63,TH0008,JKL SOLUTIONS LTD,28/6/2021 00:00:00,25/7/2021 00:00:00,P04-2022
,LEE VALLEY MARINA STANSTEAD,SUPPLIES AND SERVICES,OFFICE EXPENSES,4311,P112072-SERVICE-stationery and cleaning mats,07/01/2021 00:00,249664,28.77,TH0008,JKL SOLUTIONS LTD,28/6/2021 00:00:00,25/7/2021 00:00:00,P04-2022
,LEE VALLEY CAMPSITE,SUPPLIES AND SERVICES,OFFICE EXPENSES,4311,P112777-SERVICE-Stationery,07/07/2021 00:00,249742,145.01,TH0008,JKL SOLUTIONS LTD,28/6/2021 00:00:00,25/7/2021 00:00:00,P04-2022
,LEE VALLEY CARAVAN PARK,SUPPLIES AND SERVICES,OFFICE EXPENSES,4311,P112947-SERVICE-Stationery,25/7/2021 00:00:00,250234,72.92,TH0008,JKL SOLUTIONS LTD,28/6/2021 00:00:00,25/7/2021 00:00:00,P04-2022
,LV HOCKEY AND TENNIS CENTRE,SUPPLIES AND SERVICES,OFFICE EXPENSES,4311,P112585-SERVICE-till roll,07/06/2021 00:00,249665,232.9,TH0008,JKL SOLUTIONS LTD,28/6/2021 00:00:00,25/7/2021 00:00:00,P04-2022
,LV HOCKEY AND TENNIS CENTRE,SUPPLIES AND SERVICES,OFFICE EXPENSES,4311,P112585-SERVICE-PDQ rolls x 3 boxes,07/05/2021 00:00,249667,-78.39,TH0008,JKL SOLUTIONS LTD,28/6/2021 00:00:00,25/7/2021 00:00:00,P04-2022
,LEE VALLEY RIDING CENTRE,SUPPLIES AND SERVICES,OFFICE EXPENSES,4311,P112902-SERVICE-stock take,07/06/2021 00:00,249896,133,VE0038,VENNERS LTD,28/6/2021 00:00:00,25/7/2021 00:00:00,P04-2022
,LV LEISURE CENTRE CAMPSITE,SUPPLIES AND SERVICES,OFFICE EXPENSES,4311,P112851-SERVICE-Office Stationary,19/7/2021 00:00:00,249957,81.4,TH0008,JKL SOLUTIONS LTD,28/6/2021 00:00:00,25/7/2021 00:00:00,P04-2022
,LV LEISURE CENTRE CAMPSITE,SUPPLIES AND SERVICES,OFFICE EXPENSES,4311,RIJO 42 INGREDIENTS LIMITED,25/7/2021 00:00:00,250466,-101,RI0176,RIJO 42 INGREDIENTS LIMITED,28/6/2021 00:00:00,25/7/2021 00:00:00,P04-2022
,LV LEISURE CENTRE CAMPSITE,SUPPLIES AND SERVICES,OFFICE EXPENSES,4311,RIJO 42 INGREDIENTS LIMITED,25/7/2021 00:00:00,250466,5,RI0176,RIJO 42 INGREDIENTS LIMITED,28/6/2021 00:00:00,25/7/2021 00:00:00,P04-2022
,LV LEISURE CENTRE CAMPSITE,SUPPLIES AND SERVICES,OFFICE EXPENSES,4311,P113110-SERVICE-Coffee  Machine,25/7/2021 00:00:00,250466,101,RI0176,RIJO 42 INGREDIENTS LIMITED,28/6/2021 00:00:00,25/7/2021 00:00:00,P04-2022
,LV LEISURE CENTRE CAMPSITE,SUPPLIES AND SERVICES,OFFICE EXPENSES,4311,RIJO 42 INGREDIENTS LIMITED,25/7/2021 00:00:00,250466,96,RI0176,RIJO 42 INGREDIENTS LIMITED,28/6/2021 00:00:00,25/7/2021 00:00:00,P04-2022
,LV LEISURE CENTRE CAMPSITE,SUPPLIES AND SERVICES,OFFICE EXPENSES,4311,P113112-SERVICE-Logs and charcoal,25/7/2021 00:00:00,250733,150,HA0371,HARTS OF OAK,28/6/2021 00:00:00,25/7/2021 00:00:00,P04-2022
,LV LEISURE CENTRE GOLF COURSE,SUPPLIES AND SERVICES,OFFICE EXPENSES,4311,FRED ANDOH,14/7/2021 00:00:00,250283,78,AN0474,FRED ANDOH,28/6/2021 00:00:00,25/7/2021 00:00:00,P04-2022
,LEE VALLEY ATHLETICS CENTRE,SUPPLIES AND SERVICES,OFFICE EXPENSES,4311,P112840-SERVICE-lvac stationery & batteries. Online ref:10002,13/7/2021 00:00:00,249956,157.82,TH0008,JKL SOLUTIONS LTD,28/6/2021 00:00:00,25/7/2021 00:00:00,P04-2022
,LEE VALLEY ATHLETICS CENTRE,SUPPLIES AND SERVICES,OFFICE EXPENSES,4311,P112840-SERVICE-lvac stationery & batteries. Online ref:10002,21/7/2021 00:00:00,250236,99.19,TH0008,JKL SOLUTIONS LTD,28/6/2021 00:00:00,25/7/2021 00:00:00,P04-2022
,LEE VALLEY ATHLETICS CENTRE,SUPPLIES AND SERVICES,OFFICE EXPENSES,4311,P112840-SERVICE-lvac stationery & batteries. Online ref:10002,20/7/2021 00:00:00,250325,-99.19,TH0008,JKL SOLUTIONS LTD,28/6/2021 00:00:00,25/7/2021 00:00:00,P04-2022
,LEE VALLEY ATHLETICS CENTRE,SUPPLIES AND SERVICES,OFFICE EXPENSES,4311,P113025-SERVICE-LVAC TILL ROLLS ONLINE REFO-10002425327,20/7/2021 00:00:00,250461,34.2,TH0008,JKL SOLUTIONS LTD,28/6/2021 00:00:00,25/7/2021 00:00:00,P04-2022
,LSC INFORMATION TECHNOLOGY,SUPPLIES AND SERVICES,PHOTOCOPYING,4314,ANNODATA LTD,13/7/2021 00:00:00,249486,472.67,AN0466,ANNODATA LTD,28/6/2021 00:00:00,25/7/2021 00:00:00,P04-2022
CEO,PR/COMMUNICATIONS,SUPPLIES AND SERVICES,PRINTING CORPORATE BROCHURES,4321,P112720-SERVICE-Design Business Plan document as per QU-0157,13/7/2021 00:00:00,250176,855,MI0455,THE MILL HOUSE,28/6/2021 00:00:00,25/7/2021 00:00:00,P04-2022
CEO,PR/COMMUNICATIONS,SUPPLIES AND SERVICES,PRINTING CORPORATE BROCHURES,4321,"P113070-SERVICE-30,000 2pp A5 flyers printed on 130gsm stock",20/7/2021 00:00:00,250506,272.9,SO0582,SOLOPRESS,28/6/2021 00:00:00,25/7/2021 00:00:00,P04-2022
R&B,FINANCE & RESOURCES MANAGEMENT,SUPPLIES AND SERVICES,SUBSCRIPTIONS,4334,THE FINANCIAL REPORTING COUNCI,07/12/2021 00:00,233792,279,FI0132,THE FINANCIAL REPORTING COUNCIL,28/6/2021 00:00:00,25/7/2021 00:00:00,P04-2022
R&B,FINANCE & RESOURCES MANAGEMENT,SUPPLIES AND SERVICES,SUBSCRIPTIONS,4334,THE FINANCIAL REPORTING COUNCI,07/12/2021 00:00,250016,-279,FI0132,THE FINANCIAL REPORTING COUNCIL,28/6/2021 00:00:00,25/7/2021 00:00:00,P04-2022
P&V,LEE VALLEY FARM HOLYFIELDHALL,SUPPLIES AND SERVICES,SUBSCRIPTIONS,4334,P112561-SERVICE-Subs,13/7/2021 00:00:00,250274,366.85,NA0005,NATIONAL MILK RECORDS PLC,28/6/2021 00:00:00,25/7/2021 00:00:00,P04-2022
P&V,MYDDELTON HOUSE,SUPPLIES AND SERVICES,POSTAGE & MAILING,4445,PITNEY BOWES PURCHASE POWER,20/7/2021 00:00:00,250301,420.1,PI0021,PITNEY BOWES PURCHASE POWER,28/6/2021 00:00:00,25/7/2021 00:00:00,P04-2022
,LEE VALLEY VELOPARK,SUPPLIES AND SERVICES,MARKETING,4603,P112513-SERVICE-Membership cards,07/07/2021 00:00,249692,474.64,TH0267,THAMES CARD TECHNOLOGY LIMITED,28/6/2021 00:00:00,25/7/2021 00:00:00,P04-2022
,LEE VALLEY VELOPARK,SUPPLIES AND SERVICES,MARKETING,4603,P112208-SERVICE-Digital Ad Campaign,13/7/2021 00:00:00,250178,1491.61,ME0325,HONCHOM INTERNATIONAL LIMITED,28/6/2021 00:00:00,25/7/2021 00:00:00,P04-2022
,LV LEISURE CENTRE GOLF COURSE,SUPPLIES AND SERVICES,MARKETING,4603,P112456-SERVICE-1000 C5 100GSM Bond non window envelopes,25/7/2021 00:00:00,249960,101.24,SO0582,SOLOPRESS,28/6/2021 00:00:00,25/7/2021 00:00:00,P04-2022
,LEE VALLEY ATHLETICS CENTRE,SUPPLIES AND SERVICES,MARKETING,4603,"P112976-SERVICE-Quantity 3, Versions 3. A1 posters on 130gms",25/7/2021 00:00:00,250486,62.28,SO0582,SOLOPRESS,28/6/2021 00:00:00,25/7/2021 00:00:00,P04-2022
,LEE VALLEY WHITE WATER CENTRE,SUPPLIES AND SERVICES,MARKETING,4603,P111798-SERVICE-To run option 2 campaign from proposal sent t,13/7/2021 00:00:00,249992,8168,GL0444,GLOBAL MEDIA GROUP SERVICES LTD,28/6/2021 00:00:00,25/7/2021 00:00:00,P04-2022
,LEE VALLEY WHITE WATER CENTRE,SUPPLIES AND SERVICES,MARKETING,4603,P112217-SERVICE-Digital ad campaign to promote summer,14/7/2021 00:00:00,250177,3215.33,ME0325,HONCHOM INTERNATIONAL LIMITED,28/6/2021 00:00:00,25/7/2021 00:00:00,P04-2022
P&V,SOUTH AREA RANGERS,SUPPLIES AND SERVICES,PEST CONTROL,4625,P111747-SERVICE-Pest Control - Tottenham Marshes,07/12/2021 00:00,250066,46.67,VE0006,VERMINATE CITY & RURAL PEST CONTROL LTD,28/6/2021 00:00:00,25/7/2021 00:00:00,P04-2022
,LEE VALLEY RIDING CENTRE,SUPPLIES AND SERVICES,PEST CONTROL,4625,P111668-SERVICE-pest control x 4 visits,13/7/2021 00:00:00,250206,340,CR0059,CRYSTAL SERVICES PLC,28/6/2021 00:00:00,25/7/2021 00:00:00,P04-2022
,LEE VALLEY WHITE WATER CENTRE,SUPPLIES AND SERVICES,PEST CONTROL,4625,P112872-SERVICE-Period 20.07.21 - 19.10.21,07/06/2021 00:00,249890,72.28,RE0014,RENTOKIL INITIAL PEST CONTROL,28/6/2021 00:00:00,25/7/2021 00:00:00,P04-2022
,LEE VALLEY MARINA SPRINGFIELD,SUPPLIES AND SERVICES,MERCHANT PROCESSING CHARGES,4641,WORLDPAY,07/12/2021 00:00,250030,15,WO0338,WORLDPAY,28/6/2021 00:00:00,25/7/2021 00:00:00,P04-2022
,LEE VALLEY MARINA STANSTEAD,SUPPLIES AND SERVICES,MERCHANT PROCESSING CHARGES,4641,WORLDPAY,07/12/2021 00:00,250030,15,WO0338,WORLDPAY,28/6/2021 00:00:00,25/7/2021 00:00:00,P04-2022
,LEE VALLEY MARINA STANSTEAD,SUPPLIES AND SERVICES,SECURITY,4650,P113087-SERVICE-intruder alarm service,19/7/2021 00:00:00,250302,166.02,CH0088,CHUBB FIRE & SECURITY,28/6/2021 00:00:00,25/7/2021 00:00:00,P04-2022
P&V,NORTH AREA RANGERS,SUPPLIES AND SERVICES,SECURITY,4650,P112285-SERVICE-Security - North of the Park,07/06/2021 00:00,249656,3757.24,PA0059,PARKGUARD LTD,28/6/2021 00:00:00,25/7/2021 00:00:00,P04-2022
P&V,FORMER LV LIDO SITE,SUPPLIES AND SERVICES,SECURITY,4650,P112285-SERVICE-Security - North of the Park,07/06/2021 00:00,249656,1165.78,PA0059,PARKGUARD LTD,28/6/2021 00:00:00,25/7/2021 00:00:00,P04-2022
,LV LEISURE CENTRE GOLF COURSE,SUPPLIES AND SERVICES,SECURITY,4650,P113099-SERVICE-security,20/7/2021 00:00:00,249643,500,AH0449,MR HUMZAH AHMED,28/6/2021 00:00:00,25/7/2021 00:00:00,P04-2022
,LV LEISURE CENTRE GOLF COURSE,SUPPLIES AND SERVICES,SECURITY,4650,P111393-SERVICE-golf security,20/7/2021 00:00:00,249643,500,AH0449,MR HUMZAH AHMED,28/6/2021 00:00:00,25/7/2021 00:00:00,P04-2022
,LV LEISURE CENTRE GOLF COURSE,SUPPLIES AND SERVICES,SECURITY,4650,P111392-SERVICE-golf security,20/7/2021 00:00:00,249643,500,AH0449,MR HUMZAH AHMED,28/6/2021 00:00:00,25/7/2021 00:00:00,P04-2022
,LV LEISURE CENTRE GOLF COURSE,SUPPLIES AND SERVICES,SECURITY,4650,P111236-SERVICE-golf course security,20/7/2021 00:00:00,249643,500,AH0449,MR HUMZAH AHMED,28/6/2021 00:00:00,25/7/2021 00:00:00,P04-2022
,LV LEISURE CENTRE GOLF COURSE,SUPPLIES AND SERVICES,SECURITY,4650,P111391-SERVICE-golf secruity,20/7/2021 00:00:00,249643,500,AH0449,MR HUMZAH AHMED,28/6/2021 00:00:00,25/7/2021 00:00:00,P04-2022
,LEE VALLEY CAMPSITE,SUPPLIES AND SERVICES,ONLINE ADVERTISING,4657,P111926-SERVICE-15x47kg   1 x19kg,15/7/2021 00:00:00,250230,282.02,FL0147,FLOGAS BRITAIN LIMITED,28/6/2021 00:00:00,25/7/2021 00:00:00,P04-2022
R&B,PERFORMANCE MANAGEMENT,SUPPLIES AND SERVICES,OFFSITE ARCHIVED STORAGE,4667,P113038-SERVICE-Off site archive June 2021,19/7/2021 00:00:00,250244,300.38,DA0154,RESTORE PLC,28/6/2021 00:00:00,25/7/2021 00:00:00,P04-2022
,LSC PERFORMANCE MANAGEMENT,SUPPLIES AND SERVICES,OFFSITE ARCHIVED STORAGE,4667,P111946-SERVICE-2021/22 Confidential Shredding,13/7/2021 00:00:00,250196,170,CS0287,CURTIS SECURITY SHREDDING LTD,28/6/2021 00:00:00,25/7/2021 00:00:00,P04-2022
,LV LEISURE CENTRE CAMPSITE,SUPPLIES AND SERVICES,ENTERTAINMENT & OTHER LICENCES,4711,P112969-SERVICE-Enfield Licence,07/08/2021 00:00,249670,180,EN0120,LONDON BOROUGH OF ENFIELD,28/6/2021 00:00:00,25/7/2021 00:00:00,P04-2022
,LEE VALLEY RIDING CENTRE,THIRD PARTY PAYMENTS,VETERINARY SERVICES,4718,P112168-SERVICE-vet services April 2021 onwards,19/7/2021 00:00:00,250321,322.49,BA0566,BALLINGER EQUINE LTD,28/6/2021 00:00:00,25/7/2021 00:00:00,P04-2022
,LEE VALLEY RIDING CENTRE,THIRD PARTY PAYMENTS,VETERINARY SERVICES,4718,P112168-SERVICE-vet services April 2021 onwards,25/7/2021 00:00:00,250583,142.13,BA0566,BALLINGER EQUINE LTD,28/6/2021 00:00:00,25/7/2021 00:00:00,P04-2022
,LEE VALLEY RIDING CENTRE,THIRD PARTY PAYMENTS,VETERINARY SERVICES,4718,P112168-SERVICE-vet services April 2021 onwards,25/7/2021 00:00:00,250584,671.31,BA0566,BALLINGER EQUINE LTD,28/6/2021 00:00:00,25/7/2021 00:00:00,P04-2022
,LEE VALLEY RIDING CENTRE,THIRD PARTY PAYMENTS,FARRIER,4719,P112202-SERVICE-farrier services,07/12/2021 00:00,250189,185,CO0061,L COLLINS,28/6/2021 00:00:00,25/7/2021 00:00:00,P04-2022
,LEE VALLEY RIDING CENTRE,THIRD PARTY PAYMENTS,FARRIER,4719,P112202-SERVICE-farrier services,07/12/2021 00:00,250190,380,CO0061,L COLLINS,28/6/2021 00:00:00,25/7/2021 00:00:00,P04-2022
,LEE VALLEY RIDING CENTRE,THIRD PARTY PAYMENTS,FARRIER,4719,P112202-SERVICE-farrier services,07/12/2021 00:00,250191,475,CO0061,L COLLINS,28/6/2021 00:00:00,25/7/2021 00:00:00,P04-2022
,LEE VALLEY RIDING CENTRE,THIRD PARTY PAYMENTS,FARRIER,4719,P112202-SERVICE-farrier services,07/12/2021 00:00,250192,330,CO0061,L COLLINS,28/6/2021 00:00:00,25/7/2021 00:00:00,P04-2022
,LEE VALLEY RIDING CENTRE,THIRD PARTY PAYMENTS,FARRIER,4719,P112202-SERVICE-farrier services,07/12/2021 00:00,250193,375,CO0061,L COLLINS,28/6/2021 00:00:00,25/7/2021 00:00:00,P04-2022
,LEE VALLEY RIDING CENTRE,THIRD PARTY PAYMENTS,FARRIER,4719,P112202-SERVICE-farrier services,07/12/2021 00:00,250194,340,CO0061,L COLLINS,28/6/2021 00:00:00,25/7/2021 00:00:00,P04-2022
,LEE VALLEY RIDING CENTRE,THIRD PARTY PAYMENTS,SADDLER,4720,P112826-SERVICE-Saddle for riding school,07/01/2021 00:00,249132,450,KE0148,MRS M KELSO,28/6/2021 00:00:00,25/7/2021 00:00:00,P04-2022
,LEE VALLEY RIDING CENTRE,THIRD PARTY PAYMENTS,SADDLER,4720,P112557-SERVICE-saddle repairs,07/05/2021 00:00,249700,66,IN0088,INGATESTONE SADDLERY CENTRE LTD,28/6/2021 00:00:00,25/7/2021 00:00:00,P04-2022
P&V,MYDDELTON HOUSE GARDENS,SUPPLIES AND SERVICES,NET CATERING PURCHASES,4777,BIDFOOD,13/7/2021 00:00:00,250257,211.5,360001,BIDFOOD,28/6/2021 00:00:00,25/7/2021 00:00:00,P04-2022
P&V,MYDDELTON HOUSE GARDENS,SUPPLIES AND SERVICES,NET CATERING PURCHASES,4777,BIDFOOD,13/7/2021 00:00:00,250257,224.16,360001,BIDFOOD,28/6/2021 00:00:00,25/7/2021 00:00:00,P04-2022
P&V,MYDDELTON HOUSE GARDENS,SUPPLIES AND SERVICES,NET CATERING PURCHASES,4777,BIDFOOD,13/7/2021 00:00:00,250257,-435.66,360001,BIDFOOD,28/6/2021 00:00:00,25/7/2021 00:00:00,P04-2022
P&V,MYDDELTON HOUSE GARDENS,SUPPLIES AND SERVICES,NET CATERING PURCHASES,4777,P112965-SERVICE-Food/Drink order w.e.11.07.2021,13/7/2021 00:00:00,250257,435.66,360001,BIDFOOD,28/6/2021 00:00:00,25/7/2021 00:00:00,P04-2022
P&V,MYDDELTON HOUSE GARDENS,SUPPLIES AND SERVICES,NET CATERING PURCHASES,4777,P112965-SERVICE-Food/Drink order w.e.11.07.2021,20/7/2021 00:00:00,250528,-5.5,360001,BIDFOOD,28/6/2021 00:00:00,25/7/2021 00:00:00,P04-2022
P&V,MYDDLETON HSE HERITAGE CENTRE,SUPPLIES AND SERVICES,NET CATERING PURCHASES,4777,P112723-SERVICE-Food/Drink order w.e 27.06.2021,07/05/2021 00:00,249690,468.49,360001,BIDFOOD,28/6/2021 00:00:00,25/7/2021 00:00:00,P04-2022
P&V,MYDDLETON HSE HERITAGE CENTRE,SUPPLIES AND SERVICES,NET CATERING PURCHASES,4777,BIDFOOD,07/05/2021 00:00,249690,-468.49,360001,BIDFOOD,28/6/2021 00:00:00,25/7/2021 00:00:00,P04-2022
P&V,MYDDLETON HSE HERITAGE CENTRE,SUPPLIES AND SERVICES,NET CATERING PURCHASES,4777,BIDFOOD,07/05/2021 00:00,249690,241.53,360001,BIDFOOD,28/6/2021 00:00:00,25/7/2021 00:00:00,P04-2022
P&V,MYDDLETON HSE HERITAGE CENTRE,SUPPLIES AND SERVICES,NET CATERING PURCHASES,4777,BIDFOOD,07/05/2021 00:00,249690,226.96,360001,BIDFOOD,28/6/2021 00:00:00,25/7/2021 00:00:00,P04-2022
P&V,MYDDLETON HSE HERITAGE CENTRE,SUPPLIES AND SERVICES,NET CATERING PURCHASES,4777,P112723-SERVICE-Food/Drink order w.e 27.06.2021,07/06/2021 00:00,249730,-40.26,360001,BIDFOOD,28/6/2021 00:00:00,25/7/2021 00:00:00,P04-2022
P&V,MYDDLETON HSE HERITAGE CENTRE,SUPPLIES AND SERVICES,NET CATERING PURCHASES,4777,P112846-SERVICE-Milk order w.e. 04.07.2021,13/7/2021 00:00:00,249945,110,RO0216,ROMBOUTS COFFEE GB LIMITED,28/6/2021 00:00:00,25/7/2021 00:00:00,P04-2022
P&V,MYDDLETON HSE HERITAGE CENTRE,SUPPLIES AND SERVICES,NET CATERING PURCHASES,4777,BIDFOOD,13/7/2021 00:00:00,249952,386.49,360001,BIDFOOD,28/6/2021 00:00:00,25/7/2021 00:00:00,P04-2022
P&V,MYDDLETON HSE HERITAGE CENTRE,SUPPLIES AND SERVICES,NET CATERING PURCHASES,4777,BIDFOOD,13/7/2021 00:00:00,249952,170.67,360001,BIDFOOD,28/6/2021 00:00:00,25/7/2021 00:00:00,P04-2022
P&V,MYDDLETON HSE HERITAGE CENTRE,SUPPLIES AND SERVICES,NET CATERING PURCHASES,4777,BIDFOOD,13/7/2021 00:00:00,249952,-557.16,360001,BIDFOOD,28/6/2021 00:00:00,25/7/2021 00:00:00,P04-2022
P&V,MYDDLETON HSE HERITAGE CENTRE,SUPPLIES AND SERVICES,NET CATERING PURCHASES,4777,P112820-SERVICE-Food/drink order w.e 04.07.2021,13/7/2021 00:00:00,249952,557.16,360001,BIDFOOD,28/6/2021 00:00:00,25/7/2021 00:00:00,P04-2022
P&V,MYDDLETON HSE HERITAGE CENTRE,SUPPLIES AND SERVICES,NET CATERING PURCHASES,4777,BIDFOOD,13/7/2021 00:00:00,250023,-20.51,360001,BIDFOOD,28/6/2021 00:00:00,25/7/2021 00:00:00,P04-2022
P&V,MYDDLETON HSE HERITAGE CENTRE,SUPPLIES AND SERVICES,NET CATERING PURCHASES,4777,P112820-SERVICE-Food/drink order w.e 04.07.2021,13/7/2021 00:00:00,250023,-36.69,360001,BIDFOOD,28/6/2021 00:00:00,25/7/2021 00:00:00,P04-2022
P&V,MYDDLETON HSE HERITAGE CENTRE,SUPPLIES AND SERVICES,NET CATERING PURCHASES,4777,BIDFOOD,13/7/2021 00:00:00,250023,36.69,360001,BIDFOOD,28/6/2021 00:00:00,25/7/2021 00:00:00,P04-2022
P&V,MYDDLETON HSE HERITAGE CENTRE,SUPPLIES AND SERVICES,NET CATERING PURCHASES,4777,BIDFOOD,13/7/2021 00:00:00,250023,-16.18,360001,BIDFOOD,28/6/2021 00:00:00,25/7/2021 00:00:00,P04-2022
P&V,MYDDLETON HSE HERITAGE CENTRE,SUPPLIES AND SERVICES,NET CATERING PURCHASES,4777,P112999-SERVICE-Food/drink order w.e. 18.07.2021,22/7/2021 00:00:00,250523,750.02,360001,BIDFOOD,28/6/2021 00:00:00,25/7/2021 00:00:00,P04-2022
P&V,MYDDLETON HSE HERITAGE CENTRE,SUPPLIES AND SERVICES,NET CATERING PURCHASES,4777,BIDFOOD,22/7/2021 00:00:00,250523,-750.02,360001,BIDFOOD,28/6/2021 00:00:00,25/7/2021 00:00:00,P04-2022
P&V,MYDDLETON HSE HERITAGE CENTRE,SUPPLIES AND SERVICES,NET CATERING PURCHASES,4777,BIDFOOD,22/7/2021 00:00:00,250523,421.69,360001,BIDFOOD,28/6/2021 00:00:00,25/7/2021 00:00:00,P04-2022
P&V,MYDDLETON HSE HERITAGE CENTRE,SUPPLIES AND SERVICES,NET CATERING PURCHASES,4777,BIDFOOD,22/7/2021 00:00:00,250523,328.33,360001,BIDFOOD,28/6/2021 00:00:00,25/7/2021 00:00:00,P04-2022
,LEE VALLEY MARINA SPRINGFIELD,SUPPLIES AND SERVICES,TRADING AC - EXTERNAL PURCHASE,4875,P112463-SERVICE-Chandlery Stock  708922,07/06/2021 00:00,249682,16.05,MI0200,MIDLAND CHANDLERS LIMITED,28/6/2021 00:00:00,25/7/2021 00:00:00,P04-2022
,LEE VALLEY MARINA SPRINGFIELD,SUPPLIES AND SERVICES,TRADING AC - EXTERNAL PURCHASE,4875,P112783-SERVICE-Chandlery Stock  720850,07/06/2021 00:00,249746,490.55,MI0200,MIDLAND CHANDLERS LIMITED,28/6/2021 00:00:00,25/7/2021 00:00:00,P04-2022
,LEE VALLEY MARINA SPRINGFIELD,SUPPLIES AND SERVICES,TRADING AC - EXTERNAL PURCHASE,4875,P112782-SERVICE-Chandlery Stock  58897,07/06/2021 00:00,249748,261.09,AQ0033,AQUAFAX LIMITED,28/6/2021 00:00:00,25/7/2021 00:00:00,P04-2022
,LEE VALLEY MARINA SPRINGFIELD,SUPPLIES AND SERVICES,TRADING AC - EXTERNAL PURCHASE,4875,P112802-SERVICE-Chandlery Stock (blacking paint),07/06/2021 00:00,249863,2371.94,MA0008,AXALTA COATING SYSTEMS HUTHWAITE UK LTD,28/6/2021 00:00:00,25/7/2021 00:00:00,P04-2022
,LEE VALLEY MARINA SPRINGFIELD,SUPPLIES AND SERVICES,TRADING AC - EXTERNAL PURCHASE,4875,P112609-SERVICE-Chandlery Stock,07/06/2021 00:00,249954,326.95,CA0006,CALOR GAS LIMITED,28/6/2021 00:00:00,25/7/2021 00:00:00,P04-2022
,LEE VALLEY MARINA SPRINGFIELD,SUPPLIES AND SERVICES,TRADING AC - EXTERNAL PURCHASE,4875,P112865-SERVICE-Chandlery Stock  723308,07/12/2021 00:00,249963,288.17,MI0200,MIDLAND CHANDLERS LIMITED,28/6/2021 00:00:00,25/7/2021 00:00:00,P04-2022
,LEE VALLEY MARINA SPRINGFIELD,SUPPLIES AND SERVICES,TRADING AC - EXTERNAL PURCHASE,4875,P112598-SERVICE-Chandlery Stock 713947,07/12/2021 00:00,249964,12.34,MI0200,MIDLAND CHANDLERS LIMITED,28/6/2021 00:00:00,25/7/2021 00:00:00,P04-2022
,LEE VALLEY MARINA SPRINGFIELD,SUPPLIES AND SERVICES,TRADING AC - EXTERNAL PURCHASE,4875,P112850-SERVICE-CHandlery Stock,22/7/2021 00:00:00,249965,214.27,AQ0033,AQUAFAX LIMITED,28/6/2021 00:00:00,25/7/2021 00:00:00,P04-2022
,LEE VALLEY MARINA SPRINGFIELD,SUPPLIES AND SERVICES,TRADING AC - EXTERNAL PURCHASE,4875,P112811-SERVICE-Chandlery Stock,07/12/2021 00:00,249998,1050.5,MM0065,MME ENGINEERING LTD,28/6/2021 00:00:00,25/7/2021 00:00:00,P04-2022
,LEE VALLEY MARINA SPRINGFIELD,SUPPLIES AND SERVICES,TRADING AC - EXTERNAL PURCHASE,4875,P112876-SERVICE-Chandlery Stock  WSO0225737,22/7/2021 00:00:00,250036,174.54,CE0510,CENTURION EUROPE LIMITED,28/6/2021 00:00:00,25/7/2021 00:00:00,P04-2022
,LEE VALLEY MARINA SPRINGFIELD,SUPPLIES AND SERVICES,TRADING AC - EXTERNAL PURCHASE,4875,P112892-SERVICE-Chandlery Stock  59942,13/7/2021 00:00:00,250183,195.56,AQ0033,AQUAFAX LIMITED,28/6/2021 00:00:00,25/7/2021 00:00:00,P04-2022
,LEE VALLEY MARINA SPRINGFIELD,SUPPLIES AND SERVICES,TRADING AC - EXTERNAL PURCHASE,4875,P112865-SERVICE-Chandlery Stock  723308,07/12/2021 00:00,250222,121.6,MI0200,MIDLAND CHANDLERS LIMITED,28/6/2021 00:00:00,25/7/2021 00:00:00,P04-2022
,LEE VALLEY MARINA SPRINGFIELD,SUPPLIES AND SERVICES,TRADING AC - EXTERNAL PURCHASE,4875,P112787-SERVICE-Chandlery Stock,07/12/2021 00:00,250233,296.34,CR0651,CRAFTMASTER PAINTS,28/6/2021 00:00:00,25/7/2021 00:00:00,P04-2022
,LEE VALLEY MARINA SPRINGFIELD,SUPPLIES AND SERVICES,TRADING AC - EXTERNAL PURCHASE,4875,P112865-SERVICE-Chandlery Stock  723308,20/7/2021 00:00:00,250318,50.34,MI0200,MIDLAND CHANDLERS LIMITED,28/6/2021 00:00:00,25/7/2021 00:00:00,P04-2022
,LEE VALLEY MARINA SPRINGFIELD,SUPPLIES AND SERVICES,TRADING AC - EXTERNAL PURCHASE,4875,P112876-SERVICE-Chandlery Stock  WSO0225737,22/7/2021 00:00:00,250322,-4.3,CE0510,CENTURION EUROPE LIMITED,28/6/2021 00:00:00,25/7/2021 00:00:00,P04-2022
,LEE VALLEY MARINA SPRINGFIELD,SUPPLIES AND SERVICES,TRADING AC - EXTERNAL PURCHASE,4875,P113000-SERVICE-Chandlery Stock  728231,20/7/2021 00:00:00,250333,418.9,MI0200,MIDLAND CHANDLERS LIMITED,28/6/2021 00:00:00,25/7/2021 00:00:00,P04-2022
,LEE VALLEY MARINA SPRINGFIELD,SUPPLIES AND SERVICES,TRADING AC - EXTERNAL PURCHASE,4875,P113026-SERVICE-Chandlery Stock   61082,20/7/2021 00:00:00,250337,200.95,AQ0033,AQUAFAX LIMITED,28/6/2021 00:00:00,25/7/2021 00:00:00,P04-2022
,LEE VALLEY MARINA SPRINGFIELD,SUPPLIES AND SERVICES,TRADING AC - EXTERNAL PURCHASE,4875,P112876-SERVICE-Chandlery Stock  WSO0225737,22/7/2021 00:00:00,250341,4.3,CE0510,CENTURION EUROPE LIMITED,28/6/2021 00:00:00,25/7/2021 00:00:00,P04-2022
,LEE VALLEY MARINA SPRINGFIELD,SUPPLIES AND SERVICES,TRADING AC - EXTERNAL PURCHASE,4875,P113004-SERVICE-Chandlery Stock  115835,20/7/2021 00:00:00,250465,69.54,AS0036,ASAP SUPPLIES,28/6/2021 00:00:00,25/7/2021 00:00:00,P04-2022
,LEE VALLEY MARINA SPRINGFIELD,SUPPLIES AND SERVICES,TRADING AC - EXTERNAL PURCHASE,4875,P112865-SERVICE-Chandlery Stock  723308,20/7/2021 00:00:00,250510,49.11,MI0200,MIDLAND CHANDLERS LIMITED,28/6/2021 00:00:00,25/7/2021 00:00:00,P04-2022
,LEE VALLEY MARINA SPRINGFIELD,SUPPLIES AND SERVICES,TRADING AC - EXTERNAL PURCHASE,4875,P113082-SERVICE-Chandlery Stock  720292,25/7/2021 00:00:00,250554,488.63,MI0200,MIDLAND CHANDLERS LIMITED,28/6/2021 00:00:00,25/7/2021 00:00:00,P04-2022
,LEE VALLEY MARINA SPRINGFIELD,SUPPLIES AND SERVICES,TRADING AC - EXTERNAL PURCHASE,4875,P113005-SERVICE-Chandlery Stock,25/7/2021 00:00:00,250693,759.96,DS0201,DSM GROUP,28/6/2021 00:00:00,25/7/2021 00:00:00,P04-2022
,LEE VALLEY MARINA SPRINGFIELD,SUPPLIES AND SERVICES,TRADING AC - EXTERNAL PURCHASE,4875,P113005-SERVICE-Chandlery Stock,25/7/2021 00:00:00,250694,8.02,DS0201,DSM GROUP,28/6/2021 00:00:00,25/7/2021 00:00:00,P04-2022
,LEE VALLEY MARINA SPRINGFIELD,SUPPLIES AND SERVICES,TRADING AC - EXTERNAL PURCHASE,4875,P113005-SERVICE-Chandlery Stock,25/7/2021 00:00:00,250694,0.98,DS0201,DSM GROUP,28/6/2021 00:00:00,25/7/2021 00:00:00,P04-2022
,LEE VALLEY MARINA SPRINGFIELD,SUPPLIES AND SERVICES,TRADING AC - EXTERNAL PURCHASE,4875,P113140-SERVICE-Chandlery Stock  732457,25/7/2021 00:00:00,250713,157.23,MI0200,MIDLAND CHANDLERS LIMITED,28/6/2021 00:00:00,25/7/2021 00:00:00,P04-2022
,LEE VALLEY MARINA SPRINGFIELD,SUPPLIES AND SERVICES,TRADING AC - EXTERNAL PURCHASE,4875,P112865-SERVICE-Chandlery Stock,25/7/2021 00:00:00,250714,24.7,MI0200,MIDLAND CHANDLERS LIMITED,28/6/2021 00:00:00,25/7/2021 00:00:00,P04-2022
,LEE VALLEY MARINA SPRINGFIELD,SUPPLIES AND SERVICES,TRADING AC - EXTERNAL PURCHASE,4875,P112865-SERVICE-Chandlery Stock  723308,25/7/2021 00:00:00,250714,345.7,MI0200,MIDLAND CHANDLERS LIMITED,28/6/2021 00:00:00,25/7/2021 00:00:00,P04-2022
,LEE VALLEY MARINA SPRINGFIELD,SUPPLIES AND SERVICES,TRADING AC - EXTERNAL PURCHASE,4875,P113021-SERVICE-Chandlery Stock,25/7/2021 00:00:00,250762,467.81,CA0006,CALOR GAS LIMITED,28/6/2021 00:00:00,25/7/2021 00:00:00,P04-2022
,LEE VALLEY MARINA SPRINGFIELD,SUPPLIES AND SERVICES,TRADING AC - EXTERNAL PURCHASE,4875,P112871-SERVICE-Chandlery Stock,25/7/2021 00:00:00,250763,481.3,CA0006,CALOR GAS LIMITED,28/6/2021 00:00:00,25/7/2021 00:00:00,P04-2022
,STANSTEAD RECHARGEABLE WORKS,SUPPLIES AND SERVICES,TRADING AC - EXTERNAL PURCHASE,4875,P112644-SERVICE-chandlery stock #57545,25/7/2021 00:00:00,249506,77.58,AQ0033,AQUAFAX LIMITED,28/6/2021 00:00:00,25/7/2021 00:00:00,P04-2022
,STANSTEAD RECHARGEABLE WORKS,SUPPLIES AND SERVICES,TRADING AC - EXTERNAL PURCHASE,4875,P112703-SERVICE-chandlery stock,13/7/2021 00:00:00,249695,241.68,DS0201,DSM GROUP,28/6/2021 00:00:00,25/7/2021 00:00:00,P04-2022
,STANSTEAD RECHARGEABLE WORKS,SUPPLIES AND SERVICES,TRADING AC - EXTERNAL PURCHASE,4875,P112773-SERVICE-chandlery stock,13/7/2021 00:00:00,249733,386.71,MI0200,MIDLAND CHANDLERS LIMITED,28/6/2021 00:00:00,25/7/2021 00:00:00,P04-2022
,STANSTEAD RECHARGEABLE WORKS,SUPPLIES AND SERVICES,TRADING AC - EXTERNAL PURCHASE,4875,P112771-SERVICE-extend to meet invoice,19/7/2021 00:00:00,249734,6.5,AQ0033,AQUAFAX LIMITED,28/6/2021 00:00:00,25/7/2021 00:00:00,P04-2022
,STANSTEAD RECHARGEABLE WORKS,SUPPLIES AND SERVICES,TRADING AC - EXTERNAL PURCHASE,4875,P112771-SERVICE-chandlery stock,19/7/2021 00:00:00,249734,42.02,AQ0033,AQUAFAX LIMITED,28/6/2021 00:00:00,25/7/2021 00:00:00,P04-2022
,STANSTEAD RECHARGEABLE WORKS,SUPPLIES AND SERVICES,TRADING AC - EXTERNAL PURCHASE,4875,P112729-SERVICE-extend to meet invoice,25/7/2021 00:00:00,249745,19.3,EP0353,E P BARRUS LTD,28/6/2021 00:00:00,25/7/2021 00:00:00,P04-2022
,STANSTEAD RECHARGEABLE WORKS,SUPPLIES AND SERVICES,TRADING AC - EXTERNAL PURCHASE,4875,P112729-SERVICE-chandlery stock,25/7/2021 00:00:00,249745,35.87,EP0353,E P BARRUS LTD,28/6/2021 00:00:00,25/7/2021 00:00:00,P04-2022
,STANSTEAD RECHARGEABLE WORKS,SUPPLIES AND SERVICES,TRADING AC - EXTERNAL PURCHASE,4875,P112542-SERVICE-chandlery stock,13/7/2021 00:00:00,249747,77.36,AQ0033,AQUAFAX LIMITED,28/6/2021 00:00:00,25/7/2021 00:00:00,P04-2022
,STANSTEAD RECHARGEABLE WORKS,SUPPLIES AND SERVICES,TRADING AC - EXTERNAL PURCHASE,4875,P112743-SERVICE-red diesel,13/7/2021 00:00:00,249754,1265.66,TE0052,TEAM FLITWICK,28/6/2021 00:00:00,25/7/2021 00:00:00,P04-2022
,STANSTEAD RECHARGEABLE WORKS,SUPPLIES AND SERVICES,TRADING AC - EXTERNAL PURCHASE,4875,P112537-SERVICE-chandlery stock,07/05/2021 00:00,249870,82.28,MI0200,MIDLAND CHANDLERS LIMITED,28/6/2021 00:00:00,25/7/2021 00:00:00,P04-2022
,STANSTEAD RECHARGEABLE WORKS,SUPPLIES AND SERVICES,TRADING AC - EXTERNAL PURCHASE,4875,P112537-SERVICE-chandlery stock,07/05/2021 00:00,249872,49.39,MI0200,MIDLAND CHANDLERS LIMITED,28/6/2021 00:00:00,25/7/2021 00:00:00,P04-2022
,STANSTEAD RECHARGEABLE WORKS,SUPPLIES AND SERVICES,TRADING AC - EXTERNAL PURCHASE,4875,P112703-SERVICE-chandlery stock,19/7/2021 00:00:00,249883,47.06,DS0201,DSM GROUP,28/6/2021 00:00:00,25/7/2021 00:00:00,P04-2022
,STANSTEAD RECHARGEABLE WORKS,SUPPLIES AND SERVICES,TRADING AC - EXTERNAL PURCHASE,4875,P112703-SERVICE-extend to meet invoice,19/7/2021 00:00:00,249883,11.5,DS0201,DSM GROUP,28/6/2021 00:00:00,25/7/2021 00:00:00,P04-2022
,STANSTEAD RECHARGEABLE WORKS,SUPPLIES AND SERVICES,TRADING AC - EXTERNAL PURCHASE,4875,P112843-SERVICE-paint,07/05/2021 00:00,249888,514.72,CR0651,CRAFTMASTER PAINTS,28/6/2021 00:00:00,25/7/2021 00:00:00,P04-2022
,STANSTEAD RECHARGEABLE WORKS,SUPPLIES AND SERVICES,TRADING AC - EXTERNAL PURCHASE,4875,P112843-SERVICE-additionalmpaint added to order,07/05/2021 00:00,249904,67.56,CR0651,CRAFTMASTER PAINTS,28/6/2021 00:00:00,25/7/2021 00:00:00,P04-2022
,STANSTEAD RECHARGEABLE WORKS,SUPPLIES AND SERVICES,TRADING AC - EXTERNAL PURCHASE,4875,P112736-SERVICE-chandlery stock,13/7/2021 00:00:00,249917,228.38,AQ0033,AQUAFAX LIMITED,28/6/2021 00:00:00,25/7/2021 00:00:00,P04-2022
,STANSTEAD RECHARGEABLE WORKS,SUPPLIES AND SERVICES,TRADING AC - EXTERNAL PURCHASE,4875,P112194-SERVICE-calor gas,25/7/2021 00:00:00,249924,881.27,CA0006,CALOR GAS LIMITED,28/6/2021 00:00:00,25/7/2021 00:00:00,P04-2022
,STANSTEAD RECHARGEABLE WORKS,SUPPLIES AND SERVICES,TRADING AC - EXTERNAL PURCHASE,4875,P112194-SERVICE-extend to meet invoice,25/7/2021 00:00:00,249924,55.14,CA0006,CALOR GAS LIMITED,28/6/2021 00:00:00,25/7/2021 00:00:00,P04-2022
,STANSTEAD RECHARGEABLE WORKS,SUPPLIES AND SERVICES,TRADING AC - EXTERNAL PURCHASE,4875,P112110-SERVICE-CALOR GAS,14/7/2021 00:00:00,249925,305.78,CA0006,CALOR GAS LIMITED,28/6/2021 00:00:00,25/7/2021 00:00:00,P04-2022
,STANSTEAD RECHARGEABLE WORKS,SUPPLIES AND SERVICES,TRADING AC - EXTERNAL PURCHASE,4875,P112836-SERVICE-chandlery stock,14/7/2021 00:00:00,249929,531.93,MI0200,MIDLAND CHANDLERS LIMITED,28/6/2021 00:00:00,25/7/2021 00:00:00,P04-2022
,STANSTEAD RECHARGEABLE WORKS,SUPPLIES AND SERVICES,TRADING AC - EXTERNAL PURCHASE,4875,P112847-SERVICE-chandlery stock # 722574,07/05/2021 00:00,249943,34.38,MI0200,MIDLAND CHANDLERS LIMITED,28/6/2021 00:00:00,25/7/2021 00:00:00,P04-2022
,STANSTEAD RECHARGEABLE WORKS,SUPPLIES AND SERVICES,TRADING AC - EXTERNAL PURCHASE,4875,P112644-SERVICE-chandlery stock #57545,07/12/2021 00:00,249966,14.88,AQ0033,AQUAFAX LIMITED,28/6/2021 00:00:00,25/7/2021 00:00:00,P04-2022
,STANSTEAD RECHARGEABLE WORKS,SUPPLIES AND SERVICES,TRADING AC - EXTERNAL PURCHASE,4875,P112856-SERVICE-chandlery stock wso0225654,07/12/2021 00:00,249983,104.99,CE0510,CENTURION EUROPE LIMITED,28/6/2021 00:00:00,25/7/2021 00:00:00,P04-2022
,STANSTEAD RECHARGEABLE WORKS,SUPPLIES AND SERVICES,TRADING AC - EXTERNAL PURCHASE,4875,P112880-SERVICE-chandlery stock,07/12/2021 00:00,250027,46.84,MI0200,MIDLAND CHANDLERS LIMITED,28/6/2021 00:00:00,25/7/2021 00:00:00,P04-2022
,STANSTEAD RECHARGEABLE WORKS,SUPPLIES AND SERVICES,TRADING AC - EXTERNAL PURCHASE,4875,P112880-SERVICE-chandlery stock,07/12/2021 00:00,250028,409.51,MI0200,MIDLAND CHANDLERS LIMITED,28/6/2021 00:00:00,25/7/2021 00:00:00,P04-2022
,STANSTEAD RECHARGEABLE WORKS,SUPPLIES AND SERVICES,TRADING AC - EXTERNAL PURCHASE,4875,P112899-SERVICE-paint,07/12/2021 00:00,250032,302.38,CR0651,CRAFTMASTER PAINTS,28/6/2021 00:00:00,25/7/2021 00:00:00,P04-2022
,STANSTEAD RECHARGEABLE WORKS,SUPPLIES AND SERVICES,TRADING AC - EXTERNAL PURCHASE,4875,P111209-SERVICE-chandlery stock #664423,07/12/2021 00:00,250182,-57.46,MI0200,MIDLAND CHANDLERS LIMITED,28/6/2021 00:00:00,25/7/2021 00:00:00,P04-2022
,STANSTEAD RECHARGEABLE WORKS,SUPPLIES AND SERVICES,TRADING AC - EXTERNAL PURCHASE,4875,P112890-SERVICE-chandlery stock,07/12/2021 00:00,250223,91.01,SC0057,SCREWFIX DIRECT LTD,28/6/2021 00:00:00,25/7/2021 00:00:00,P04-2022
,STANSTEAD RECHARGEABLE WORKS,SUPPLIES AND SERVICES,TRADING AC - EXTERNAL PURCHASE,4875,P112579-SERVICE-chandlery stock,14/7/2021 00:00:00,250231,334.85,CR0651,CRAFTMASTER PAINTS,28/6/2021 00:00:00,25/7/2021 00:00:00,P04-2022
,STANSTEAD RECHARGEABLE WORKS,SUPPLIES AND SERVICES,TRADING AC - EXTERNAL PURCHASE,4875,P112631-SERVICE-Paint,07/12/2021 00:00,250232,220.23,CR0651,CRAFTMASTER PAINTS,28/6/2021 00:00:00,25/7/2021 00:00:00,P04-2022
,STANSTEAD RECHARGEABLE WORKS,SUPPLIES AND SERVICES,TRADING AC - EXTERNAL PURCHASE,4875,P112831-SERVICE-batteries,13/7/2021 00:00:00,250271,589.6,EC0394,MANBAT LTD T/AS,28/6/2021 00:00:00,25/7/2021 00:00:00,P04-2022
,STANSTEAD RECHARGEABLE WORKS,SUPPLIES AND SERVICES,TRADING AC - EXTERNAL PURCHASE,4875,P112590-SERVICE-chandlery stock,14/7/2021 00:00:00,250272,528.5,EC0394,MANBAT LTD T/AS,28/6/2021 00:00:00,25/7/2021 00:00:00,P04-2022
,STANSTEAD RECHARGEABLE WORKS,SUPPLIES AND SERVICES,TRADING AC - EXTERNAL PURCHASE,4875,P112977-SERVICE-chandlery stock #60677,19/7/2021 00:00:00,250310,821.03,AQ0033,AQUAFAX LIMITED,28/6/2021 00:00:00,25/7/2021 00:00:00,P04-2022
,STANSTEAD RECHARGEABLE WORKS,SUPPLIES AND SERVICES,TRADING AC - EXTERNAL PURCHASE,4875,P112979-SERVICE-anodes,19/7/2021 00:00:00,250319,58.56,MI0200,MIDLAND CHANDLERS LIMITED,28/6/2021 00:00:00,25/7/2021 00:00:00,P04-2022
,STANSTEAD RECHARGEABLE WORKS,SUPPLIES AND SERVICES,TRADING AC - EXTERNAL PURCHASE,4875,P112987-SERVICE-blacking #727733,19/7/2021 00:00:00,250334,420.5,MI0200,MIDLAND CHANDLERS LIMITED,28/6/2021 00:00:00,25/7/2021 00:00:00,P04-2022
,STANSTEAD RECHARGEABLE WORKS,SUPPLIES AND SERVICES,TRADING AC - EXTERNAL PURCHASE,4875,P112984-SERVICE-chandlery stock,19/7/2021 00:00:00,250335,412.73,MI0200,MIDLAND CHANDLERS LIMITED,28/6/2021 00:00:00,25/7/2021 00:00:00,P04-2022
,STANSTEAD RECHARGEABLE WORKS,SUPPLIES AND SERVICES,TRADING AC - EXTERNAL PURCHASE,4875,P113041-SERVICE-chandlery stock # 61129,19/7/2021 00:00:00,250336,166.41,AQ0033,AQUAFAX LIMITED,28/6/2021 00:00:00,25/7/2021 00:00:00,P04-2022
,STANSTEAD RECHARGEABLE WORKS,SUPPLIES AND SERVICES,TRADING AC - EXTERNAL PURCHASE,4875,P113065-SERVICE-chandlery stock,19/7/2021 00:00:00,250448,398.29,CR0651,CRAFTMASTER PAINTS,28/6/2021 00:00:00,25/7/2021 00:00:00,P04-2022
,STANSTEAD RECHARGEABLE WORKS,SUPPLIES AND SERVICES,TRADING AC - EXTERNAL PURCHASE,4875,P112985-SERVICE-extra amount  to cover price increase,25/7/2021 00:00:00,250457,180,SM0658,SML PAINTS AND COATINGS,28/6/2021 00:00:00,25/7/2021 00:00:00,P04-2022
,STANSTEAD RECHARGEABLE WORKS,SUPPLIES AND SERVICES,TRADING AC - EXTERNAL PURCHASE,4875,P112995-SERVICE-2200ltrs red diesel @ 58.3p per ltr,19/7/2021 00:00:00,250502,1282.6,TE0052,TEAM FLITWICK,28/6/2021 00:00:00,25/7/2021 00:00:00,P04-2022
,STANSTEAD RECHARGEABLE WORKS,SUPPLIES AND SERVICES,TRADING AC - EXTERNAL PURCHASE,4875,P113046-SERVICE-extra amount for invoice,25/7/2021 00:00:00,250505,0.1,MI0200,MIDLAND CHANDLERS LIMITED,28/6/2021 00:00:00,25/7/2021 00:00:00,P04-2022
,STANSTEAD RECHARGEABLE WORKS,SUPPLIES AND SERVICES,TRADING AC - EXTERNAL PURCHASE,4875,P113046-SERVICE-chandlery stock #729197,25/7/2021 00:00:00,250505,32.78,MI0200,MIDLAND CHANDLERS LIMITED,28/6/2021 00:00:00,25/7/2021 00:00:00,P04-2022
,STANSTEAD RECHARGEABLE WORKS,SUPPLIES AND SERVICES,TRADING AC - EXTERNAL PURCHASE,4875,P113094-SERVICE-replacement bilge pump,25/7/2021 00:00:00,250511,44.21,MI0200,MIDLAND CHANDLERS LIMITED,28/6/2021 00:00:00,25/7/2021 00:00:00,P04-2022
,STANSTEAD RECHARGEABLE WORKS,SUPPLIES AND SERVICES,TRADING AC - EXTERNAL PURCHASE,4875,P112537-SERVICE-chandlery stock,19/7/2021 00:00:00,250512,88.42,MI0200,MIDLAND CHANDLERS LIMITED,28/6/2021 00:00:00,25/7/2021 00:00:00,P04-2022
,STANSTEAD RECHARGEABLE WORKS,SUPPLIES AND SERVICES,TRADING AC - EXTERNAL PURCHASE,4875,P113069-SERVICE-chandlery stock # 729746,19/7/2021 00:00:00,250513,257.82,MI0200,MIDLAND CHANDLERS LIMITED,28/6/2021 00:00:00,25/7/2021 00:00:00,P04-2022
,STANSTEAD RECHARGEABLE WORKS,SUPPLIES AND SERVICES,TRADING AC - EXTERNAL PURCHASE,4875,P113126-SERVICE-chandlery stock,25/7/2021 00:00:00,250570,298.79,CR0651,CRAFTMASTER PAINTS,28/6/2021 00:00:00,25/7/2021 00:00:00,P04-2022
,STANSTEAD RECHARGEABLE WORKS,SUPPLIES AND SERVICES,TRADING AC - EXTERNAL PURCHASE,4875,P112984-SERVICE-chandlery stock,25/7/2021 00:00:00,250589,17.46,MI0200,MIDLAND CHANDLERS LIMITED,28/6/2021 00:00:00,25/7/2021 00:00:00,P04-2022
,STANSTEAD RECHARGEABLE WORKS,SUPPLIES AND SERVICES,TRADING AC - EXTERNAL PURCHASE,4875,P113137-SERVICE-chandlery stock,25/7/2021 00:00:00,250605,742.45,AQ0033,AQUAFAX LIMITED,28/6/2021 00:00:00,25/7/2021 00:00:00,P04-2022
,STANSTEAD RECHARGEABLE WORKS,SUPPLIES AND SERVICES,TRADING AC - EXTERNAL PURCHASE,4875,P113159-SERVICE-chandlery stock,25/7/2021 00:00:00,250698,210.4,AS0036,ASAP SUPPLIES,28/6/2021 00:00:00,25/7/2021 00:00:00,P04-2022
,STANSTEAD RECHARGEABLE WORKS,SUPPLIES AND SERVICES,TRADING AC - EXTERNAL PURCHASE,4875,P113180-SERVICE-chandlery stock wso0226777,25/7/2021 00:00:00,250723,336.41,CE0510,CENTURION EUROPE LIMITED,28/6/2021 00:00:00,25/7/2021 00:00:00,P04-2022
,STANSTEAD RECHARGEABLE WORKS,SUPPLIES AND SERVICES,TRADING AC - EXTERNAL PURCHASE,4875,MIDLAND CHANDLERS LIMITED,25/7/2021 00:00:00,250753,17.82,MI0200,MIDLAND CHANDLERS LIMITED,28/6/2021 00:00:00,25/7/2021 00:00:00,P04-2022
,STANSTEAD RECHARGEABLE WORKS,SUPPLIES AND SERVICES,TRADING AC - EXTERNAL PURCHASE,4875,MIDLAND CHANDLERS LIMITED,25/7/2021 00:00:00,250753,630.86,MI0200,MIDLAND CHANDLERS LIMITED,28/6/2021 00:00:00,25/7/2021 00:00:00,P04-2022
,STANSTEAD RECHARGEABLE WORKS,SUPPLIES AND SERVICES,TRADING AC - EXTERNAL PURCHASE,4875,MIDLAND CHANDLERS LIMITED,25/7/2021 00:00:00,250753,-648.68,MI0200,MIDLAND CHANDLERS LIMITED,28/6/2021 00:00:00,25/7/2021 00:00:00,P04-2022
,STANSTEAD RECHARGEABLE WORKS,SUPPLIES AND SERVICES,TRADING AC - EXTERNAL PURCHASE,4875,P113152-SERVICE-chandlery stock,25/7/2021 00:00:00,250753,648.68,MI0200,MIDLAND CHANDLERS LIMITED,28/6/2021 00:00:00,25/7/2021 00:00:00,P04-2022
,STANSTEAD RECHARGEABLE WORKS,SUPPLIES AND SERVICES,TRADING AC - EXTERNAL PURCHASE,4875,P113170-SERVICE-Ice cream & drinks,25/7/2021 00:00:00,250758,195.77,360001,BIDFOOD,28/6/2021 00:00:00,25/7/2021 00:00:00,P04-2022
,STANSTEAD RECHARGEABLE WORKS,SUPPLIES AND SERVICES,TRADING AC - EXTERNAL PURCHASE,4875,P113152-SERVICE-chandlery stock,25/7/2021 00:00:00,250759,3.9,MI0200,MIDLAND CHANDLERS LIMITED,28/6/2021 00:00:00,25/7/2021 00:00:00,P04-2022
,LEE VALLEY CAMPSITE,SUPPLIES AND SERVICES,TRADING AC - EXTERNAL PURCHASE,4875,P112342-SERVICE-60x logs 40x charcoal 09/06/21,07/05/2021 00:00,249241,500,HA0371,HARTS OF OAK,28/6/2021 00:00:00,25/7/2021 00:00:00,P04-2022
,LEE VALLEY CAMPSITE,SUPPLIES AND SERVICES,TRADING AC - EXTERNAL PURCHASE,4875,P112177-SERVICE-Decking Plot 39,25/7/2021 00:00:00,250075,7693.5,CL0557,CLASSACT LIMITED,28/6/2021 00:00:00,25/7/2021 00:00:00,P04-2022
,LEE VALLEY CAMPSITE,SUPPLIES AND SERVICES,TRADING AC - EXTERNAL PURCHASE,4875,P112342-SERVICE-50 x firewood  06/07/21,13/7/2021 00:00:00,250179,250,HA0371,HARTS OF OAK,28/6/2021 00:00:00,25/7/2021 00:00:00,P04-2022
,LEE VALLEY CARAVAN PARK,SUPPLIES AND SERVICES,TRADING AC - EXTERNAL PURCHASE,4875,P112915-SERVICE-wood,25/7/2021 00:00:00,250180,150,HA0371,HARTS OF OAK,28/6/2021 00:00:00,25/7/2021 00:00:00,P04-2022
,LEE VALLEY CARAVAN PARK,SUPPLIES AND SERVICES,TRADING AC - EXTERNAL PURCHASE,4875,"P113163-SERVICE-50 wood, 10 Charcoal",25/7/2021 00:00:00,250734,300,HA0371,HARTS OF OAK,28/6/2021 00:00:00,25/7/2021 00:00:00,P04-2022
,LEE VALLEY CAMPSITE,SUPPLIES AND SERVICES,BOTTLED GAS,4877,P111926-SERVICE-9x 47kg  2x19kg,15/7/2021 00:00:00,250230,298.22,FL0147,FLOGAS BRITAIN LIMITED,28/6/2021 00:00:00,25/7/2021 00:00:00,P04-2022
CEO,CHIEF EXECUTIVE,SUPPLIES AND SERVICES,UNRECONCILED COMPANY CARD EXP,4880,P ANDREWS- JULY 2021 CCARD STATEMENT,07/12/2021 00:00,249958,618.79,NA0007,NATWEST CARD CENTRE,28/6/2021 00:00:00,25/7/2021 00:00:00,P04-2022
P&V,MYDDELTON HOUSE,SUPPLIES AND SERVICES,UNRECONCILED COMPANY CARD EXP,4880,G FLAVIEN-  JULY 2021 CCARD STATEMENT,07/12/2021 00:00,249958,23.33,NA0007,NATWEST CARD CENTRE,28/6/2021 00:00:00,25/7/2021 00:00:00,P04-2022
CEO,PR/COMMUNICATIONS,SUPPLIES AND SERVICES,UNRECONCILED COMPANY CARD EXP,4880,S BROMBERG- JULY 2021 CCARD STATEMENT,07/12/2021 00:00,249958,1138.61,NA0007,NATWEST CARD CENTRE,28/6/2021 00:00:00,25/7/2021 00:00:00,P04-2022
CEO,REGENERATION & PLANNING,SUPPLIES AND SERVICES,UNRECONCILED COMPANY CARD EXP,4880,C MARTIN-  JULY 2021 CCARD STATEMENT,07/12/2021 00:00,249958,144,NA0007,NATWEST CARD CENTRE,28/6/2021 00:00:00,25/7/2021 00:00:00,P04-2022
R&B,FINANCE & RESOURCES MANAGEMENT,SUPPLIES AND SERVICES,UNRECONCILED COMPANY CARD EXP,4880,L READ-  JULY 2021 CCARD STATEMENT,07/12/2021 00:00,249958,1132.5,NA0007,NATWEST CARD CENTRE,28/6/2021 00:00:00,25/7/2021 00:00:00,P04-2022
R&B,INFORMATION TECHNOLOGY,SUPPLIES AND SERVICES,UNRECONCILED COMPANY CARD EXP,4880,S CLARK-  JULY 2021 CCARD STATEMENT,07/12/2021 00:00,249958,11.99,NA0007,NATWEST CARD CENTRE,28/6/2021 00:00:00,25/7/2021 00:00:00,P04-2022
,LEE VALLEY MARINA STANSTEAD,SUPPLIES AND SERVICES,UNRECONCILED COMPANY CARD EXP,4880,S BRAGGER-  JULY 2021 CCARD STATEMENT,07/12/2021 00:00,249958,322.75,NA0007,NATWEST CARD CENTRE,28/6/2021 00:00:00,25/7/2021 00:00:00,P04-2022
P&V,LEE VALLEY FARM HOLYFIELDHALL,SUPPLIES AND SERVICES,UNRECONCILED COMPANY CARD EXP,4880,J PAINTER-  JULY 2021 CCARD STATEMENT,07/12/2021 00:00,249958,522.91,NA0007,NATWEST CARD CENTRE,28/6/2021 00:00:00,25/7/2021 00:00:00,P04-2022
,LEE VALLEY CAMPSITE,SUPPLIES AND SERVICES,UNRECONCILED COMPANY CARD EXP,4880,C CARTER-  JULY 2021 CCARD STATEMENT,07/12/2021 00:00,249958,3817.27,NA0007,NATWEST CARD CENTRE,28/6/2021 00:00:00,25/7/2021 00:00:00,P04-2022
,LEE VALLEY CARAVAN PARK,SUPPLIES AND SERVICES,UNRECONCILED COMPANY CARD EXP,4880,I RUSSELL-  JULY 2021 CCARD STATEMENT,07/12/2021 00:00,249958,2643.99,NA0007,NATWEST CARD CENTRE,28/6/2021 00:00:00,25/7/2021 00:00:00,P04-2022
,LEE VALLEY CARAVAN PARK,SUPPLIES AND SERVICES,UNRECONCILED COMPANY CARD EXP,4880,J HETHERINGTON-  JULY 2021 CCARD STATEMENT,07/12/2021 00:00,249958,669.71,NA0007,NATWEST CARD CENTRE,28/6/2021 00:00:00,25/7/2021 00:00:00,P04-2022
P&V,MYDDELTON HOUSE GARDENS,SUPPLIES AND SERVICES,UNRECONCILED COMPANY CARD EXP,4880,R HARMES-  JULY 2021 CCARD STATEMENT,07/12/2021 00:00,249958,438.49,NA0007,NATWEST CARD CENTRE,28/6/2021 00:00:00,25/7/2021 00:00:00,P04-2022
P&V,NORTH AREA RANGERS,SUPPLIES AND SERVICES,UNRECONCILED COMPANY CARD EXP,4880,S PILE-  JULY 2021 CCARD STATEMENT,07/12/2021 00:00,249958,165.65,NA0007,NATWEST CARD CENTRE,28/6/2021 00:00:00,25/7/2021 00:00:00,P04-2022
P&V,SOUTH AREA RANGERS,SUPPLIES AND SERVICES,UNRECONCILED COMPANY CARD EXP,4880,G HODDINOTT-  JULY 2021 CCARD STATEMENT,07/12/2021 00:00,249958,85.9,NA0007,NATWEST CARD CENTRE,28/6/2021 00:00:00,25/7/2021 00:00:00,P04-2022
P&V,OPERATIONAL MANAGEMENT (L&E),SUPPLIES AND SERVICES,UNRECONCILED COMPANY CARD EXP,4880,D HUTLEY-  JULY 2021 CCARD STATEMENT,07/12/2021 00:00,249958,7.98,NA0007,NATWEST CARD CENTRE,28/6/2021 00:00:00,25/7/2021 00:00:00,P04-2022
P&V,POLICY & PERFORMANCE (L&E),SUPPLIES AND SERVICES,UNRECONCILED COMPANY CARD EXP,4880,A SACKETT- JULY 2021 CCARD STATEMENT,07/12/2021 00:00,249958,111.98,NA0007,NATWEST CARD CENTRE,28/6/2021 00:00:00,25/7/2021 00:00:00,P04-2022
,LEE VALLEY VELOPARK,SUPPLIES AND SERVICES,UNRECONCILED COMPANY CARD EXP,4880,J NORTHROP-  JULY 2021 CCARD STATEMENT,07/12/2021 00:00,249958,635.85,NA0007,NATWEST CARD CENTRE,28/6/2021 00:00:00,25/7/2021 00:00:00,P04-2022
,LEE VALLEY WHITE WATER CENTRE,SUPPLIES AND SERVICES,UNRECONCILED COMPANY CARD EXP,4880,T RUTLAND-  JULY 2021 CCARD STATEMENT,07/12/2021 00:00,249958,990,NA0007,NATWEST CARD CENTRE,28/6/2021 00:00:00,25/7/2021 00:00:00,P04-2022
,LV WHITE WATER CATERING,SUPPLIES AND SERVICES,UNRECONCILED COMPANY CARD EXP,4880,J MACMILLAN-  JULY 2021 CCARD STATEMENT,07/12/2021 00:00,249958,996.57,NA0007,NATWEST CARD CENTRE,28/6/2021 00:00:00,25/7/2021 00:00:00,P04-2022
CEO,COMMERCIAL ACCOMMODATION,SUPPLIES AND SERVICES,OTHER EXPENSES,4899,P111967-SERVICE-Land Registry,07/05/2021 00:00,249946,9,HM0032,HM LAND REGISTRY,28/6/2021 00:00:00,25/7/2021 00:00:00,P04-2022
,LEE VALLEY CAMPSITE,SUPPLIES AND SERVICES,OTHER EXPENSES,4899,P111402-SERVICE-Plot 24 sales,19/7/2021 00:00:00,249921,2500,LO0459,LONDON LODGES UK,28/6/2021 00:00:00,25/7/2021 00:00:00,P04-2022
,LEE VALLEY CARAVAN PARK,SUPPLIES AND SERVICES,OTHER EXPENSES,4899,P112763-SERVICE-Annual Premises Licence,07/05/2021 00:00,249470,70,BR0016,BOROUGH OF BROXBOURNE,28/6/2021 00:00:00,25/7/2021 00:00:00,P04-2022
P&V,COMMUNITY ACCESS FUND,SUPPLIES AND SERVICES,OTHER EXPENSES,4899,P111119-SERVICE-Views license 2021/22,07/07/2021 00:00,250014,980,SU0605,SUBSTANCE,28/6/2021 00:00:00,25/7/2021 00:00:00,P04-2022
P&V,CAR PARK INCOME,SUPPLIES AND SERVICES,OTHER EXPENSES,4899,P111438-SERVICE-Chushunt Country Walk P&D Machine Installatio,25/7/2021 00:00:00,246176,1828,BR0016,BOROUGH OF BROXBOURNE,28/6/2021 00:00:00,25/7/2021 00:00:00,P04-2022
P&V,CAR PARK INCOME,SUPPLIES AND SERVICES,OTHER EXPENSES,4899,P111438-SERVICE-Old Mil & Meadows P&D Machine Installation,25/7/2021 00:00:00,246176,4529,BR0016,BOROUGH OF BROXBOURNE,28/6/2021 00:00:00,25/7/2021 00:00:00,P04-2022
P&V,CAR PARK INCOME,SUPPLIES AND SERVICES,OTHER EXPENSES,4899,P112466-SERVICE-Car Park Mangament Fees Cornmill Meadows,07/12/2021 00:00,249985,475,PA0372,PARKINGEYE LIMITED,28/6/2021 00:00:00,25/7/2021 00:00:00,P04-2022
P&V,CAR PARK INCOME,SUPPLIES AND SERVICES,OTHER EXPENSES,4899,P112465-SERVICE-Car Park Mangament Fees Clayton Hill,07/12/2021 00:00,249988,475,PA0372,PARKINGEYE LIMITED,28/6/2021 00:00:00,25/7/2021 00:00:00,P04-2022
P&V,CAR PARK INCOME,SUPPLIES AND SERVICES,OTHER EXPENSES,4899,P112845-SERVICE-Car Parking Banners,07/12/2021 00:00,250269,140.44,MA0167,MARTIN DANNELL & CO LTD,28/6/2021 00:00:00,25/7/2021 00:00:00,P04-2022
P&V,POLICY & PERFORMANCE (L&E),SUPPLIES AND SERVICES,OTHER EXPENSES,4899,P112838-SERVICE-Name badges SMT and HOS,13/7/2021 00:00:00,249996,144.5,RE0055,RECOGNITION EXPRESS THAMES VALLEY,28/6/2021 00:00:00,25/7/2021 00:00:00,P04-2022
P&V,"ASSET PROTECTION, MAINT, DEVEL",CAPITAL EXPENDITURE,CAPITAL EXPENDITURE,4990,P110941-SERVICE-Roof Repair Staff Container at Riding Centre,19/7/2021 00:00:00,249097,1512,KE0023,KENDALL & SONS LIMITED,28/6/2021 00:00:00,25/7/2021 00:00:00,P04-2022
P&V,"ASSET PROTECTION, MAINT, DEVEL",CAPITAL EXPENDITURE,CAPITAL EXPENDITURE,4990,KENDALL & SONS LIMITED,19/7/2021 00:00:00,249097,380,KE0023,KENDALL & SONS LIMITED,28/6/2021 00:00:00,25/7/2021 00:00:00,P04-2022
P&V,"ASSET PROTECTION, MAINT, DEVEL",CAPITAL EXPENDITURE,CAPITAL EXPENDITURE,4990,KENDALL & SONS LIMITED,19/7/2021 00:00:00,249097,-1512,KE0023,KENDALL & SONS LIMITED,28/6/2021 00:00:00,25/7/2021 00:00:00,P04-2022
P&V,"ASSET PROTECTION, MAINT, DEVEL",CAPITAL EXPENDITURE,CAPITAL EXPENDITURE,4990,KENDALL & SONS LIMITED,19/7/2021 00:00:00,249097,1132,KE0023,KENDALL & SONS LIMITED,28/6/2021 00:00:00,25/7/2021 00:00:00,P04-2022
P&V,"ASSET PROTECTION, MAINT, DEVEL",CAPITAL EXPENDITURE,CAPITAL EXPENDITURE,4990,P112229-SERVICE-WWC Emergency Decking Repairs,07/05/2021 00:00,249744,1997,KE0023,KENDALL & SONS LIMITED,28/6/2021 00:00:00,25/7/2021 00:00:00,P04-2022
P&V,"ASSET PROTECTION, MAINT, DEVEL",CAPITAL EXPENDITURE,CAPITAL EXPENDITURE,4990,KENDALL & SONS LIMITED,07/05/2021 00:00,249744,-1997,KE0023,KENDALL & SONS LIMITED,28/6/2021 00:00:00,25/7/2021 00:00:00,P04-2022
P&V,"ASSET PROTECTION, MAINT, DEVEL",CAPITAL EXPENDITURE,CAPITAL EXPENDITURE,4990,KENDALL & SONS LIMITED,07/05/2021 00:00,249744,150,KE0023,KENDALL & SONS LIMITED,28/6/2021 00:00:00,25/7/2021 00:00:00,P04-2022
P&V,"ASSET PROTECTION, MAINT, DEVEL",CAPITAL EXPENDITURE,CAPITAL EXPENDITURE,4990,KENDALL & SONS LIMITED,07/05/2021 00:00,249744,1847,KE0023,KENDALL & SONS LIMITED,28/6/2021 00:00:00,25/7/2021 00:00:00,P04-2022
P&V,"ASSET PROTECTION, MAINT, DEVEL",CAPITAL EXPENDITURE,CAPITAL EXPENDITURE,4990,KENDALL & SONS LIMITED,19/7/2021 00:00:00,250008,1512,KE0023,KENDALL & SONS LIMITED,28/6/2021 00:00:00,25/7/2021 00:00:00,P04-2022
P&V,"ASSET PROTECTION, MAINT, DEVEL",CAPITAL EXPENDITURE,CAPITAL EXPENDITURE,4990,P110941-SERVICE-Roof Repair Staff Container at Riding Centre,19/7/2021 00:00:00,250008,-1512,KE0023,KENDALL & SONS LIMITED,28/6/2021 00:00:00,25/7/2021 00:00:00,P04-2022
P&V,"ASSET PROTECTION, MAINT, DEVEL",CAPITAL EXPENDITURE,CAPITAL EXPENDITURE,4990,KENDALL & SONS LIMITED,19/7/2021 00:00:00,250008,-380,KE0023,KENDALL & SONS LIMITED,28/6/2021 00:00:00,25/7/2021 00:00:00,P04-2022
P&V,"ASSET PROTECTION, MAINT, DEVEL",CAPITAL EXPENDITURE,CAPITAL EXPENDITURE,4990,KENDALL & SONS LIMITED,19/7/2021 00:00:00,250008,-1132,KE0023,KENDALL & SONS LIMITED,28/6/2021 00:00:00,25/7/2021 00:00:00,P04-2022
P&V,"ASSET PROTECTION, MAINT, DEVEL",CAPITAL EXPENDITURE,CAPITAL EXPENDITURE,4990,P109848-SERVICE-Additional costs as agreed by R Merle,22/7/2021 00:00:00,250456,700,MO0041,CAPSER,28/6/2021 00:00:00,25/7/2021 00:00:00,P04-2022
